Workbook

Sheet Menu Inicial (hidden)
B3: MODULO DE FORMULACIÓN DE PLANES DE ACCIÓN POR UNIDAD ACADÉMICO Y/O ADMINISTRATIVA V.2
B10: Bienvenido al módulo de formulación de planes de acción. Por favor identifique su Unidad:
D12: Unidad Académica y/o Administrativa: | H12: Red de Datos UDNET | M12: =IF(H12="Decanatura Facultad de Artes - ASAB","LISTAF",IF(H12="Decanatura Facultad de Ciencias y Educación","LISTAF",IF(H12="Decanatura Facultad de Ingeniería","LISTAF",IF(H12="Decanatura Facultad de Medio Ambiente","LISTAF",IF(H12="Decanatura Facultad Tecnológica","LISTAF",IF(H12="Vicerrectoría Académica","LISTAF","lISTAD")))))) -> lISTAD | N12: =H12 -> Red de Datos UDNET
D14: Vigencia del plan: | H14: 2019 | N14: =H14 -> 2019
B17: A continuación se relacionan los módulos disponibles y la responsabilidades de las unidades frente a los mismos.
C19: Módulo | E19: Descripción | K19: Consideraciones
C21: Plan de Acción | E21: Se identifican las actividades que ejecutará la unidad en el marco de los lineamientos y estrategias del PED 2018-2030. Para cada una de estas deberá establecer los productos esperados, indicadores y metas asociadas y lo recursos requeridos para el desarrollo exitoso de las mismas. | K21: Debe ser diligenciado por todas las unidades. Desde el modulo de plan de acción se
C22: Perfiles | E22: Se detallan todos los contratistas que se vinculan en las actividades del plan de accion donde se detallan el área del concimiento, la experiencia | K22: Debe ser diligenciado por todas las unidades. Desde el modulo de plan de acción se
C23: Docentes V. Especial | E23: Se expresan los requerimientos de docentes en cada una de las modalidades de vinculación especial aplicables (TCO, MTO y Hora Cátedra). | K23: Debe ser diligenciado únicamente por las unidades académicas.
C24: Capacitación Docente | E24: Se detallan todos los recursos que permitan actualizar y profundizar conocimientos de los Docentes, elevar su nivel investigativo y perfeccionar su formación y desarrollo pedagógico. | K24: Debe ser diligenciado únicamente por las unidades académicas que tengan la facultad de hacer uso del rubro.
C25: Prácticas Académicas | E25: Se identifican las prácticas programadas y el costo asociada a las mismas en los proyectos curriculares de pregrado. | K25: Debe ser diligenciado únicamente por las unidades académicas.
C26: Asistentes Académicos | E26: Se identifican los requerimientos de asistentes académicos e investigativos en los proyectos curriculares. | K26: Debe ser diligenciado únicamente por las unidades académicas.
C27: Eventos Académicos | E27: Se identifican las participaciones en Eventos Académicos nacionales o internacionales. Preparación y presentación de ponencias institucionales en Eventos nacionales o internacionales Presentación de artículos, conferencias, texto, obras de arte y todo tipo de producción individual participación a nombre de la Universidad en grupos de investigación a nivel nacional o internacional | K27: Debe ser diligenciado únicamente por las unidades académicas.
C28: Mantenimiento | E28: Se deben expresar las necesidades de mantenimiento requerido por las unidades de tipo correctivo o preventivo, en muebles e inmuebles. | K28: Debe ser diligenciado únicamente por las unidades académicas, Recursos Físicos y Red Datos.
C29: Capacitación Funcionarios | E29: Se detallan todos los recursos que permitan actualizar y profundizar conocimientos de los funcionarios, de acuerdo a los planes establecidos para esto. | K29: Debe ser diligenciado por las unidades a quienes les corresponde.
C30: Eventos | E30: Se expresan los requerimientos de docentes en cada una de las modalidades de vinculación especial aplicables (TCO, MTO y hora cátedra). | K30: Debe ser diligenciado únicamente por las unidades académicas.
C31: Items con detalle | E31: Se clasifican varios ítems, que pueden ser seleccionados por algunas dependencias y deben ser soportados con la observación sobre el requerimiento dando una descripción detallada. | K31: Debe ser diligenciado por las unidades que lo consideren pertinente de acuerdo a lo expuesto en el manual del presente documento.
E38: Descargue aquí el Instructivo de formulación de plan de acción

Sheet Plan de Acción
C2: FORMATO PLAN DE ACCIÓN POR UNIDAD ACADÉMICO Y/O ADMINISTRATIVA
B3: FORMULACIÓN PLAN DE ACCIÓN VIGENCIA - 2019
C4: Responsable : COORDINACIÓN GENERAL DE AUTOEVALUACIÓN Y ACREDITACIÓN
C5: =IF(C9="Lineamiento 1. Formar ciudadanos, profesionales, investigadores, creadores e innovadores, íntegros con pensamiento crítico y cultura democrática, en contextos diferenciados inter y multiculturales para la transformación de la sociedad.","Lini1",IF(C9="Lineamiento 2. Establecer un diseño curricular dinámico y flexible que promueva el pluralismo y consolide una comunidad universitaria crítica-transformadora y en armonía ambiental.","Lini2",IF(C9="Lineamiento 3. Integrar las funciones universitarias por medio de la investigación, creación, innovación para la ampliación del conocimiento como bien público y para la solución de problemas de la ciudad -región y de la sociedad en general. ","Lini3",IF(C9="Lineamiento 4. Garantizar, gestionar y proveer las condiciones institucionales para el cumplimiento de las funciones universitarias y el bienestar de su comunidad.","Lini4",IF(C9="Lineamiento 5. Consolidar y fortalecer la democracia participativa, la gobernanza y la gobernabilidad para la cohesión de la comunidad universitaria.","Lini5",""))))) -> Lini1
C6: PLAN ESTRATÉGICO DE DESARROLLO 2018-2030 | I6: PLAN DE ACCIÓN 2019 | O6: AVANCE ANUAL | S6: Plan de Adquisiciones / Recursos
C7: Lineamiento | D7: Meta | G7: Estrategia | I7: Actividad / Proyecto | J7: Objetivos /Proyecto | K7: Actividad/Tareas | L7: Meta | O7: Cumplimiento Trimestre I | P7: Cumplimiento Trimestre II | Q7: Cumplimiento Trimestre III | R7: Cumplimiento Trimestre IV | S7: Rubro presupuestal | T7: Descripción | U7: Valor asignado 2019 | V7: Duración del contrato | X7: Trimestre I | AJ7: Trimestre II | AV7: Trimestre III | BH7: Trimestre IV
B8: Lineamiento N° | D8: # | E8: Descripción | H8: Proceso | L8: Descripción | M8: Indicador (Fórmula de cálculo) | N8: Valor | X8: 1 | Y8: 2 | Z8: 3 | AA8: 4 | AB8: 5 | AC8: 6 | AD8: 7 | AE8: 8 | AF8: 9 | AG8: 10 | AH8: 11 | AI8: 12 | AJ8: 13 | AK8: 14 | AL8: 15 | AM8: 16 | AN8: 17 | AO8: 18 | AP8: 19 | AQ8: 20 | AR8: 21 | AS8: 22 | AT8: 23 | AU8: 24 | AV8: 25 | AW8: 26 | AX8: 27 | AY8: 28 | AZ8: 29 | BA8: 30 | BB8: 31 | BC8: 32 | BD8: 33 | BE8: 34 | BF8: 35 | BG8: 36 | BH8: 37 | BI8: 38 | BJ8: 39 | BK8: 40 | BL8: 41 | BM8: 42 | BN8: 43 | BO8: 44 | BP8: 45 | BQ8: 46 | BR8: 47 | BS8: 48
B9: Lineamiento3 | C9: Lineamiento 1. Formar ciudadanos, profesionales, investigadores, creadores e innovadores, íntegros con pensamiento crítico y cultura democrática, en contextos diferenciados inter y multiculturales para la transformación de la sociedad. | D9: Meta 1 | E9: =VLOOKUP(D9,'[2]Lineamiento Estratégico'!$C$67:$D$108,2,FALSE) -> Mantener y elevar la acreditación institucional de alta calidad y alcanzar el reconocimiento internacional. | G9: 1.2 Desarrollar de manera permanente procesos de autoevaluación que se traduzcan en planes de mejoramiento continuo para programas de posgrado y pregrado. | I9: Consolidar la cultura de la calidad a través del proceso de autoevaluación permanente, lo que contribuirá al desarrollo integral de toda la comunidad en el marco de nuestro PUI. | J9: Presentar ante el CNA el documento maestro de autoevaluación con fines de renovación de la acreditación institucional, en el que se evidencien todas lar fortalezas de la universidad, desde la mirada de la contrucción colectiva. | K9: Consolidar documento que reporte el avance de las fases del proceso de la re acreditación institucional. | L9: Presentar ante el CNA Documento Maestro con fines de Acreditación Institucional | M9: Número de documentos elaborados | N9: 1 | P9: 0 | Q9: 0 | R9: 1 | W9: =+IF(SUM(O9:R9)=N9,"Verdadero","Falso") -> Verdadero
K10: Evaluar el avance en la implementación de las 101 metas del plan de mejoramiento institucional | L10: Lograr el 100% de las 101 metas propuestas en el PMI | M10: (# de metas reportadas como cumplidas / # total de metas propuestas )*100 % | N10: 1 | O10: 0 | P10: 0.5 | Q10: 0 | R10: 0.5 | W10: =+IF(SUM(O10:R10)=N10,"Verdadero","Falso") -> Verdadero
K11: Elaborar los informes semestrales del avance a fin de generar alertas tempranas. | L11: Socializar con la comunidad los avances en el PMI (2 informes de seguimiento al año) | M11: (Número de seguimientos realizados/número de seguimientos proyectados)*100 % | N11: 2 | O11: 0 | P11: 1 | Q11: 0 | R11: 1 | W11: Verdadero
K12: Articular los Planes de Mejoramiento de los Proyectos Curriculares al plan de mejoramiento institucional. | L12: Lograr que las acciones institucionales planteadas en los planes de mejoramientos se encuentren articuladas con el plan de mejoramiento institucional | M12: (# de planes de mejoramiento revisados en la articulación / # de proyectos curriculares que cuentan con Plan de Mejoramiento )* 100 % | N12: 1 | O12: 0 | P12: 0 | Q12: 0.5 | R12: 0.5 | W12: Verdadero
K13: Articular el modelo AUDIT - UD a la acreditación de alta calidad de los proyectos curriculares y la re acreditación institucional. | L13: Establecer estrategias que nos permitan fortalecer la calidad en el marco de lo solicitado por el modelo AUDIT UD | M13: 2 Informe elaborados al año de los avances del proceso | N13: 2 | Q13: 1 | R13: 1 | W13: Verdadero
K14: Recopilar, analizar, evaluar y generar documentos de autoevaluación, para la renovación de la Acreditación Institucional, que evidencien nuestras fortalezas como la universidad del distrito. | L14: Realizar reportes asociados a cada uno de los 12 factores | M14: # reportes entregados/# total de factores del modelo | N14: 12 | O14: 3 | P14: 4 | Q14: 5 | R14: 0 | W14: Verdadero
K15: Socializar con la comunidad los avances en el proceso de Renovación de Acreditación de Alta Calidad. | L15: Reaslizar reuniones en cada facultad a fin de socializar el proceso de acreditación institucional | M15: Número de Reuniones realizadas | N15: 5 | O15: 0 | P15: 1 | Q15: 2 | R15: 2 | W15: Verdadero
K16: Entregar el documento maestro con fines de acreditación de alta calidad al CNA | L16: Elaborar un informe que de cuenta de los avances e la universidad en el marco de lo solicitado por el CNA: | M16: Número de documentos elaborados | N16: 1 | O16: 0 | R16: 1 | W16: Verdadero
K17: Visitas pares colaborativos | L17: Recibir de parte de pares amigos observaciones que nos permitan fortalecer el proceso. | M17: Número de visitas | N17: 1 | R17: 1 | W17: Verdadero
D18: Meta 4 | E18: =VLOOKUP(D18,'[2]Lineamiento Estratégico'!$C$67:$D$108,2,FALSE) -> Aumentar en 28% el número de programas en todos los niveles y modalidades. | G18: 1.8 Consolidación y aumento de una oferta académica flexible que articule los diferentes niveles de formación desde el nivel básico hasta el superior | I18: Trabajar articuladamente con las diferentes Facultades y los proyectos curriculares, tanto en aspectos metodológicos como en lineamientos académicos y administrativos relacionados con la creación de nuevos proyectos curriculares, teniendo como refrente el PUI y el PED - 2018 - 2030. | J18: Apoyar a las facultades y a los proyectos curriculares en la consolidación de nuevas propuestas académicas en los diferentes niveles de formación. | K18: Analizar y evaluar los documentos de registro calificado de los diferentes proyectos curriculares de pregrado y posgrado. | L18: Mantener los Registro Calificado atendiendo los lienamientos del MEN para la renovación de los mismos | M18: Número de conceptos realizados | N18: 3 | P18: 1 | Q18: 1 | R18: 1 | W18: Verdadero
K19: Mantener y actualizar la información documental de carácter institucional de la Universidad Distrital y analizar la información pertinente de los distintos proyectos curriculares de pregrado y postgrado con fines de registros calificados. | L19: Contar con un documento guía para la elaboración de documentos maestros con fines de Registro Calificado por primera vez | M19: Número de actualizaciones realizadas | N19: 2 | P19: 1 | R19: 1 | W19: Verdadero
K20: Diseñar material de soporte para la capacitación | L20: Contar con materiral de apoyo para facilitar el trabajo de los proyectos curriculares con relación a los procesos que lidera la oficina. | M20: Número de módulos realizados | N20: 2 | O20: 1 | P20: 1 | W20: Verdadero
K21: Realizar capacitaciones a docente proponentes y a la comunidad que apoya los procesos. | L21: Capacitar a profesores y administrativos en los aspectos realcionados con autoevaluación, acreditación y RC en el marco del mejoramiento continuo. | M21: Número de capacitaciones realizadas | N21: 2 | O21: 1 | R21: 1 | W21: Verdadero
K22: Apoyar la radicación de los documentos de registro calificado en la plataforma SACES MEN. | L22: Cumplir con los lineamientos del MEN en lo relacionado con informar de nuevas propuestas educativas para su evaluación | M22: Número de programas aprobados por el CSU a radicar en plataforma | N22: 3 | P22: 1 | Q22: 1 | R22: 1 | W22: Verdadero
C23: Lineamiento 2. Establecer un diseño curricular dinámico y flexible que promueva el pluralismo y consolide una comunidad universitaria crítica-transformadora y en armonía ambiental. | D23: Meta 14 | E23: =VLOOKUP(D23,'[2]Lineamiento Estratégico'!$C$67:$D$108,2,FALSE) -> Evaluar, revisar y reformular la oferta curricular de pregrado y posgrado de cada facultad, en el marco de los procesos de autoevaluación continua y los proyectos educativos de las facultades. | G23: 2.1 Definición de lineamientos curriculares institucionales con enfoque crítico-transformador que fomenten el dialogo de saberes y conocimientos, la integración curricular, la pertinencia social, la flexibilidad, la interdisciplinariedad, la investigación curricular, la innovación y el uso de metodologías pertinentes a los diversos contextos | I23: Fortalecer los procesos de obtención o renovación de registros calificados, obtención o renovación de acreditación de alta calidad, a través de la mejora contiua de la autoevaluación y la consolidación de planes de mejoramiento. | J23: Mejorar permanentemente el trabajo que se viene realizado con los proyectos curricualres en relación con los procesos de autoevaluación, registro calificado y acreditación de alta calidad, a través de el apoyo permente a los programas, a partir de la identificación de los aspectos a mejorar y a la luz de la normatividad vigente. | K23: Capacitar docentes en temas de Acreditación de Alta Calidad | L23: A través de talleres diseñados para la comunidad logar el fortalecimiento del proceso. | M23: Número de capaciones realizadas | N23: 2 | O23: 1 | R23: 1 | W23: Verdadero
K24: Elaborar documentos guía para RRC y AAC | L24: Contar con documentos guía que faciliten los procesos | M24: Número de documentos elaborados/Número de documentos proyectados | N24: 2 | O24: 2 | W24: Verdadero
K25: Elaborar conceptos | L25: Trabajar en el mejoramiento de los documentos elaborados para el MEN o el CNA | M25: (Número de conceptos elaborados/ Número de programas a presentar solicitudes ante el MEN)*100 % | N25: 1 | O25: 0.2 | P25: 0.3 | Q25: 0.3 | R25: 0.2 | W25: Verdadero
K26: Subir información a plataforma | L26: Subir a las plataformas del MEN, en los tiempos establecidos las 15 solicitudes proyectadas | M26: (Número de Radicaciones realizadas/número de radicaciones proyectadas)*100 % | N26: 1 | O26: 0.2 | P26: 0.3 | Q26: 0.3 | R26: 0.2 | W26: Verdadero
J27: Estructurar y generar información de soporte sobre los factores, características e indicadores para los programas académicos de la facultad. | K27: Elaborar plataformas de consulta en línea de la información | L27: Facilitar la consulta de la información institucional que soporta los procesos, a travpes del diseño y consolidación de una plataforma. | M27: Plataforma realizada | N27: 1 | O27: 1 | W27: Verdadero
K28: Actualizar plataforma semestralmente | L28: Mantener actualizada la información institucional. | M28: Número de actualizaciones realizadas | N28: 2 | P28: 1 | R28: 1 | W28: Verdadero
K29: Elaboración de informes de apreciación (encuesta en línea) | L29: Apoyar a los programas en la cosolucación de los informes de apreciación de la comundiad frente a su quehacer universitario. | M29: (Número de solicitudes atendidas/Número de solicitudes presentadas)*100 % | N29: 1 | P29: 0.5 | R29: 0.5 | W29: Verdadero
C30: Lineamiento 4. Garantizar, gestionar y proveer las condiciones institucionales para el cumplimiento de las funciones universitarias y el bienestar de su comunidad. | D30: Meta 28 | E30: =VLOOKUP(D30,'[2]Lineamiento Estratégico'!$C$67:$D$108,2,FALSE) -> Fortalecer las competencias de los servidores públicos al servicio de la institución, en beneficio del cumplimiento de las funciones institucionales. | G30: 4.8 Identificar los avances en materia de conocimiento científico, tecnológico y de innovación que inciden en la organización, gestión y productividad de los procesos institucionales. | I30: Capacitar al personal administrativo de la universidad que apoya los procesos de autoevaluación y acreditación | J30: Forlacer la cultura de la calidad con relación a los procesos y/o apoyo administrativo que requerimos para el desarrollo de nuestras funciones misionales. | K30: Elaborar e implementar encuesta que permita establecer las necesidades de la comunidad con relación a los procesos que lideramos en esta dependencia. | L30: Conocer las necesidades de la comunidad universitaria en relación a los procesos que apoyamos. | M30: Número de encuestas elaboradas | N30: 1 | P30: 1 | W30: Verdadero
W31: Verdadero
K32: Programar las capacitaciones y/o talles | L32: Proponer capacitaciones que den respuesta real a las necesidades de la comunidad administrativa y en el marco de nuestra funciones misionales | M32: Número de capacitaciones realizadas | N32: 2 | P32: 1 | R32: 1 | W32: Verdadero

Sheet Seguimiento Trimestre I
C2: FORMATO DE SEGUIMIENTO PLANES DE ACCIÓN POR UNIDAD ACADÉMICO Y/O ADMINISTRATIVA - TRIMESTRE I
B3: FORMULACIÓN PLAN DE ACCIÓN VIGENCIA - 2019
C4: =+'Plan de Acción'!C4:V4 -> Responsable : COORDINACIÓN GENERAL DE AUTOEVALUACIÓN Y ACREDITACIÓN
C5: =IF(#REF!="Lineamiento 1. Formar ciudadanos, profesionales, investigadores, creadores e innovadores, íntegros con pensamiento crítico y cultura democrática, en contextos diferenciados inter y multiculturales para la transformación de la sociedad.","Lini1",IF(#REF!="Lineamiento 2. Establecer un diseño curricular dinámico y flexible que promueva el pluralismo y consolide una comunidad universitaria crítica-transformadora y en armonía ambiental.","Lini2",IF(#REF!="Lineamiento 3. Integrar las funciones universitarias por medio de la investigación, creación, innovación para la ampliación del conocimiento como bien público y para la solución de problemas de la ciudad -región y de la sociedad en general. ","Lini3",IF(#REF!="Lineamiento 4. Garantizar, gestionar y proveer las condiciones institucionales para el cumplimiento de las funciones universitarias y el bienestar de su comunidad.","Lini4",IF(#REF!="Lineamiento 5. Consolidar y fortalecer la democracia participativa, la gobernanza y la gobernabilidad para la cohesión de la comunidad universitaria.","Lini5",""))))) ->  | G5: =IF(#REF!="Lineamiento 1. Formar ciudadanos, profesionales, investigadores, creadores e innovadores, íntegros con pensamiento crítico y cultura democrática, en contextos diferenciados inter y multiculturales para la transformación de la sociedad.","Meta1",IF(#REF!="Lineamiento 2. Establecer un diseño curricular dinámico y flexible que promueva el pluralismo y consolide una comunidad universitaria crítica-transformadora y en armonía ambiental.","Meta2",IF(#REF!="Lineamiento 3. Integrar las funciones universitarias por medio de la investigación, creación, innovación para la ampliación del conocimiento como bien público y para la solución de problemas de la ciudad -región y de la sociedad en general. ","Meta3",IF(#REF!="Lineamiento 4. Garantizar, gestionar y proveer las condiciones institucionales para el cumplimiento de las funciones universitarias y el bienestar de su comunidad.","Meta4",IF(#REF!="Lineamiento 5. Consolidar y fortalecer la democracia participativa, la gobernanza y la gobernabilidad para la cohesión de la comunidad universitaria.","Meta5",""))))) ->  | H5: =IF(#REF!="Planeacion Estrategica e Institucional","PEI",IF(#REF!="Interinstitunacionalizacion e Internacionalización","II",IF(#REF!="Comunicaciones","COM",IF(#REF!="Gestión Integrada","GIT",IF(#REF!="Gestión de Docencia","GD",IF(#REF!="Gestión de Investigacion","GI",IF(#REF!="Extensión y Proyeccion Social","EPS",IF(#REF!="Servicio al Ciudadano","SC",IF(#REF!="Gestión y Desarrollo del Talento Humano","GDTH",IF(#REF!="Bienestar Institucional","BI",IF(#REF!="Gestión de Infraestructura Fisica","GIF",IF(#REF!="Gestión de la Información Bibliográfica","GIB",IF(#REF!="Admisiones, Registro y Control","ARC",IF(#REF!="Gestión de Laboratorios","GL",IF(#REF!="Gestión de los Sistemas de Información y las Telecomunicaciones","GSIT",IF(#REF!="Gestión Documental","GDC",IF(#REF!="Gestión Contractual","GC",IF(#REF!="Gestión Jurídica","GJ",IF(#REF!="Gestión de Evaluación y Control","EC",IF(#REF!="Control Disciplinario","CDE",IF(#REF!="Autoevaluación y Acreditación","AA",IF(#REF!="Gestión de Recursos Financieros","GRF","")))))))))))))))))))))) -> 
C6: PLAN ESTRATÉGICO DE DESARROLLO 2018-2030 | I6: PLAN DE ACCIÓN 2019 | K6: PLAN DE ACCIÓN 2019
B7: Lineamiento N° | C7: Lineamiento | D7: Meta | G7: Estrategia | H7: Proceso | I7: Objetivos /Proyecto | J7: Actividad/Tareas | K7: Logros Primer Trimestre | L7: Dificultades Primer Trimestre | M7: Actividades realizadas para el alcance de la meta | N7: Indicador | O7: Cumplimiento Meta Proyectado I Trimestre | P7: Cumplimiento Meta Alcanzado | Q7: Evidencia, producto o entregable de la Actividad | R7: Evidencias correspondientes al Primer Trimestre | S7: Observaciones
D8: # | E8: Descripción
C9: Lineamiento 1. Formar ciudadanos, profesionales, investigadores, creadores e innovadores, íntegros con pensamiento crítico y cultura democrática, en contextos diferenciados inter y multiculturales para la transformación de la sociedad. | D9: Meta 1 | E9: =VLOOKUP(D9,'[2]Lineamiento Estratégico'!$C$67:$D$108,2,FALSE) -> Mantener y elevar la acreditación institucional de alta calidad y alcanzar el reconocimiento internacional. | G9: 1.2 Desarrollar de manera permanente procesos de autoevaluación que se traduzcan en planes de mejoramiento continuo para programas de posgrado y pregrado. | I9: Presentar ante el CNA el documento maestro de autoevaluación con fines de renovación de la acreditación institucional, en el que se evidencien todas lar fortalezas de la universidad, desde la mirada de la contrucción colectiva. | J9: Consolidar documento que reporte el avance de las fases del proceso de la re acreditación institucional. | N9: Número de documentos elaborados
J10: Evaluar el avance en la implementación de las 101 metas del plan de mejoramiento institucional | N10: (# de metas reportadas como cumplidas / # total de metas propuestas )*100 % | O10: 0
J11: Elaborar los informes semestrales del avance a fin de generar alertas tempranas. | N11: (Número de seguimientos realizados/número de seguimientos proyectados)*100 % | O11: 0
J12: Articular los Planes de Mejoramiento de los Proyectos Curriculares al plan de mejoramiento institucional. | N12: (# de planes de mejoramiento revisados en la articulación / # de proyectos curriculares que cuentan con Plan de Mejoramiento )* 100 % | O12: 0
J13: Articular el modelo AUDIT - UD a la acreditación de alta calidad de los proyectos curriculares y la re acreditación institucional. | N13: 2 Informe elaborados al año de los avances del proceso
J14: Recopilar, analizar, evaluar y generar documentos de autoevaluación, para la renovación de la Acreditación Institucional, que evidencien nuestras fortalezas como la universidad del distrito. | N14: # reportes entregados/# total de factores del modelo | O14: 3
J15: Socializar con la comunidad los avances en el proceso de Renovación de Acreditación de Alta Calidad. | N15: Número de Reuniones realizadas | O15: 0
J16: Entregar el documento maestro con fines de acreditación de alta calidad al CNA | N16: Número de documentos elaborados | O16: 0
J17: Visitas pares colaborativos | N17: Número de visitas
D18: Meta 4 | E18: =VLOOKUP(D18,'[2]Lineamiento Estratégico'!$C$67:$D$108,2,FALSE) -> Aumentar en 28% el número de programas en todos los niveles y modalidades. | G18: 1.8 Consolidación y aumento de una oferta académica flexible que articule los diferentes niveles de formación desde el nivel básico hasta el superior | I18: Apoyar a las facultades y a los proyectos curriculares en la consolidación de nuevas propuestas académicas en los diferentes niveles de formación. | J18: Analizar y evaluar los documentos de registro calificado de los diferentes proyectos curriculares de pregrado y posgrado. | N18: Número de conceptos realizados
J19: Mantener y actualizar la información documental de carácter institucional de la Universidad Distrital y analizar la información pertinente de los distintos proyectos curriculares de pregrado y postgrado con fines de registros calificados. | N19: Número de actualizaciones realizadas
J20: Diseñar material de soporte para la capacitación | N20: Número de módulos realizados | O20: 1
J21: Realizar capacitaciones a docente proponentes y a la comunidad que apoya los procesos. | N21: Número de capacitaciones realizadas | O21: 1
J22: Apoyar la radicación de los documentos de registro calificado en la plataforma SACES MEN. | N22: Número de programas aprobados por el CSU a radicar en plataforma
C23: Lineamiento 2. Establecer un diseño curricular dinámico y flexible que promueva el pluralismo y consolide una comunidad universitaria crítica-transformadora y en armonía ambiental. | D23: Meta 14 | E23: =VLOOKUP(D23,'[2]Lineamiento Estratégico'!$C$67:$D$108,2,FALSE) -> Evaluar, revisar y reformular la oferta curricular de pregrado y posgrado de cada facultad, en el marco de los procesos de autoevaluación continua y los proyectos educativos de las facultades. | G23: 2.1 Definición de lineamientos curriculares institucionales con enfoque crítico-transformador que fomenten el dialogo de saberes y conocimientos, la integración curricular, la pertinencia social, la flexibilidad, la interdisciplinariedad, la investigación curricular, la innovación y el uso de metodologías pertinentes a los diversos contextos | I23: Mejorar permanentemente el trabajo que se viene realizado con los proyectos curricualres en relación con los procesos de autoevaluación, registro calificado y acreditación de alta calidad, a través de el apoyo permente a los programas, a partir de la identificación de los aspectos a mejorar y a la luz de la normatividad vigente. | J23: Capacitar docentes en temas de Acreditación de Alta Calidad | N23: Número de capaciones realizadas | O23: 1
J24: Elaborar documentos guía para RRC y AAC | N24: Número de documentos elaborados/Número de documentos proyectados | O24: 2
J25: Elaborar conceptos | N25: (Número de conceptos elaborados/ Número de programas a presentar solicitudes ante el MEN)*100 % | O25: 0.2
J26: Subir información a plataforma | N26: (Número de Radicaciones realizadas/número de radicaciones proyectadas)*100 % | O26: 0.2
I27: Estructurar y generar información de soporte sobre los factores, características e indicadores para los programas académicos de la facultad. | J27: Elaborar plataformas de consulta en línea de la información | N27: Plataforma realizada | O27: 1
J28: Actualizar plataforma semestralmente | N28: Número de actualizaciones realizadas
J29: Elaboración de informes de apreciación (encuesta en línea) | N29: (Número de solicitudes atendidas/Número de solicitudes presentadas)*100 %
C30: Lineamiento 4. Garantizar, gestionar y proveer las condiciones institucionales para el cumplimiento de las funciones universitarias y el bienestar de su comunidad. | D30: Meta 28 | E30: =VLOOKUP(D30,'[2]Lineamiento Estratégico'!$C$67:$D$108,2,FALSE) -> Fortalecer las competencias de los servidores públicos al servicio de la institución, en beneficio del cumplimiento de las funciones institucionales. | G30: 4.8 Identificar los avances en materia de conocimiento científico, tecnológico y de innovación que inciden en la organización, gestión y productividad de los procesos institucionales. | I30: Forlacer la cultura de la calidad con relación a los procesos y/o apoyo administrativo que requerimos para el desarrollo de nuestras funciones misionales. | J30: Elaborar e implementar encuesta que permita establecer las necesidades de la comunidad con relación a los procesos que lideramos en esta dependencia. | N30: Número de encuestas elaboradas
J32: Programar las capacitaciones y/o talles | N32: Número de capacitaciones realizadas

Sheet Seguimiento Trimestre II
C2: FORMATO DE SEGUIMIENTO PLANES DE ACCIÓN POR UNIDAD ACADÉMICO Y/O ADMINISTRATIVA - TRIMESTRE I
B3: FORMULACIÓN PLAN DE ACCIÓN VIGENCIA - 2019
C4: =+'Plan de Acción'!C4:V4 -> Responsable : COORDINACIÓN GENERAL DE AUTOEVALUACIÓN Y ACREDITACIÓN
C5: =IF(#REF!="Lineamiento 1. Formar ciudadanos, profesionales, investigadores, creadores e innovadores, íntegros con pensamiento crítico y cultura democrática, en contextos diferenciados inter y multiculturales para la transformación de la sociedad.","Lini1",IF(#REF!="Lineamiento 2. Establecer un diseño curricular dinámico y flexible que promueva el pluralismo y consolide una comunidad universitaria crítica-transformadora y en armonía ambiental.","Lini2",IF(#REF!="Lineamiento 3. Integrar las funciones universitarias por medio de la investigación, creación, innovación para la ampliación del conocimiento como bien público y para la solución de problemas de la ciudad -región y de la sociedad en general. ","Lini3",IF(#REF!="Lineamiento 4. Garantizar, gestionar y proveer las condiciones institucionales para el cumplimiento de las funciones universitarias y el bienestar de su comunidad.","Lini4",IF(#REF!="Lineamiento 5. Consolidar y fortalecer la democracia participativa, la gobernanza y la gobernabilidad para la cohesión de la comunidad universitaria.","Lini5",""))))) ->  | G5: =IF(#REF!="Lineamiento 1. Formar ciudadanos, profesionales, investigadores, creadores e innovadores, íntegros con pensamiento crítico y cultura democrática, en contextos diferenciados inter y multiculturales para la transformación de la sociedad.","Meta1",IF(#REF!="Lineamiento 2. Establecer un diseño curricular dinámico y flexible que promueva el pluralismo y consolide una comunidad universitaria crítica-transformadora y en armonía ambiental.","Meta2",IF(#REF!="Lineamiento 3. Integrar las funciones universitarias por medio de la investigación, creación, innovación para la ampliación del conocimiento como bien público y para la solución de problemas de la ciudad -región y de la sociedad en general. ","Meta3",IF(#REF!="Lineamiento 4. Garantizar, gestionar y proveer las condiciones institucionales para el cumplimiento de las funciones universitarias y el bienestar de su comunidad.","Meta4",IF(#REF!="Lineamiento 5. Consolidar y fortalecer la democracia participativa, la gobernanza y la gobernabilidad para la cohesión de la comunidad universitaria.","Meta5",""))))) ->  | H5: =IF(#REF!="Planeacion Estrategica e Institucional","PEI",IF(#REF!="Interinstitunacionalizacion e Internacionalización","II",IF(#REF!="Comunicaciones","COM",IF(#REF!="Gestión Integrada","GIT",IF(#REF!="Gestión de Docencia","GD",IF(#REF!="Gestión de Investigacion","GI",IF(#REF!="Extensión y Proyeccion Social","EPS",IF(#REF!="Servicio al Ciudadano","SC",IF(#REF!="Gestión y Desarrollo del Talento Humano","GDTH",IF(#REF!="Bienestar Institucional","BI",IF(#REF!="Gestión de Infraestructura Fisica","GIF",IF(#REF!="Gestión de la Información Bibliográfica","GIB",IF(#REF!="Admisiones, Registro y Control","ARC",IF(#REF!="Gestión de Laboratorios","GL",IF(#REF!="Gestión de los Sistemas de Información y las Telecomunicaciones","GSIT",IF(#REF!="Gestión Documental","GDC",IF(#REF!="Gestión Contractual","GC",IF(#REF!="Gestión Jurídica","GJ",IF(#REF!="Gestión de Evaluación y Control","EC",IF(#REF!="Control Disciplinario","CDE",IF(#REF!="Autoevaluación y Acreditación","AA",IF(#REF!="Gestión de Recursos Financieros","GRF","")))))))))))))))))))))) -> 
C6: PLAN ESTRATÉGICO DE DESARROLLO 2018-2030 | I6: PLAN DE ACCIÓN 2019 | K6: PLAN DE ACCIÓN 2019
B7: Lineamiento N° | C7: Lineamiento | D7: Meta | G7: Estrategia | H7: Proceso | I7: Objetivos /Proyecto | J7: Actividad/Tareas | K7: Logros Primer Trimestre | L7: Dificultades Primer Trimestre | M7: Actividades realizadas para el alcance de la meta | N7: Indicador | O7: Cumplimiento Meta Proyectado I Trimestre | P7: Cumplimiento Meta Alcanzado | Q7: Evidencia, producto o entregable de la Actividad | R7: Evidencias correspondientes al Primer Trimestre | S7: Observaciones
D8: # | E8: Descripción
C9: Lineamiento 1. Formar ciudadanos, profesionales, investigadores, creadores e innovadores, íntegros con pensamiento crítico y cultura democrática, en contextos diferenciados inter y multiculturales para la transformación de la sociedad. | D9: Meta 1 | E9: =VLOOKUP(D9,'[2]Lineamiento Estratégico'!$C$67:$D$108,2,FALSE) -> Mantener y elevar la acreditación institucional de alta calidad y alcanzar el reconocimiento internacional. | G9: 1.2 Desarrollar de manera permanente procesos de autoevaluación que se traduzcan en planes de mejoramiento continuo para programas de posgrado y pregrado. | I9: Presentar ante el CNA el documento maestro de autoevaluación con fines de renovación de la acreditación institucional, en el que se evidencien todas lar fortalezas de la universidad, desde la mirada de la contrucción colectiva. | J9: Consolidar documento que reporte el avance de las fases del proceso de la re acreditación institucional. | N9: Número de documentos elaborados
J10: Evaluar el avance en la implementación de las 101 metas del plan de mejoramiento institucional | N10: (# de metas reportadas como cumplidas / # total de metas propuestas )*100 % | O10: 0
J11: Elaborar los informes semestrales del avance a fin de generar alertas tempranas. | N11: (Número de seguimientos realizados/número de seguimientos proyectados)*100 % | O11: 0
J12: Articular los Planes de Mejoramiento de los Proyectos Curriculares al plan de mejoramiento institucional. | N12: (# de planes de mejoramiento revisados en la articulación / # de proyectos curriculares que cuentan con Plan de Mejoramiento )* 100 % | O12: 0
J13: Articular el modelo AUDIT - UD a la acreditación de alta calidad de los proyectos curriculares y la re acreditación institucional. | N13: 2 Informe elaborados al año de los avances del proceso
J14: Recopilar, analizar, evaluar y generar documentos de autoevaluación, para la renovación de la Acreditación Institucional, que evidencien nuestras fortalezas como la universidad del distrito. | N14: # reportes entregados/# total de factores del modelo | O14: 3
J15: Socializar con la comunidad los avances en el proceso de Renovación de Acreditación de Alta Calidad. | N15: Número de Reuniones realizadas | O15: 0
J16: Entregar el documento maestro con fines de acreditación de alta calidad al CNA | N16: Número de documentos elaborados | O16: 0
J17: Visitas pares colaborativos | N17: Número de visitas
D18: Meta 4 | E18: =VLOOKUP(D18,'[2]Lineamiento Estratégico'!$C$67:$D$108,2,FALSE) -> Aumentar en 28% el número de programas en todos los niveles y modalidades. | G18: 1.8 Consolidación y aumento de una oferta académica flexible que articule los diferentes niveles de formación desde el nivel básico hasta el superior | I18: Apoyar a las facultades y a los proyectos curriculares en la consolidación de nuevas propuestas académicas en los diferentes niveles de formación. | J18: Analizar y evaluar los documentos de registro calificado de los diferentes proyectos curriculares de pregrado y posgrado. | N18: Número de conceptos realizados
J19: Mantener y actualizar la información documental de carácter institucional de la Universidad Distrital y analizar la información pertinente de los distintos proyectos curriculares de pregrado y postgrado con fines de registros calificados. | N19: Número de actualizaciones realizadas
J20: Diseñar material de soporte para la capacitación | N20: Número de módulos realizados | O20: 1
J21: Realizar capacitaciones a docente proponentes y a la comunidad que apoya los procesos. | N21: Número de capacitaciones realizadas | O21: 1
J22: Apoyar la radicación de los documentos de registro calificado en la plataforma SACES MEN. | N22: Número de programas aprobados por el CSU a radicar en plataforma
C23: Lineamiento 2. Establecer un diseño curricular dinámico y flexible que promueva el pluralismo y consolide una comunidad universitaria crítica-transformadora y en armonía ambiental. | D23: Meta 14 | E23: =VLOOKUP(D23,'[2]Lineamiento Estratégico'!$C$67:$D$108,2,FALSE) -> Evaluar, revisar y reformular la oferta curricular de pregrado y posgrado de cada facultad, en el marco de los procesos de autoevaluación continua y los proyectos educativos de las facultades. | G23: 2.1 Definición de lineamientos curriculares institucionales con enfoque crítico-transformador que fomenten el dialogo de saberes y conocimientos, la integración curricular, la pertinencia social, la flexibilidad, la interdisciplinariedad, la investigación curricular, la innovación y el uso de metodologías pertinentes a los diversos contextos | I23: Mejorar permanentemente el trabajo que se viene realizado con los proyectos curricualres en relación con los procesos de autoevaluación, registro calificado y acreditación de alta calidad, a través de el apoyo permente a los programas, a partir de la identificación de los aspectos a mejorar y a la luz de la normatividad vigente. | J23: Capacitar docentes en temas de Acreditación de Alta Calidad | N23: Número de capaciones realizadas | O23: 1
J24: Elaborar documentos guía para RRC y AAC | N24: Número de documentos elaborados/Número de documentos proyectados | O24: 2
J25: Elaborar conceptos | N25: (Número de conceptos elaborados/ Número de programas a presentar solicitudes ante el MEN)*100 % | O25: 0.2
J26: Subir información a plataforma | N26: (Número de Radicaciones realizadas/número de radicaciones proyectadas)*100 % | O26: 0.2
I27: Estructurar y generar información de soporte sobre los factores, características e indicadores para los programas académicos de la facultad. | J27: Elaborar plataformas de consulta en línea de la información | N27: Plataforma realizada | O27: 1
J28: Actualizar plataforma semestralmente | N28: Número de actualizaciones realizadas
J29: Elaboración de informes de apreciación (encuesta en línea) | N29: (Número de solicitudes atendidas/Número de solicitudes presentadas)*100 %
C30: Lineamiento 4. Garantizar, gestionar y proveer las condiciones institucionales para el cumplimiento de las funciones universitarias y el bienestar de su comunidad. | D30: Meta 28 | E30: =VLOOKUP(D30,'[2]Lineamiento Estratégico'!$C$67:$D$108,2,FALSE) -> Fortalecer las competencias de los servidores públicos al servicio de la institución, en beneficio del cumplimiento de las funciones institucionales. | G30: 4.8 Identificar los avances en materia de conocimiento científico, tecnológico y de innovación que inciden en la organización, gestión y productividad de los procesos institucionales. | I30: Forlacer la cultura de la calidad con relación a los procesos y/o apoyo administrativo que requerimos para el desarrollo de nuestras funciones misionales. | J30: Elaborar e implementar encuesta que permita establecer las necesidades de la comunidad con relación a los procesos que lideramos en esta dependencia. | N30: Número de encuestas elaboradas
J32: Programar las capacitaciones y/o talles | N32: Número de capacitaciones realizadas

Sheet Seguimiento Trimestre III
C2: FORMATO DE SEGUIMIENTO PLANES DE ACCIÓN POR UNIDAD ACADÉMICO Y/O ADMINISTRATIVA - TRIMESTRE III
B3: FORMULACIÓN PLAN DE ACCIÓN VIGENCIA - 2019
C4: =+'Plan de Acción'!C4:V4 -> Responsable : COORDINACIÓN GENERAL DE AUTOEVALUACIÓN Y ACREDITACIÓN
C5: =IF(C10="Lineamiento 1. Formar ciudadanos, profesionales, investigadores, creadores e innovadores, íntegros con pensamiento crítico y cultura democrática, en contextos diferenciados inter y multiculturales para la transformación de la sociedad.","Lini1",IF(C10="Lineamiento 2. Establecer un diseño curricular dinámico y flexible que promueva el pluralismo y consolide una comunidad universitaria crítica-transformadora y en armonía ambiental.","Lini2",IF(C10="Lineamiento 3. Integrar las funciones universitarias por medio de la investigación, creación, innovación para la ampliación del conocimiento como bien público y para la solución de problemas de la ciudad -región y de la sociedad en general. ","Lini3",IF(C10="Lineamiento 4. Garantizar, gestionar y proveer las condiciones institucionales para el cumplimiento de las funciones universitarias y el bienestar de su comunidad.","Lini4",IF(C10="Lineamiento 5. Consolidar y fortalecer la democracia participativa, la gobernanza y la gobernabilidad para la cohesión de la comunidad universitaria.","Lini5",""))))) -> Lini1 | G5: =IF(C10="Lineamiento 1. Formar ciudadanos, profesionales, investigadores, creadores e innovadores, íntegros con pensamiento crítico y cultura democrática, en contextos diferenciados inter y multiculturales para la transformación de la sociedad.","Meta1",IF(C10="Lineamiento 2. Establecer un diseño curricular dinámico y flexible que promueva el pluralismo y consolide una comunidad universitaria crítica-transformadora y en armonía ambiental.","Meta2",IF(C10="Lineamiento 3. Integrar las funciones universitarias por medio de la investigación, creación, innovación para la ampliación del conocimiento como bien público y para la solución de problemas de la ciudad -región y de la sociedad en general. ","Meta3",IF(C10="Lineamiento 4. Garantizar, gestionar y proveer las condiciones institucionales para el cumplimiento de las funciones universitarias y el bienestar de su comunidad.","Meta4",IF(C10="Lineamiento 5. Consolidar y fortalecer la democracia participativa, la gobernanza y la gobernabilidad para la cohesión de la comunidad universitaria.","Meta5",""))))) -> Meta1 | H5: =IF(H10="Planeacion Estrategica e Institucional","PEI",IF(H10="Interinstitunacionalizacion e Internacionalización","II",IF(H10="Comunicaciones","COM",IF(H10="Gestión Integrada","GIT",IF(H10="Gestión de Docencia","GD",IF(H10="Gestión de Investigacion","GI",IF(H10="Extensión y Proyeccion Social","EPS",IF(H10="Servicio al Ciudadano","SC",IF(H10="Gestión y Desarrollo del Talento Humano","GDTH",IF(H10="Bienestar Institucional","BI",IF(H10="Gestión de Infraestructura Fisica","GIF",IF(H10="Gestión de la Información Bibliográfica","GIB",IF(H10="Admisiones, Registro y Control","ARC",IF(H10="Gestión de Laboratorios","GL",IF(H10="Gestión de los Sistemas de Información y las Telecomunicaciones","GSIT",IF(H10="Gestión Documental","GDC",IF(H10="Gestión Contractual","GC",IF(H10="Gestión Jurídica","GJ",IF(H10="Gestión de Evaluación y Control","EC",IF(H10="Control Disciplinario","CDE",IF(H10="Autoevaluación y Acreditación","AA",IF(H10="Gestión de Recursos Financieros","GRF","")))))))))))))))))))))) -> 
C6: PLAN ESTRATÉGICO DE DESARROLLO 2018-2030 | I6: PLAN DE ACCIÓN 2019 | K6: PLAN DE ACCIÓN 2019
B7: Lineamiento N° | C7: Lineamiento | D7: Meta | G7: Estrategia | H7: Proceso | I7: Actividad | J7: =+'Plan de Acción'!J7:J8 -> Objetivos /Proyecto | K7: Logros Tercer Trimestre | L7: Dificultades Tercer Trimestre | M7: Actividades realizadas para el alcance de la meta | N7: =+'Plan de Acción'!L7:L7 -> Meta | O7: Cumplimiento Meta Proyectado III Trimestre | P7: Cumplimiento Meta Alcanzado | Q7: Evidencia, producto o entregable de la Actividad | R7: Evidencias correspondientes al Tercer Trimestre | S7: Indicador asociado | T7: Observaciones
D8: # | E8: Descripción
B10: Lineamiento3 | C10: Lineamiento 1. Formar ciudadanos, profesionales, investigadores, creadores e innovadores, íntegros con pensamiento crítico y cultura democrática, en contextos diferenciados inter y multiculturales para la transformación de la sociedad. | D10: Meta 1 | E10: =VLOOKUP(D10,'[2]Lineamiento Estratégico'!$C$67:$D$108,2,FALSE) -> Mantener y elevar la acreditación institucional de alta calidad y alcanzar el reconocimiento internacional. | G10: 1.2 Desarrollar de manera permanente procesos de autoevaluación que se traduzcan en planes de mejoramiento continuo para programas de posgrado y pregrado. | I10: Consolidar los requerimientos necesarios para la obtención de la re-acreditación institucional. | J10: Consolidar documento que reporte el avance de las fases del proceso de la re acreditación institucional. | N10: =+'Plan de Acción'!L9 -> Presentar ante el CNA Documento Maestro con fines de Acreditación Institucional | O10: =+'Plan de Acción'!Q9 -> 0 | P10: 0 | Q10: Contratos de mantenimiento, documentos contractuales e informes de mantenimiento de la infraestructura.
J11: Verificar los avances en el plan de mejoramiento institucional | N11: =+'Plan de Acción'!L11 -> Socializar con la comunidad los avances en el PMI (2 informes de seguimiento al año) | O11: =+'Plan de Acción'!Q11 -> 0 | P11: 0 | Q11: Licencias instaladas
J12: Participar con la Coordinación de Acreditación en el seguimiento de los Planes de Mejoramiento de los Proyectos Curriculares. | N12: =+'Plan de Acción'!L12 -> Lograr que las acciones institucionales planteadas en los planes de mejoramientos se encuentren articuladas con el plan de mejoramiento institucional | O12: =+'Plan de Acción'!Q12 -> 0.5 | P12: 0 | Q12: Documento de registro de solicitudes
J13: Elaborar informes relacionados con el modelo AUDIT - UD y su incidencia en la areditación de alta calidad de los proyectos curriculares y la re acreditación institucional. | N13: =+'Plan de Acción'!L13 -> Establecer estrategias que nos permitan fortalecer la calidad en el marco de lo solicitado por el modelo AUDIT UD | O13: =+'Plan de Acción'!Q13 -> 1 | P13: 0
J14: Recopilar, analizar, evaluar y generar documentos de autoevaluación, para la renovación de la Acreditación Institucional. | N14: =+'Plan de Acción'!L14 -> Realizar reportes asociados a cada uno de los 12 factores | O14: =+'Plan de Acción'!Q14 -> 5 | P14: 0
J15: Entregar el documento maestro con fines de acreditación de alta calidad al CNA | N15: =+'Plan de Acción'!L16 -> Elaborar un informe que de cuenta de los avances e la universidad en el marco de lo solicitado por el CNA: | O15: =+'Plan de Acción'!Q16 -> 0 | P15: 0
J16: Visitas pares colaborativos | N16: =+'Plan de Acción'!L17 -> Recibir de parte de pares amigos observaciones que nos permitan fortalecer el proceso. | O16: =+'Plan de Acción'!Q17 -> 0 | P16: 0
N17: =+'Plan de Acción'!#REF! ->  | O17: =+'Plan de Acción'!#REF! ->  | P17: 0
D18: Meta 4 | E18: =VLOOKUP(D18,'[2]Lineamiento Estratégico'!$C$67:$D$108,2,FALSE) -> Aumentar en 28% el número de programas en todos los niveles y modalidades. | G18: 1.8 Consolidación y aumento de una oferta académica flexible que articule los diferentes niveles de formación desde el nivel básico hasta el superior | I18: Apoyar a las diferentes Facultades en la metodología, y lineaminetos para la creación de nuevos proyectos curriculares. | J18: Analizar y evaluar los documentos de registro calificado de los diferentes proyectos curriculares de pregrado y posgrado. | N18: =+'Plan de Acción'!L18 -> Mantener los Registro Calificado atendiendo los lienamientos del MEN para la renovación de los mismos | O18: =+'Plan de Acción'!Q18 -> 1 | P18: 0
J19: Mantener y actualizar la información documental de carácter institucional de la Universidad Distrital y analizar la información pertinente de los distintos proyectos curriculares de pregrado y postgrado con fines de registros calificados. | N19: =+'Plan de Acción'!L19 -> Contar con un documento guía para la elaboración de documentos maestros con fines de Registro Calificado por primera vez | O19: =+'Plan de Acción'!Q19 -> 0 | P19: 0
J20: Capacitar y acompañar a los proyectos curriculares en los procesos administrativos relacionados con la autoevaluación y los registros calificados. | N20: =+'Plan de Acción'!L21 -> Capacitar a profesores y administrativos en los aspectos realcionados con autoevaluación, acreditación y RC en el marco del mejoramiento continuo. | O20: =+'Plan de Acción'!Q21 -> 0 | P20: 0
J21: Apoyar la radicación de los documentos de registro calificado en la plataforma SACES MEN. | N21: =+'Plan de Acción'!L22 -> Cumplir con los lineamientos del MEN en lo relacionado con informar de nuevas propuestas educativas para su evaluación | O21: =+'Plan de Acción'!Q22 -> 1 | P21: 0
N22: =+'Plan de Acción'!#REF! ->  | O22: =+'Plan de Acción'!#REF! ->  | P22: 0
N23: =+'Plan de Acción'!#REF! ->  | O23: =+'Plan de Acción'!#REF! ->  | P23: 0
C24: Lineamiento 2. Establecer un diseño curricular dinámico y flexible que promueva el pluralismo y consolide una comunidad universitaria crítica-transformadora y en armonía ambiental. | D24: Meta 14 | E24: =VLOOKUP(D24,'[2]Lineamiento Estratégico'!$C$67:$D$108,2,FALSE) -> Evaluar, revisar y reformular la oferta curricular de pregrado y posgrado de cada facultad, en el marco de los procesos de autoevaluación continua y los proyectos educativos de las facultades. | G24: 2.1 Definición de lineamientos curriculares institucionales con enfoque crítico-transformador que fomenten el dialogo de saberes y conocimientos, la integración curricular, la pertinencia social, la flexibilidad, la interdisciplinariedad, la investigación curricular, la innovación y el uso de metodologías pertinentes a los diversos contextos | I24: Apoyar a los diferentes Proyectos Curriculares de las respectivas Facultades, en lo relacionado con la elaboración de Planes Maestros, revisión de documentos en lo referente a la obtención o renovación de registros calificados, obtención o renovación de acreditación de alta calidad. | J24: Colaborar en la elaboración de los documentos de renovación de registros calificados y renovación de acreditación de alta calidad. | N24: =+'Plan de Acción'!L23 -> A través de talleres diseñados para la comunidad logar el fortalecimiento del proceso. | O24: =+'Plan de Acción'!Q23 -> 0 | P24: 0
J25: Estructurar y generar información de soporte sobre los factores, características e indicadores para los programas académicos de la facultad. | N25: =+'Plan de Acción'!L29 -> Apoyar a los programas en la cosolucación de los informes de apreciación de la comundiad frente a su quehacer universitario. | O25: =+'Plan de Acción'!Q29 -> 0 | P25: 0
C26: Lineamiento 4. Garantizar, gestionar y proveer las condiciones institucionales para el cumplimiento de las funciones universitarias y el bienestar de su comunidad. | D26: Meta 28 | E26: =VLOOKUP(D26,'[2]Lineamiento Estratégico'!$C$67:$D$108,2,FALSE) -> Fortalecer las competencias de los servidores públicos al servicio de la institución, en beneficio del cumplimiento de las funciones institucionales. | G26: 4.8 Identificar los avances en materia de conocimiento científico, tecnológico y de innovación que inciden en la organización, gestión y productividad de los procesos institucionales. | I26: Capacitar al personal administrativo de la universidad que apoya los procesos de autoevaluación y acreditación | N26: =+'Plan de Acción'!#REF! ->  | O26: =+'Plan de Acción'!Q30 -> 0 | P26: 0
J27: Establecer las necesidades de capacitación | N27: =+'Plan de Acción'!L30 -> Conocer las necesidades de la comunidad universitaria en relación a los procesos que apoyamos. | O27: =+'Plan de Acción'!Q31 -> 0 | P27: 0
J28: Programar las capacitaciones | N28: =+'Plan de Acción'!M32 -> Número de capacitaciones realizadas | O28: =+'Plan de Acción'!Q32 -> 0 | P28: 0

Sheet Seguimiento Trimestre IV
C2: FORMATO DE SEGUIMIENTO PLANES DE ACCIÓN POR UNIDAD ACADÉMICO Y/O ADMINISTRATIVA - TRIMESTRE IV
B3: FORMULACIÓN PLAN DE ACCIÓN VIGENCIA - 2019
C4: =+'Plan de Acción'!C4:V4 -> Responsable : COORDINACIÓN GENERAL DE AUTOEVALUACIÓN Y ACREDITACIÓN
C5: =IF(C10="Lineamiento 1. Formar ciudadanos, profesionales, investigadores, creadores e innovadores, íntegros con pensamiento crítico y cultura democrática, en contextos diferenciados inter y multiculturales para la transformación de la sociedad.","Lini1",IF(C10="Lineamiento 2. Establecer un diseño curricular dinámico y flexible que promueva el pluralismo y consolide una comunidad universitaria crítica-transformadora y en armonía ambiental.","Lini2",IF(C10="Lineamiento 3. Integrar las funciones universitarias por medio de la investigación, creación, innovación para la ampliación del conocimiento como bien público y para la solución de problemas de la ciudad -región y de la sociedad en general. ","Lini3",IF(C10="Lineamiento 4. Garantizar, gestionar y proveer las condiciones institucionales para el cumplimiento de las funciones universitarias y el bienestar de su comunidad.","Lini4",IF(C10="Lineamiento 5. Consolidar y fortalecer la democracia participativa, la gobernanza y la gobernabilidad para la cohesión de la comunidad universitaria.","Lini5",""))))) -> Lini1 | G5: =IF(C10="Lineamiento 1. Formar ciudadanos, profesionales, investigadores, creadores e innovadores, íntegros con pensamiento crítico y cultura democrática, en contextos diferenciados inter y multiculturales para la transformación de la sociedad.","Meta1",IF(C10="Lineamiento 2. Establecer un diseño curricular dinámico y flexible que promueva el pluralismo y consolide una comunidad universitaria crítica-transformadora y en armonía ambiental.","Meta2",IF(C10="Lineamiento 3. Integrar las funciones universitarias por medio de la investigación, creación, innovación para la ampliación del conocimiento como bien público y para la solución de problemas de la ciudad -región y de la sociedad en general. ","Meta3",IF(C10="Lineamiento 4. Garantizar, gestionar y proveer las condiciones institucionales para el cumplimiento de las funciones universitarias y el bienestar de su comunidad.","Meta4",IF(C10="Lineamiento 5. Consolidar y fortalecer la democracia participativa, la gobernanza y la gobernabilidad para la cohesión de la comunidad universitaria.","Meta5",""))))) -> Meta1 | H5: =IF(H10="Planeacion Estrategica e Institucional","PEI",IF(H10="Interinstitunacionalizacion e Internacionalización","II",IF(H10="Comunicaciones","COM",IF(H10="Gestión Integrada","GIT",IF(H10="Gestión de Docencia","GD",IF(H10="Gestión de Investigacion","GI",IF(H10="Extensión y Proyeccion Social","EPS",IF(H10="Servicio al Ciudadano","SC",IF(H10="Gestión y Desarrollo del Talento Humano","GDTH",IF(H10="Bienestar Institucional","BI",IF(H10="Gestión de Infraestructura Fisica","GIF",IF(H10="Gestión de la Información Bibliográfica","GIB",IF(H10="Admisiones, Registro y Control","ARC",IF(H10="Gestión de Laboratorios","GL",IF(H10="Gestión de los Sistemas de Información y las Telecomunicaciones","GSIT",IF(H10="Gestión Documental","GDC",IF(H10="Gestión Contractual","GC",IF(H10="Gestión Jurídica","GJ",IF(H10="Gestión de Evaluación y Control","EC",IF(H10="Control Disciplinario","CDE",IF(H10="Autoevaluación y Acreditación","AA",IF(H10="Gestión de Recursos Financieros","GRF","")))))))))))))))))))))) -> 
C6: PLAN ESTRATÉGICO DE DESARROLLO 2018-2030 | I6: PLAN DE ACCIÓN 2019 | K6: PLAN DE ACCIÓN 2019
B7: Lineamiento N° | C7: Lineamiento | D7: Meta | G7: Estrategia | H7: Proceso | I7: Actividad | J7: =+'Plan de Acción'!J7:J8 -> Objetivos /Proyecto | K7: Logros Cuarto Trimestre | L7: Dificultades Cuarto Trimestre | M7: Actividades realizadas para el alcance de la meta | N7: =+'Plan de Acción'!L7:L7 -> Meta | O7: Cumplimiento Meta Proyectado IV Trimestre | P7: Cumplimiento Meta Alcanzado | Q7: Evidencia, producto o entregable de la Actividad | R7: Evidencias correspondientes al Cuarto Trimestre | S7: Indicador asociado | T7: Observaciones
D8: # | E8: Descripción
B10: Lineamiento3 | C10: Lineamiento 1. Formar ciudadanos, profesionales, investigadores, creadores e innovadores, íntegros con pensamiento crítico y cultura democrática, en contextos diferenciados inter y multiculturales para la transformación de la sociedad. | D10: Meta 1 | E10: =VLOOKUP(D10,'[2]Lineamiento Estratégico'!$C$67:$D$108,2,FALSE) -> Mantener y elevar la acreditación institucional de alta calidad y alcanzar el reconocimiento internacional. | G10: 1.2 Desarrollar de manera permanente procesos de autoevaluación que se traduzcan en planes de mejoramiento continuo para programas de posgrado y pregrado. | I10: Consolidar los requerimientos necesarios para la obtención de la re-acreditación institucional. | J10: Consolidar documento que reporte el avance de las fases del proceso de la re acreditación institucional. | N10: =+'Plan de Acción'!L9 -> Presentar ante el CNA Documento Maestro con fines de Acreditación Institucional | O10: =+'Plan de Acción'!R9 -> 1 | P10: 0 | Q10: Contratos de mantenimiento, documentos contractuales e informes de mantenimiento de la infraestructura.
J11: Verificar los avances en el plan de mejoramiento institucional | N11: =+'Plan de Acción'!L11 -> Socializar con la comunidad los avances en el PMI (2 informes de seguimiento al año) | O11: =+'Plan de Acción'!R11 -> 1 | P11: 0 | Q11: Licencias instaladas
J12: Participar con la Coordinación de Acreditación en el seguimiento de los Planes de Mejoramiento de los Proyectos Curriculares. | N12: =+'Plan de Acción'!L12 -> Lograr que las acciones institucionales planteadas en los planes de mejoramientos se encuentren articuladas con el plan de mejoramiento institucional | O12: =+'Plan de Acción'!R12 -> 0.5 | P12: 0 | Q12: Documento de registro de solicitudes
J13: Elaborar informes relacionados con el modelo AUDIT - UD y su incidencia en la areditación de alta calidad de los proyectos curriculares y la re acreditación institucional. | N13: =+'Plan de Acción'!L13 -> Establecer estrategias que nos permitan fortalecer la calidad en el marco de lo solicitado por el modelo AUDIT UD | O13: =+'Plan de Acción'!R13 -> 1 | P13: 0
J14: Recopilar, analizar, evaluar y generar documentos de autoevaluación, para la renovación de la Acreditación Institucional. | N14: =+'Plan de Acción'!L14 -> Realizar reportes asociados a cada uno de los 12 factores | O14: =+'Plan de Acción'!R14 -> 0 | P14: 0
J15: Entregar el documento maestro con fines de acreditación de alta calidad al CNA | N15: =+'Plan de Acción'!L16 -> Elaborar un informe que de cuenta de los avances e la universidad en el marco de lo solicitado por el CNA: | O15: =+'Plan de Acción'!R16 -> 1 | P15: 0
J16: Visitas pares colaborativos | N16: =+'Plan de Acción'!L17 -> Recibir de parte de pares amigos observaciones que nos permitan fortalecer el proceso. | O16: =+'Plan de Acción'!R17 -> 1 | P16: 0
D17: Meta 4 | E17: =VLOOKUP(D17,'[2]Lineamiento Estratégico'!$C$67:$D$108,2,FALSE) -> Aumentar en 28% el número de programas en todos los niveles y modalidades. | G17: 1.8 Consolidación y aumento de una oferta académica flexible que articule los diferentes niveles de formación desde el nivel básico hasta el superior | I17: Apoyar a las diferentes Facultades en la metodología, y lineaminetos para la creación de nuevos proyectos curriculares. | J17: Analizar y evaluar los documentos de registro calificado de los diferentes proyectos curriculares de pregrado y posgrado. | N17: =+'Plan de Acción'!#REF! ->  | O17: =+'Plan de Acción'!#REF! ->  | P17: 0
J18: Mantener y actualizar la información documental de carácter institucional de la Universidad Distrital y analizar la información pertinente de los distintos proyectos curriculares de pregrado y postgrado con fines de registros calificados. | N18: =+'Plan de Acción'!L18 -> Mantener los Registro Calificado atendiendo los lienamientos del MEN para la renovación de los mismos | O18: =+'Plan de Acción'!R18 -> 1 | P18: 0
J19: Capacitar y acompañar a los proyectos curriculares en los procesos administrativos relacionados con la autoevaluación y los registros calificados. | N19: =+'Plan de Acción'!L19 -> Contar con un documento guía para la elaboración de documentos maestros con fines de Registro Calificado por primera vez | O19: =+'Plan de Acción'!R19 -> 1 | P19: 0
J20: Apoyar la radicación de los documentos de registro calificado en la plataforma SACES MEN. | N20: =+'Plan de Acción'!L21 -> Capacitar a profesores y administrativos en los aspectos realcionados con autoevaluación, acreditación y RC en el marco del mejoramiento continuo. | O20: =+'Plan de Acción'!R21 -> 1 | P20: 0
N21: =+'Plan de Acción'!L22 -> Cumplir con los lineamientos del MEN en lo relacionado con informar de nuevas propuestas educativas para su evaluación | O21: =+'Plan de Acción'!R22 -> 1 | P21: 0
N22: =+'Plan de Acción'!#REF! ->  | O22: =+'Plan de Acción'!#REF! ->  | P22: 0
C23: Lineamiento 2. Establecer un diseño curricular dinámico y flexible que promueva el pluralismo y consolide una comunidad universitaria crítica-transformadora y en armonía ambiental. | D23: Meta 14 | E23: =VLOOKUP(D23,'[2]Lineamiento Estratégico'!$C$67:$D$108,2,FALSE) -> Evaluar, revisar y reformular la oferta curricular de pregrado y posgrado de cada facultad, en el marco de los procesos de autoevaluación continua y los proyectos educativos de las facultades. | G23: 2.1 Definición de lineamientos curriculares institucionales con enfoque crítico-transformador que fomenten el dialogo de saberes y conocimientos, la integración curricular, la pertinencia social, la flexibilidad, la interdisciplinariedad, la investigación curricular, la innovación y el uso de metodologías pertinentes a los diversos contextos | I23: Apoyar a los diferentes Proyectos Curriculares de las respectivas Facultades, en lo relacionado con la elaboración de Planes Maestros, revisión de documentos en lo referente a la obtención o renovación de registros calificados, obtención o renovación de acreditación de alta calidad. | J23: Colaborar en la elaboración de los documentos de renovación de registros calificados y renovación de acreditación de alta calidad.
J24: Estructurar y generar información de soporte sobre los factores, características e indicadores para los programas académicos de la facultad.
C25: Lineamiento 4. Garantizar, gestionar y proveer las condiciones institucionales para el cumplimiento de las funciones universitarias y el bienestar de su comunidad. | D25: Meta 28 | E25: =VLOOKUP(D25,'[2]Lineamiento Estratégico'!$C$67:$D$108,2,FALSE) -> Fortalecer las competencias de los servidores públicos al servicio de la institución, en beneficio del cumplimiento de las funciones institucionales. | G25: 4.8 Identificar los avances en materia de conocimiento científico, tecnológico y de innovación que inciden en la organización, gestión y productividad de los procesos institucionales. | I25: Capacitar al personal administrativo de la universidad que apoya los procesos de autoevaluación y acreditación
J26: Establecer las necesidades de capacitación
J27: Programar las capacitaciones

Sheet Lineamiento Estratégico (hidden)
C2: LINEAMIENTO ESTRATÉGICO
C4: Lineamiento 1. Formar ciudadanos, profesionales, investigadores, creadores e innovadores, íntegros con pensamiento crítico y cultura democrática, en contextos diferenciados inter y multiculturales para la transformación de la sociedad.
C5: Lineamiento 2. Establecer un diseño curricular dinámico y flexible que promueva el pluralismo y consolide una comunidad universitaria crítica-transformadora y en armonía ambiental.
C6: Lineamiento 3. Integrar las funciones universitarias por medio de la investigación, creación, innovación para la ampliación del conocimiento como bien público y para la solución de problemas de la ciudad -región y de la sociedad en general.
C7: Lineamiento 4. Garantizar, gestionar y proveer las condiciones institucionales para el cumplimiento de las funciones universitarias y el bienestar de su comunidad.
C8: Lineamiento 5. Consolidar y fortalecer la democracia participativa, la gobernanza y la gobernabilidad para la cohesión de la comunidad universitaria.
C10: ESTRATEGIAS
C17: 1.6 Articulación de la acción institucional con las políticas nacionales y distritales en materia de equidad, cobertura y calidad
C18: 1.7 Coherencia entre la proyección de la oferta académica institucional, los programas, los recursos humanos y físicos para mantener la calidad de la formación, la investigación, la creación y la innovación
E20: 2.9 Construcción de la política de integridad como parte del quehacer diario, que favorezca reflexiones, actitudes y comportamientos positivos de todos los servidores públicos, y que contribuya al cambio cultural.
E21: 2.10 Motivar la participación de la comunidad universitaria, especialmente de los estudiantes en el diagnóstico y consolidación de programas de bienestar
E24: 2.13 Crear un sistema de evaluación de los servicios de bienestar universitario.
G37: 104 programas evaluados al 100% | I37: Estar entre los cinco (5) primeros lugares del ranking | K37: Atender el crecimiento de la nueva cobertura (86.000 m2) | M37: Gobierno TI: 100% Estrategia TI: 100% Información: 100% Sistemas de información: 100% Servicios tecnológicos: 100% Uso y apropiación: 100%
E38: 32.000 estudiantes pregrado | G38: 0.7 | I38: 1 | K38: Cuatro (4) CRAI | M38: 1
E39: 4.904 estudiantes posgrado | G39: 0.7 | I39: 550 artículos | K39: Medición y seguimiento del desempeño laboral | M39: 100% de la documentación posible
E40: 104 programas | G40: 0.4 | I40: (3) Spin off (15) Startup | K40: 1 | M40: Participación: 100%
E41: 1 | G41: 0.9 | I41: 25 | K41: 980 | M41: 80%.
E42: 50% de proyectos enfocados a la proyección social | K42: 30% de las personas que laboran en la institución están en capacidad de interactuar con las personas en situación de discapacidad. | M42: Verificación de la vigencia del 100% de las normas
E43: 10 programas de formación | I43: 0.5 | K43: Al menos un descenso en el consumo de agua y electricidad en las sedes institucionales equivalente en 5% anual | M43: 100% Actualizado
E44: 0.2 | K44: 1
E45: 60% Estudiantes 80% Docentes | K45: 1
E46: 1,3% Estudiantes 5% Docentes | K46: •Materialización de riesgos de corrupción 0% • Racionalización de Trámites 100% • Rendición de Cuentas 100% • Mejorar la Atención al Ciudadano 100% • Mecanismos de transparencia y acceso a la información actualizados 100%
E48: 0.09
E49: De acuerdo con la proyección institucional y la Reforma Universitaria
C50: Meta1 | D50: Meta2 | E50: Meta3 | F50: Meta4 | G50: Meta5 | H50: Meta6 | I50: Meta7 | J50: Meta8 | K50: Meta9 | L50: Meta10 | M50: Meta11 | N50: Meta12 | O50: Meta13 | P50: Meta14 | Q50: Meta15 | R50: Meta16 | S50: Meta17 | T50: Meta18 | U50: Meta19 | V50: Meta20 | W50: Meta21 | X50: Meta22 | Y50: Meta23 | Z50: Meta24 | AA50: Meta25 | AB50: Meta26 | AC50: Meta27 | AD50: Meta28 | AE50: Meta29 | AF50: Meta30 | AG50: Meta31 | AH50: Meta32 | AI50: Meta33 | AJ50: Meta34 | AK50: Meta35 | AL50: Meta36 | AM50: Meta37 | AN50: Meta38 | AO50: Meta39 | AP50: Meta40 | AQ50: Meta41 | AR50: Meta42
C51: Mantener y elevar la acreditación institucional de alta calidad y alcanzar el reconocimiento internacional. | D51: Aumentar el 34% en el número de estudiantes de pregrado matriculados. | E51: Aumentar el 65% de estudiantes matriculados en posgrado | F51: Aumentar en 28% el número de programas en todos los niveles y modalidades | G51: Lograr homologación y transferencia del 100% de la oferta académica de la Universidad entre sus diferentes niveles de formación | H51: Lograr que los proyectos de extensión respondan a la interacción entre las problemáticas del entorno y los procesos de investigación, y que sus resultados vinculen e impacten comunidades de la ciudad región | I51: Aumentar la oferta en 10 programas de formación para el trabajo y desarrollo del talento humano en correspondencia con las necesidades de los sectores productivos y de servicios de la ciudad región. | J51: Lograr que 20% de la oferta académica de pregrado y posgrado permita la doble titulación o cotitulación. | K51: Lograr que el 60% de estudiantes tengan un dominio de una segunda lengua en un nivel equivalente a B2 y el 80% de los docentes en C1 | L51: Aumentar el índice de movilidad internacional anual mínimo al 1,3% de la población estudiantil y al 5% de la planta docente. | M51: Apoyar a estudiantes de los colegios distritales ubicados en el área de influencia de las sedes de la Universidad, con programas de fortalecimiento de competencias básicas en: matemáticas, ciencias naturales, lectura crítica e inglés. | N51: Disminuir la tasa de deserción anual a 9 %. | O51: Modernizar la organización académica y administrativa de la institución | P51: Evaluar, revisar y reformular la oferta curricular de pregrado y posgrado de cada facultad, en el marco de los procesos de autoevaluación continua y los proyectos educativos de las facultades | Q51: Aumentar la tasa de graduación en pregrados al 70% | R51: Lograr que el 70 %, de los docentes, manejen eficazmente tecnologías de la información y la comunicación. | S51: Lograr que el 40 % de los docentes de planta manejen lenguajes que permitan garantizar la atención de comunidades en el marco de la política de inclusión. | T51: Lograr el 90% de satisfacción entre los miembros de la comunidad universitaria frente a las expectativas del bienestar estudiantil y los programas que desde allí se ofrezcan. | U51: Clasificarse entre las 5 mejores IES colombianas según indicadores en investigación. | V51: Aumentar el porcentaje de revistas científicas indexadas al 100%. | W51: Aumentar la producción científica anual publicada en revistas indexadas | X51: Crear al menos 3 empresas spin-off, 15 empresas incubadas e institutos de investigación e innovación. | Y51: Incrementar los proyectos de cofinanciación externa en 45%, cuyos recursos provengan de organismos internacionales, los sistemas de ciencia tecnología e innovación; sistema nacional de regalías y, de aquellos en los que tengan interés las entidades estatales con capacidad de financiación. | Z51: Lograr el pleno apoyo a la investigación, la creación, la formación, la innovación y el incremento de la productividad y competitividad de las empresas de la ciudad región, por medio de convenios de cooperación con los diferentes sectores | AA51: Aumentar al 50 % el número de docentes con Doctorado. | AB51: Ampliar, mejorar y modernizar física, tecnológica y ambientalmente la infraestructura, esto de acuerdo con la proyección de la cobertura y las políticas de inclusión | AC51: Consolidar cuatro centros de recursos para el aprendizaje y la investigación -CRAI- | AD51: Fortalecer las competencias de los servidores públicos al servicio de la institución, en beneficio del cumplimiento de las funciones institucionales. | AE51: Aumentar al 100 % la vinculación de empleados administrativos conforme al sistema de carrera administrativa. | AF51: Aumentar el número de docentes de planta en un 45 % y disminuir la vinculación especial en un 10 % | AG51: Generar una cultura institucional que respete las diferencias y garantice el bienestar de las personas en situación de discapacidad. | AH51: Disminuir el uso de recursos en las sedes de la institución | AI51: Implementar los dominios identificados en el marco de referencia IT 4+ establecidos por MinTIC. | AJ51: Alcanzar la implementación del cuarto componente de Gobierno en Línea (Seguridad y privacidad de la información) | AK51: Lograr la calidad y disponibilidad del 100% de la información institucional, que no tenga restricción constitucional ni legal. | AL51: Implantar mecanismos de participación, de los diferentes estamentos, de la comunidad universitaria, en las instancias de planeación, gestión, seguimiento y evaluación de la Universidad. | AM51: Lograr un nivel de satisfacción mínimo del 80% por parte de las personas que utilizan los servicios de la Universidad. | AN51: Actualizar, compilar, depurar y difundir el 100% de las normas expedidas por las autoridades institucionales. | AO51: Actualizar, simplificar y flexibilizar anualmente la operación de los procesos institucionales en el cumplimiento de las funciones universitarias. | AP51: Establecer la adecuada asignación de funciones, competencias, seguridad jurídica y equilibrio institucional en la organización, gobierno y gestión de la Universidad. | AQ51: Conseguir la publicación oportuna y completa de toda la información relacionada con el principio de transparencia y derecho de acceso a información pública, de acuerdo con la Ley 1712 de 2014. | AR51: Lograr indicadores de cero corrupción en la gestión institucional
C52: 1.1 Difusión y apropiación del Proyecto Universitario Institucional. | D52: 1.5 Consolidación y aumento de una oferta académica flexible que articule los diferentes niveles de formación desde el nivel básico hasta el superior. | E52: 1.5 Consolidación y aumento de una oferta académica flexible que articule los diferentes niveles de formación desde el nivel básico hasta el superior. | F52: 1.8 Consolidación y aumento de una oferta académica flexible que articule los diferentes niveles de formación desde el nivel básico hasta el superior | G52: 1.8 Consolidación y aumento de una oferta académica flexible que articule los diferentes niveles de formación desde el nivel básico hasta el superior | H52: 1.9 Promoción del intercambio, la circulación y el diálogo de conocimientos y saberes, a través de encuentros multidisciplinarios de conocimiento | I52: 1.9 Promoción del intercambio, la circulación y el diálogo de conocimientos y saberes, a través de encuentros multidisciplinarios de conocimiento | J52: 1.12 Gestión y consolidación de relaciones nacionales e internacionales para fortalecer el intercambio académico, investigativo, de creación e innovación. | K52: 1.14 Establecer y desarrollar una política institucional de apropiación de la segunda lengua como parte activa de la gestión curricular, y como condición para la titulación y la evaluación. | L52: 1.15 Promover y consolidar convenios con universidades internacionales e incrementar los intercambios de estudiantes y docentes. | M52: 1.16 Desarrollar y fortalecer la participación de la Universidad en el desarrollo del sistema educativo distrital. | N52: 1.18 Estudio sobre el impacto de la articulación con el Sector Educativo Distrital en el acceso, la permanencia y la titulación. | O52: 1.22 Disponer de manera funcional y jerarquizada un orden adecuado de relaciones entre las facultades, las escuelas y los programas académicos, de acuerdo con el Estatuto General. | P52: 2.1 Definición de lineamientos curriculares institucionales con enfoque crítico-transformador que fomenten el dialogo de saberes y conocimientos, la integración curricular, la pertinencia social, la flexibilidad, la interdisciplinariedad, la investigación curricular, la innovación y el uso de metodologías pertinentes a los diversos contextos | Q52: 2.4 Desarrollo de programas e incentivos que favorezcan mejorar los índices de permanencia y repitencia. | R52: 2.7 Fortalecimiento de un modelo de formación docente continuo, que permita fomentar las dimensiones pedagógicas, didácticas, profesionales y humanas y los procesos de innovación pedagógica. | S52: 2.8 Consolidación de una evaluación integral del currículo que permita el diseño, implementación, seguimiento y retroalimentación del mismo; promueva la pertinencia social de los programas académicos, la formación integral de personas en situación de discapacidad, la especialización docente en nuevas metodologías y modalidades de enseñanza-aprendizaje; y propicie el aumento en la atención cualificada de poblaciones académicas específicas. | T52: 2.11 Construcción de una política cultural universitaria que propenda la diversidad de las expresiones artísticas, culturales, deportivas y el desarrollo de la pertenencia institucional. | U52: 3.1 Transferencia de resultados de investigación, creación e innovación institucionales para la solución de problemas de la sociedad. | V52: 3.3 Mejoramiento y cualificación de la producción y difusión científica y creativa, de tal manera que logren mayor presencia en el mundo académico | W52: 3.4 Definición y desarrollo de la agenda de investigación-innovación-creación institucional con la comunidad universitaria y con el apoyo de actores interesados, estableciendo mecanismos de participación de acuerdo con los contextos, saberes y conocimientos de los participantes. | X52: 3.9 Expedición de la reglamentación interna que defina el marco y las condiciones para la creación y la gestión de las empresas. | Y52: 3.11 Fortalecer los diálogos e intercambios con organismos internacionales, entidades estatales y sectores productivos. | Z52: 3.14 Creación y funcionamiento de un Centro de Innovación y Emprendimiento que contribuya a dar respuesta a las necesidades de los empresarios de la ciudad región, y promueva la articulación interdisciplinaria de servicios a los sectores económicos y la apropiación social del conocimiento como bien público. | AA52: 3.17 Consolidación de los planes de formación doctoral para docentes de planta. | AB52: 4.1 Elaborar y ejecutar el Plan Maestro de Espacios Educativos | AC52: 4.7 Creación e implementación del sistema CRAI (Centro de Recursos para el Aprendizaje y la Investigación) que articule los medios educativos de la Universidad. | AD52: 4.8 Identificar los avances en materia de conocimiento científico, tecnológico y de innovación que inciden en la organización, gestión y productividad de los procesos institucionales. | AE52: 4.11 Aumentar y cualificar la planta de empleos docentes y administrativos, en correspondencia con la organización interna, la proyección de cobertura y las condiciones institucionales. | AF52: 4.11 Aumentar y cualificar la planta de empleos docentes y administrativos, en correspondencia con la organización interna, la proyección de cobertura y las condiciones institucionales. | AG52: 4.13 Adecuar las instalaciones para garantizar el bienestar de las personas en situación de discapacidad. | AH52: 4.3 Promoción de la cultura de respeto por el ambiente y la sostenibilidad ambiental | AI52: 5.1 Garantizar tecnologías y canales digitales que permitan generar, procesar y acceder a información oportuna sobre las funciones universitarias, los procesos y procedimientos institucionales, el trámite de servicios, la recepción de solicitudes y la generación de respuestas pertinentes y satisfactorias. | AJ52: 5.2 Garantizar la divulgación de toda información pública generada por la Universidad; así como el control de la información pública clasificada y reservada que maneja la institución. | AK52: 5.2 Garantizar la divulgación de toda información pública generada por la Universidad; así como el control de la información pública clasificada y reservada que maneja la institución. | AL52: 5.3 Consolidación de mecanismos de democracia participativa, donde la comunidad universitaria se involucre en la toma decisiones y en las dinámicas propias de la institución | AM52: 5.6 Garantizar la recepción y respuesta al 100% de las peticiones, quejas y reclamos, a través de canales y medios que se ajusten a las necesidades y capacidades de las personas que los interponen. | AN52: 5.10 Fortalecimiento y ampliación de mecanismos que garanticen la eficiencia, eficacia y efectividad de las funciones universitarias; la transparencia y la ética en la toma de decisiones y en la operación institucional; y la seguridad jurídica institucional. | AO52: 5.10 Fortalecimiento y ampliación de mecanismos que garanticen la eficiencia, eficacia y efectividad de las funciones universitarias; la transparencia y la ética en la toma de decisiones y en la operación institucional; y la seguridad jurídica institucional. | AP52: 5.11 Revisión, actualización y modernización del Estatuto General y de las demás normas estatutarias requeridas para el cumplimiento de las funciones institucionales, con las debidas consultas a la comunidad universitaria. | AQ52: 5.12 Consolidación de sistemas de gestión, control, seguimiento, digitalización y acceso a la información, gestión documental, servicio en línea, trámites institucionales y atención a las personas. | AR52: 5.13 Estudiar, detectar, tratar y eliminar los riesgos de corrupción, motivando la participación de la comunidad universitaria y de la sociedad en la vigilancia de la gestión y la protección del patrimonio de la Universidad.
C53: 1.2 Desarrollar de manera permanente procesos de autoevaluación que se traduzcan en planes de mejoramiento continuo para programas de posgrado y pregrado. | H53: 1.10 Gestión de proyectos que promuevan la investigación y la proyección social como instrumentos de articulación de la Universidad con la sociedad. | I53: 1.10 Gestión de proyectos que promuevan la investigación y la proyección social como instrumentos de articulación de la Universidad con la sociedad. | J53: 1.13 Establecer y desarrollar un modelo de homologación y equivalencias entre los diferentes programas y las normas que lo reglamenten. | M53: 1.17 Articulación con autoridades del Sector Educativo, los colegios y sus estamentos, la comunidad y los sectores económicos, con el fin de evaluar, articular y consolidar los objetivos educacionales y los procesos de formación en investigación, creación, innovación y emprendimiento, para fomentar la comprensión y solución de problemas y la potenciación de capacidades hacia la transformación de la sociedad. | N53: 1.19 Fortalecimiento y creación de programas que fomenten la inclusión, la permanencia, la retención y la graduación | P53: 2.2 Estructuración de metodologías y estrategias de enseñanza - aprendizaje que favorezcan la construcción y resolución de situaciones problémicas | Q53: 2.5 Promoción de alternativas académicas que diversifiquen las modalidades de trabajos de grado. | T53: 2.12 Construcción de una cultura organizacional universitaria basada en la solidaridad y el respeto por lo público que permita promover la transparencia, la ética y la responsabilidad colectiva en el marco de la autonomía universitaria. | U53: 3.2 Definición y desarrollo de modelos de apropiación social del conocimiento, que posibiliten el intercambio y diálogo de saberes y conocimientos con los sectores sociales, productivos y culturales. | W53: 3.5 Formulación de una política de investigación que permita la creación de programas, proyectos, líneas y áreas de investigación que estimulen la producción científica, y la solución de problemas de la ciudad-región y del país. | X53: 3.10 Desarrollo de las actividades que aborden las problemáticas de los sectores productivos, e integren a la comunidad universitaria en la búsqueda de soluciones efectivas que respondan a las necesidades diagnosticadas | Y53: 3.12 Actualización y ajuste, a los intereses de la Universidad, del Estatuto de Propiedad Intelectual. | Z53: 3.15 Establecer alianzas estratégicas y apoyar los parques tecnológicos en las áreas de influencia de la Universidad. | AB53: 4.2 Desarrollo y actualización sostenible de la infraestructura universitaria de manera articulada entre las sedes de la Universidad; además con una relación amable y respetuosa con el ambiente. | AD53: 4.9 Conocer las necesidades que expresan los resultados de la evaluación del desempeño; determinar las observaciones de las auditorías, internas y externas sobre la gestión y sus resultados; y diagnosticar las necesidades de los servidores públicos en materia de conocimientos. | AE53: 4.12 Implementar estrategias orientadas a incentivar los ascensos en el escalafón de los docentes de carrera y docentes especiales | AF53: 4.12 Implementar estrategias orientadas a incentivar los ascensos en el escalafón de los docentes de carrera y docentes especiales | AG53: 4.14 Motivar el conocimiento de lenguajes y actividades interactivas entre los servidores de la entidad y las personas en situación de discapacidad | AL53: 5.4 Promover formas de organización, interacción y asociación de los estudiantes para su participación activa en los asuntos de la vida universitaria y de la sociedad | AM53: 5.7 Construir, ejecutar y evaluar periódicamente la estrategia de participación y rendición de cuentas.
C54: 1.3 Elevar el nivel de desempeño de los estudiantes en las pruebas Saber Pro. | H54: 1.11 Promoción de encuentros y articulación con el sector productivo a fin de responder a sus demandas y generar sinergia en la difusión y apropiación del conocimiento. | I54: 1.11 Promoción de encuentros y articulación con el sector productivo a fin de responder a sus demandas y generar sinergia en la difusión y apropiación del conocimiento. | N54: 1.20 Desarrollo del Sistema de Bienestar universitario integral, que mejore las condiciones de los miembros de la comunidad universitaria, con altos estándares de calidad | P54: 2.3 Construcción e implementación de una reforma curricular participativa, integral y flexible que fomente la integración de las funciones universitarias y los campos, articule los niveles de formación y promueva la internacionalización de los planes de estudios | Q54: 2.6 Adoptar y desarrollar un programa de admisión y permanencia que permita un tránsito flexible en la malla curricular y las posibilidades de titulación, cotitulación y doble titulación. | W54: 3.6 Consolidar y cualificar los grupos y semilleros de investigación | Y54: 3.13 Incrementar el número de doctores que participan en el desarrollo de acciones encaminadas a la apropiación social del conocimiento. | Z54: 3.16 Concertar acciones de investigación, formación y asesoría con las empresas de los sectores productivos de la ciudad-región | AB54: 4.3 Promoción de la cultura de respeto por el ambiente y la sostenibilidad ambiental | AD54: 4.10 Construcción de una cultura organizacional universitaria basada en la solidaridad y el respeto por lo público que permita promover la transparencia, la ética y la responsabilidad colectiva en el marco de la autonomía universitaria | AL54: 5.5 Adelantar diálogos con las diferentes representaciones de la sociedad civil, las agencias de cooperación, el sector privado y la academia para cualificar el proceso de rendición pública de cuentas. | AM54: 5.8 Implementar un sistema integrado de comunicaciones que permita gestionar, articular y medir su impacto en la publicidad, difusión, acceso y apropiación de la información para favorecer la visibilidad institucional nacional e internacionalmente.
C55: 1.4 Adopción de mecanismos que permitan mayor equidad y disminución de las diferencias en las condiciones laborales de los docentes. | K55: 9 | N55: 1.21 Promoción de la comprensión y el análisis sobre las condiciones, creencias y alternativas de proyección de los intereses de los estudiantes sobre su futuro, su situación socioeconómica y la visión que les ofrece la Universidad. | W55: 3.7 Creación de redes de investigación, nacionales e internacionales; y promover las membresías pertinentes. | AB55: 4.4 Desarrollo y consolidación de un campus digital que conecte a las distintas dependencias académicas y administrativas y que supere las distancias territoriales entre las distintas sedes de la Universidad. | AD55: 4.5 Fortalecimiento de un sistema integral de información institucional que garantice su disponibilidad y la memoria institucional | AM55: 5.9 Estudiar las causas por las cuales se producen las peticiones, quejas y reclamos y adoptar mecanismos que permitan el mejoramiento continuo en la prestación de los servicios.
C56: 1 | D56: 2 | E56: 3 | H56: 6 | U56: 19 | W56: 3.8 Promover la categorización de grupos de investigación en las convocatorias que para efecto se reglamenten. | AB56: 4.6 Favorecer los indicadores de área por estudiante para el desarrollo de la actividad curricular.
C57: 1 | D57: 2 | E57: 3 | F57: 4 | G57: 5 | H57: 6 | I57: 7 | J57: 8 | K57: 9 | L57: 10 | M57: 11 | N57: 12 | O57: 13 | P57: 14 | Q57: 15 | R57: 16 | S57: 17 | T57: 18 | U57: 19 | V57: 20 | W57: 21 | X57: 22 | Y57: 23 | Z57: 24 | AA57: 25 | AB57: 26 | AC57: 27 | AD57: 28 | AE57: 29 | AF57: 30 | AG57: 31 | AH57: 32 | AI57: 33 | AJ57: 34 | AK57: 35 | AL57: 36 | AM57: 37 | AN57: 38 | AO57: 39 | AP57: 40 | AQ57: 41 | AR57: 42
C61: Meta 1 | D61: Meta 2 | E61: Meta 3 | F61: Meta 4 | G61: Meta 5 | H61: Meta 6 | I61: Meta 7 | J61: Meta 8 | K61: Meta 9 | L61: Meta 10 | M61: Meta 11 | N61: Meta 12 | O61: Meta 13 | P61: Meta 14 | Q61: Meta 15 | R61: Meta 16 | S61: Meta 17 | T61: Meta 18 | U61: Meta 19 | V61: Meta 20 | W61: Meta 21 | X61: Meta 22 | Y61: Meta 23 | Z61: Meta 24 | AA61: Meta 25 | AB61: Meta 26 | AC61: Meta 27 | AD61: Meta 28 | AE61: Meta 29 | AF61: Meta 30 | AG61: Meta 31 | AH61: Meta 32 | AI61: Meta 33 | AJ61: Meta 34 | AK61: Meta 35 | AL61: Meta 36 | AM61: Meta 37 | AN61: Meta 38 | AO61: Meta 39 | AP61: Meta 40 | AQ61: Meta 41 | AR61: Meta 42
C62: 1.1 Difusión y apropiación del Proyecto Universitario Institucional. | D62: 1.5 Consolidación y aumento de una oferta académica flexible que articule los diferentes niveles de formación desde el nivel básico hasta el superior. | E62: 1.5 Consolidación y aumento de una oferta académica flexible que articule los diferentes niveles de formación desde el nivel básico hasta el superior. | F62: 1.8 Consolidación y aumento de una oferta académica flexible que articule los diferentes niveles de formación desde el nivel básico hasta el superior | G62: 1.8 Consolidación y aumento de una oferta académica flexible que articule los diferentes niveles de formación desde el nivel básico hasta el superior | H62: 1.9 Promoción del intercambio, la circulación y el diálogo de conocimientos y saberes, a través de encuentros multidisciplinarios de conocimiento | I62: 1.9 Promoción del intercambio, la circulación y el diálogo de conocimientos y saberes, a través de encuentros multidisciplinarios de conocimiento | J62: 1.12 Gestión y consolidación de relaciones nacionales e internacionales para fortalecer el intercambio académico, investigativo, de creación e innovación. | K62: 1.14 Establecer y desarrollar una política institucional de apropiación de la segunda lengua como parte activa de la gestión curricular, y como condición para la titulación y la evaluación. | L62: 1.15 Promover y consolidar convenios con universidades internacionales e incrementar los intercambios de estudiantes y docentes. | M62: 1.16 Desarrollar y fortalecer la participación de la Universidad en el desarrollo del sistema educativo distrital. | N62: 1.18 Estudio sobre el impacto de la articulación con el Sector Educativo Distrital en el acceso, la permanencia y la titulación. | O62: 1.22 Disponer de manera funcional y jerarquizada un orden adecuado de relaciones entre las facultades, las escuelas y los programas académicos, de acuerdo con el Estatuto General. | P62: 2.1 Definición de lineamientos curriculares institucionales con enfoque crítico-transformador que fomenten el dialogo de saberes y conocimientos, la integración curricular, la pertinencia social, la flexibilidad, la interdisciplinariedad, la investigación curricular, la innovación y el uso de metodologías pertinentes a los diversos contextos | Q62: 2.4 Desarrollo de programas e incentivos que favorezcan mejorar los índices de permanencia y repitencia. | R62: 2.7 Fortalecimiento de un modelo de formación docente continuo, que permita fomentar las dimensiones pedagógicas, didácticas, profesionales y humanas y los procesos de innovación pedagógica. | S62: 2.8 Consolidación de una evaluación integral del currículo que permita el diseño, implementación, seguimiento y retroalimentación del mismo; promueva la pertinencia social de los programas académicos, la formación integral de personas en situación de discapacidad, la especialización docente en nuevas metodologías y modalidades de enseñanza-aprendizaje; y propicie el aumento en la atención cualificada de poblaciones académicas específicas. | T62: 2.11 Construcción de una política cultural universitaria que propenda la diversidad de las expresiones artísticas, culturales, deportivas y el desarrollo de la pertenencia institucional. | U62: 3.1 Transferencia de resultados de investigación, creación e innovación institucionales para la solución de problemas de la sociedad. | V62: 3.3 Mejoramiento y cualificación de la producción y difusión científica y creativa, de tal manera que logren mayor presencia en el mundo académico | W62: 3.4 Definición y desarrollo de la agenda de investigación-innovación-creación institucional con la comunidad universitaria y con el apoyo de actores interesados, estableciendo mecanismos de participación de acuerdo con los contextos, saberes y conocimientos de los participantes. | X62: 3.9 Expedición de la reglamentación interna que defina el marco y las condiciones para la creación y la gestión de las empresas. | Y62: 3.11 Fortalecer los diálogos e intercambios con organismos internacionales, entidades estatales y sectores productivos. | Z62: 3.14 Creación y funcionamiento de un Centro de Innovación y Emprendimiento que contribuya a dar respuesta a las necesidades de los empresarios de la ciudad región, y promueva la articulación interdisciplinaria de servicios a los sectores económicos y la apropiación social del conocimiento como bien público. | AA62: 3.17 Consolidación de los planes de formación doctoral para docentes de planta. | AB62: 4.1 Elaborar y ejecutar el Plan Maestro de Espacios Educativos | AC62: 4.7 Creación e implementación del sistema CRAI (Centro de Recursos para el Aprendizaje y la Investigación) que articule los medios educativos de la Universidad. | AD62: 4.8 Identificar los avances en materia de conocimiento científico, tecnológico y de innovación que inciden en la organización, gestión y productividad de los procesos institucionales. | AE62: 4.11 Aumentar y cualificar la planta de empleos docentes y administrativos, en correspondencia con la organización interna, la proyección de cobertura y las condiciones institucionales. | AF62: 4.11 Aumentar y cualificar la planta de empleos docentes y administrativos, en correspondencia con la organización interna, la proyección de cobertura y las condiciones institucionales. | AG62: 4.13 Adecuar las instalaciones para garantizar el bienestar de las personas en situación de discapacidad. | AH62: 4.3 Promoción de la cultura de respeto por el ambiente y la sostenibilidad ambiental | AI62: 5.1 Garantizar tecnologías y canales digitales que permitan generar, procesar y acceder a información oportuna sobre las funciones universitarias, los procesos y procedimientos institucionales, el trámite de servicios, la recepción de solicitudes y la generación de respuestas pertinentes y satisfactorias. | AJ62: 5.2 Garantizar la divulgación de toda información pública generada por la Universidad; así como el control de la información pública clasificada y reservada que maneja la institución. | AK62: 5.2 Garantizar la divulgación de toda información pública generada por la Universidad; así como el control de la información pública clasificada y reservada que maneja la institución. | AL62: 5.3 Consolidación de mecanismos de democracia participativa, donde la comunidad universitaria se involucre en la toma decisiones y en las dinámicas propias de la institución | AM62: 5.6 Garantizar la recepción y respuesta al 100% de las peticiones, quejas y reclamos, a través de canales y medios que se ajusten a las necesidades y capacidades de las personas que los interponen. | AN62: 5.10 Fortalecimiento y ampliación de mecanismos que garanticen la eficiencia, eficacia y efectividad de las funciones universitarias; la transparencia y la ética en la toma de decisiones y en la operación institucional; y la seguridad jurídica institucional. | AO62: 5.10 Fortalecimiento y ampliación de mecanismos que garanticen la eficiencia, eficacia y efectividad de las funciones universitarias; la transparencia y la ética en la toma de decisiones y en la operación institucional; y la seguridad jurídica institucional. | AP62: 5.11 Revisión, actualización y modernización del Estatuto General y de las demás normas estatutarias requeridas para el cumplimiento de las funciones institucionales, con las debidas consultas a la comunidad universitaria. | AQ62: 5.12 Consolidación de sistemas de gestión, control, seguimiento, digitalización y acceso a la información, gestión documental, servicio en línea, trámites institucionales y atención a las personas. | AR62: 5.13 Estudiar, detectar, tratar y eliminar los riesgos de corrupción, motivando la participación de la comunidad universitaria y de la sociedad en la vigilancia de la gestión y la protección del patrimonio de la Universidad.
C63: 1.2 Desarrollar de manera permanente procesos de autoevaluación que se traduzcan en planes de mejoramiento continuo para programas de posgrado y pregrado. | H63: 1.10 Gestión de proyectos que promuevan la investigación y la proyección social como instrumentos de articulación de la Universidad con la sociedad. | I63: 1.10 Gestión de proyectos que promuevan la investigación y la proyección social como instrumentos de articulación de la Universidad con la sociedad. | J63: 1.13 Establecer y desarrollar un modelo de homologación y equivalencias entre los diferentes programas y las normas que lo reglamenten. | M63: 1.17 Articulación con autoridades del Sector Educativo, los colegios y sus estamentos, la comunidad y los sectores económicos, con el fin de evaluar, articular y consolidar los objetivos educacionales y los procesos de formación en investigación, creación, innovación y emprendimiento, para fomentar la comprensión y solución de problemas y la potenciación de capacidades hacia la transformación de la sociedad. | N63: 1.19 Fortalecimiento y creación de programas que fomenten la inclusión, la permanencia, la retención y la graduación | P63: 2.2 Estructuración de metodologías y estrategias de enseñanza - aprendizaje que favorezcan la construcción y resolución de situaciones problémicas | Q63: 2.5 Promoción de alternativas académicas que diversifiquen las modalidades de trabajos de grado. | T63: 2.12 Construcción de una cultura organizacional universitaria basada en la solidaridad y el respeto por lo público que permita promover la transparencia, la ética y la responsabilidad colectiva en el marco de la autonomía universitaria. | U63: 3.2 Definición y desarrollo de modelos de apropiación social del conocimiento, que posibiliten el intercambio y diálogo de saberes y conocimientos con los sectores sociales, productivos y culturales. | W63: 3.5 Formulación de una política de investigación que permita la creación de programas, proyectos, líneas y áreas de investigación que estimulen la producción científica, y la solución de problemas de la ciudad-región y del país. | X63: 3.10 Desarrollo de las actividades que aborden las problemáticas de los sectores productivos, e integren a la comunidad universitaria en la búsqueda de soluciones efectivas que respondan a las necesidades diagnosticadas | Y63: 3.12 Actualización y ajuste, a los intereses de la Universidad, del Estatuto de Propiedad Intelectual. | Z63: 3.15 Establecer alianzas estratégicas y apoyar los parques tecnológicos en las áreas de influencia de la Universidad. | AB63: 4.2 Desarrollo y actualización sostenible de la infraestructura universitaria de manera articulada entre las sedes de la Universidad; además con una relación amable y respetuosa con el ambiente. | AD63: 4.9 Conocer las necesidades que expresan los resultados de la evaluación del desempeño; determinar las observaciones de las auditorías, internas y externas sobre la gestión y sus resultados; y diagnosticar las necesidades de los servidores públicos en materia de conocimientos. | AE63: 4.12 Implementar estrategias orientadas a incentivar los ascensos en el escalafón de los docentes de carrera y docentes especiales | AF63: 4.12 Implementar estrategias orientadas a incentivar los ascensos en el escalafón de los docentes de carrera y docentes especiales | AG63: 4.14 Motivar el conocimiento de lenguajes y actividades interactivas entre los servidores de la entidad y las personas en situación de discapacidad | AL63: 5.4 Promover formas de organización, interacción y asociación de los estudiantes para su participación activa en los asuntos de la vida universitaria y de la sociedad | AM63: 5.7 Construir, ejecutar y evaluar periódicamente la estrategia de participación y rendición de cuentas.
C64: 1.3 Elevar el nivel de desempeño de los estudiantes en las pruebas Saber Pro. | H64: 1.11 Promoción de encuentros y articulación con el sector productivo a fin de responder a sus demandas y generar sinergia en la difusión y apropiación del conocimiento. | I64: 1.11 Promoción de encuentros y articulación con el sector productivo a fin de responder a sus demandas y generar sinergia en la difusión y apropiación del conocimiento. | N64: 1.20 Desarrollo del Sistema de Bienestar universitario integral, que mejore las condiciones de los miembros de la comunidad universitaria, con altos estándares de calidad | P64: 2.3 Construcción e implementación de una reforma curricular participativa, integral y flexible que fomente la integración de las funciones universitarias y los campos, articule los niveles de formación y promueva la internacionalización de los planes de estudios | Q64: 2.6 Adoptar y desarrollar un programa de admisión y permanencia que permita un tránsito flexible en la malla curricular y las posibilidades de titulación, cotitulación y doble titulación. | W64: 3.6 Consolidar y cualificar los grupos y semilleros de investigación | Y64: 3.13 Incrementar el número de doctores que participan en el desarrollo de acciones encaminadas a la apropiación social del conocimiento. | Z64: 3.16 Concertar acciones de investigación, formación y asesoría con las empresas de los sectores productivos de la ciudad-región | AB64: 4.3 Promoción de la cultura de respeto por el ambiente y la sostenibilidad ambiental | AD64: 4.10 Construcción de una cultura organizacional universitaria basada en la solidaridad y el respeto por lo público que permita promover la transparencia, la ética y la responsabilidad colectiva en el marco de la autonomía universitaria | AL64: 5.5 Adelantar diálogos con las diferentes representaciones de la sociedad civil, las agencias de cooperación, el sector privado y la academia para cualificar el proceso de rendición pública de cuentas. | AM64: 5.8 Implementar un sistema integrado de comunicaciones que permita gestionar, articular y medir su impacto en la publicidad, difusión, acceso y apropiación de la información para favorecer la visibilidad institucional nacional e internacionalmente.
C65: 1.4 Adopción de mecanismos que permitan mayor equidad y disminución de las diferencias en las condiciones laborales de los docentes. | K65: 9 | N65: 1.21 Promoción de la comprensión y el análisis sobre las condiciones, creencias y alternativas de proyección de los intereses de los estudiantes sobre su futuro, su situación socioeconómica y la visión que les ofrece la Universidad. | W65: 3.7 Creación de redes de investigación, nacionales e internacionales; y promover las membresías pertinentes. | AB65: 4.4 Desarrollo y consolidación de un campus digital que conecte a las distintas dependencias académicas y administrativas y que supere las distancias territoriales entre las distintas sedes de la Universidad. | AD65: 4.5 Fortalecimiento de un sistema integral de información institucional que garantice su disponibilidad y la memoria institucional | AM65: 5.9 Estudiar las causas por las cuales se producen las peticiones, quejas y reclamos y adoptar mecanismos que permitan el mejoramiento continuo en la prestación de los servicios.
W66: 3.8 Promover la categorización de grupos de investigación en las convocatorias que para efecto se reglamenten. | AB66: 4.6 Favorecer los indicadores de área por estudiante para el desarrollo de la actividad curricular.
C67: Meta 1 | D67: Mantener y elevar la acreditación institucional de alta calidad y alcanzar el reconocimiento internacional.
C68: Meta 2 | D68: Aumentar el 34% en el número de estudiantes de pregrado matriculados.
C69: Meta 3 | D69: Aumentar el 65% de estudiantes matriculados en posgrado.
C70: Meta 4 | D70: Aumentar en 28% el número de programas en todos los niveles y modalidades.
C71: Meta 5 | D71: Lograr homologación y transferencia del 100% de la oferta académica de la Universidad entre sus diferentes niveles de formación.
C72: Meta 6 | D72: Lograr que los proyectos de extensión respondan a la interacción entre las problemáticas del entorno y los procesos de investigación, y que sus resultados vinculen e impacten comunidades de la ciudad región
C73: Meta 7 | D73: Aumentar la oferta en 10 programas de formación para el trabajo y desarrollo del talento humano en correspondencia con las necesidades de los sectores productivos y de servicios de la ciudad región.
C74: Meta 8 | D74: Lograr que 20% de la oferta académica de pregrado y posgrado permita la doble titulación o cotitulación.
C75: Meta 9 | D75: Lograr que el 60% de estudiantes tengan un dominio de una segunda lengua en un nivel equivalente a B2 y el 80% de los docentes en C1
C76: Meta 10 | D76: Aumentar el índice de movilidad internacional anual mínimo al 1,3% de la población estudiantil y al 5% de la planta docente.
C77: Meta 11 | D77: Apoyar a estudiantes de los colegios distritales ubicados en el área de influencia de las sedes de la Universidad, con programas de fortalecimiento de competencias básicas en: matemáticas, ciencias naturales, lectura crítica e inglés.
C78: Meta 12 | D78: Disminuir la tasa de deserción anual a 9 %.
C79: Meta 13 | D79: Modernizar la organización académica y administrativa de la institución.
C80: Meta 14 | D80: Evaluar, revisar y reformular la oferta curricular de pregrado y posgrado de cada facultad, en el marco de los procesos de autoevaluación continua y los proyectos educativos de las facultades.
C81: Meta 15 | D81: Aumentar la tasa de graduación en pregrados al 70%
C82: Meta 16 | D82: Lograr que el 70 %, de los docentes, manejen eficazmente tecnologías de la información y la comunicación.
C83: Meta 17 | D83: Lograr que el 40 % de los docentes de planta manejen lenguajes que permitan garantizar la atención de comunidades en el marco de la política de inclusión.
C84: Meta 18 | D84: Lograr el 90% de satisfacción entre los miembros de la comunidad universitaria frente a las expectativas del bienestar estudiantil y los programas que desde allí se ofrezcan.
C85: Meta 19 | D85: Clasificarse entre las 5 mejores IES colombianas según indicadores en investigación
C86: Meta 20 | D86: Aumentar el porcentaje de revistas científicas indexadas al 100%.
C87: Meta 21 | D87: Aumentar la producción científica anual publicada en revistas indexadas
C88: Meta 22 | D88: Crear al menos 3 empresas spin-off, 15 empresas incubadas e institutos de investigación e innovación.
C89: Meta 23 | D89: Incrementar los proyectos de cofinanciación externa en 45%, cuyos recursos provengan de organismos internacionales, los sistemas de ciencia tecnología e innovación; sistema nacional de regalías y, de aquellos en los que tengan interés las entidades estatales con capacidad de financiación.
C90: Meta 24 | D90: Lograr el pleno apoyo a la investigación, la creación, la formación, la innovación y el incremento de la productividad y competitividad de las empresas de la ciudad región, por medio de convenios de cooperación con los diferentes sectores.
C91: Meta 25 | D91: Aumentar al 50 % el número de docentes con Doctorado
C92: Meta 26 | D92: Ampliar, mejorar y modernizar física, tecnológica y ambientalmente la infraestructura, esto de acuerdo con la proyección de la cobertura y las políticas de inclusión
C93: Meta 27 | D93: Consolidar cuatro centros de recursos para el aprendizaje y la investigación -CRAI-.
C94: Meta 28 | D94: Fortalecer las competencias de los servidores públicos al servicio de la institución, en beneficio del cumplimiento de las funciones institucionales.
C95: Meta 29 | D95: Aumentar al 100 % la vinculación de empleados administrativos conforme al sistema de carrera administrativa.
C96: Meta 30 | D96: Aumentar el número de docentes de planta en un 45 % y disminuir la vinculación especial en un 10 %
C97: Meta 31 | D97: Generar una cultura institucional que respete las diferencias y garantice el bienestar de las personas en situación de discapacidad.
C98: Meta 32 | D98: Disminuir el uso de recursos en las sedes de la institución
C99: Meta 33 | D99: Implementar los dominios identificados en el marco de referencia IT 4+ establecidos por MinTIC.
C100: Meta 34 | D100: Alcanzar la implementación del cuarto componente de Gobierno en Línea (Seguridad y privacidad de la información)
C101: Meta 35 | D101: Lograr la calidad y disponibilidad del 100% de la información institucional, que no tenga restricción constitucional ni legal.
C102: Meta 36 | D102: Implantar mecanismos de participación, de los diferentes estamentos, de la comunidad universitaria, en las instancias de planeación, gestión, seguimiento y evaluación de la Universidad.
C103: Meta 37 | D103: Lograr un nivel de satisfacción mínimo del 80% por parte de las personas que utilizan los servicios de la Universidad
C104: Meta 38 | D104: Actualizar, compilar, depurar y difundir el 100% de las normas expedidas por las autoridades institucionales.
C105: Meta 39 | D105: Actualizar, simplificar y flexibilizar anualmente la operación de los procesos institucionales en el cumplimiento de las funciones universitarias.
C106: Meta 40 | D106: Establecer la adecuada asignación de funciones, competencias, seguridad jurídica y equilibrio institucional en la organización, gobierno y gestión de la Universidad.
C107: Meta 41 | D107: Conseguir la publicación oportuna y completa de toda la información relacionada con el principio de transparencia y derecho de acceso a información pública, de acuerdo con la Ley 1712 de 2014.
C108: Meta 42 | D108: Lograr indicadores de cero corrupción en la gestión institucional.
C114: Mantener y elevar la acreditación institucional de alta calidad y alcanzar el reconocimiento internacional. | D114: 1.1 Difusión y apropiación del Proyecto Universitario Institucional.
D115: 1.2 Desarrollar de manera permanente procesos de autoevaluación que se traduzcan en planes de mejoramiento continuo para programas de posgrado y pregrado.
D116: 1.3 Elevar el nivel de desempeño de los estudiantes en las pruebas Saber Pro.
D117: 1.4 Adopción de mecanismos que permitan mayor equidad y disminución de las diferencias en las condiciones laborales de los docentes.
C118: Aumentar el 34% en el número de estudiantes de pregrado matriculados. | D118: 1.5 Consolidación y aumento de una oferta académica flexible que articule los diferentes niveles de formación desde el nivel básico hasta el superior.
C119: Aumentar el 65% de estudiantes matriculados en posgrado | D119: 1.5 Consolidación y aumento de una oferta académica flexible que articule los diferentes niveles de formación desde el nivel básico hasta el superior.
C120: Aumentar en 28% el número de programas en todos los niveles y modalidades | D120: 1.8 Consolidación y aumento de una oferta académica flexible que articule los diferentes niveles de formación desde el nivel básico hasta el superior
C121: Lograr homologación y transferencia del 100% de la oferta académica de la Universidad entre sus diferentes niveles de formación | D121: 1.8 Consolidación y aumento de una oferta académica flexible que articule los diferentes niveles de formación desde el nivel básico hasta el superior
C122: Lograr que los proyectos de extensión respondan a la interacción entre las problemáticas del entorno y los procesos de investigación, y que sus resultados vinculen e impacten comunidades de la ciudad región | D122: 1.9 Promoción del intercambio, la circulación y el diálogo de conocimientos y saberes, a través de encuentros multidisciplinarios de conocimiento
D123: 1.10 Gestión de proyectos que promuevan la investigación y la proyección social como instrumentos de articulación de la Universidad con la sociedad.
D124: 1.11 Promoción de encuentros y articulación con el sector productivo a fin de responder a sus demandas y generar sinergia en la difusión y apropiación del conocimiento.
C125: Aumentar la oferta en 10 programas de formación para el trabajo y desarrollo del talento humano en correspondencia con las necesidades de los sectores productivos y de servicios de la ciudad región. | D125: 1.9 Promoción del intercambio, la circulación y el diálogo de conocimientos y saberes, a través de encuentros multidisciplinarios de conocimiento
D126: 1.10 Gestión de proyectos que promuevan la investigación y la proyección social como instrumentos de articulación de la Universidad con la sociedad.
D127: 1.11 Promoción de encuentros y articulación con el sector productivo a fin de responder a sus demandas y generar sinergia en la difusión y apropiación del conocimiento.
C128: Lograr que 20% de la oferta académica de pregrado y posgrado permita la doble titulación o cotitulación. | D128: 1.12 Gestión y consolidación de relaciones nacionales e internacionales para fortalecer el intercambio académico, investigativo, de creación e innovación.
D129: 1.13 Establecer y desarrollar un modelo de homologación y equivalencias entre los diferentes programas y las normas que lo reglamenten.
C130: Lograr que el 60% de estudiantes tengan un dominio de una segunda lengua en un nivel equivalente a B2 y el 80% de los docentes en C1 | D130: 1.14 Establecer y desarrollar una política institucional de apropiación de la segunda lengua como parte activa de la gestión curricular, y como condición para la titulación y la evaluación.
C131: Aumentar el índice de movilidad internacional anual mínimo al 1,3% de la población estudiantil y al 5% de la planta docente. | D131: 1.15 Promover y consolidar convenios con universidades internacionales e incrementar los intercambios de estudiantes y docentes.
C132: Apoyar a estudiantes de los colegios distritales ubicados en el área de influencia de las sedes de la Universidad, con programas de fortalecimiento de competencias básicas en: matemáticas, ciencias naturales, lectura crítica e inglés. | D132: 1.16 Desarrollar y fortalecer la participación de la Universidad en el desarrollo del sistema educativo distrital.
D133: 1.17 Articulación con autoridades del Sector Educativo, los colegios y sus estamentos, la comunidad y los sectores económicos, con el fin de evaluar, articular y consolidar los objetivos educacionales y los procesos de formación en investigación, creación, innovación y emprendimiento, para fomentar la comprensión y solución de problemas y la potenciación de capacidades hacia la transformación de la sociedad.
C134: Disminuir la tasa de deserción anual a 9 %. | D134: 1.18 Estudio sobre el impacto de la articulación con el Sector Educativo Distrital en el acceso, la permanencia y la titulación.
D135: 1.19 Fortalecimiento y creación de programas que fomenten la inclusión, la permanencia, la retención y la graduación
D136: 1.20 Desarrollo del Sistema de Bienestar universitario integral, que mejore las condiciones de los miembros de la comunidad universitaria, con altos estándares de calidad
D137: 1.21 Promoción de la comprensión y el análisis sobre las condiciones, creencias y alternativas de proyección de los intereses de los estudiantes sobre su futuro, su situación socioeconómica y la visión que les ofrece la Universidad.
C138: Modernizar la organización académica y administrativa de la institución | D138: 1.22 Disponer de manera funcional y jerarquizada un orden adecuado de relaciones entre las facultades, las escuelas y los programas académicos, de acuerdo con el Estatuto General.
C139: Evaluar, revisar y reformular la oferta curricular de pregrado y posgrado de cada facultad, en el marco de los procesos de autoevaluación continua y los proyectos educativos de las facultades | D139: 2.1 Definición de lineamientos curriculares institucionales con enfoque crítico-transformador que fomenten el dialogo de saberes y conocimientos, la integración curricular, la pertinencia social, la flexibilidad, la interdisciplinariedad, la investigación curricular, la innovación y el uso de metodologías pertinentes a los diversos contextos
D140: 2.2 Estructuración de metodologías y estrategias de enseñanza - aprendizaje que favorezcan la construcción y resolución de situaciones problémicas
D141: 2.3 Construcción e implementación de una reforma curricular participativa, integral y flexible que fomente la integración de las funciones universitarias y los campos, articule los niveles de formación y promueva la internacionalización de los planes de estudios
C142: Aumentar la tasa de graduación en pregrados al 70% | D142: 2.4 Desarrollo de programas e incentivos que favorezcan mejorar los índices de permanencia y repitencia.
D143: 2.5 Promoción de alternativas académicas que diversifiquen las modalidades de trabajos de grado.
D144: 2.6 Adoptar y desarrollar un programa de admisión y permanencia que permita un tránsito flexible en la malla curricular y las posibilidades de titulación, cotitulación y doble titulación.
C145: Lograr que el 70 %, de los docentes, manejen eficazmente tecnologías de la información y la comunicación. | D145: 2.7 Fortalecimiento de un modelo de formación docente continuo, que permita fomentar las dimensiones pedagógicas, didácticas, profesionales y humanas y los procesos de innovación pedagógica.
C146: Lograr que el 40 % de los docentes de planta manejen lenguajes que permitan garantizar la atención de comunidades en el marco de la política de inclusión. | D146: 2.8 Consolidación de una evaluación integral del currículo que permita el diseño, implementación, seguimiento y retroalimentación del mismo; promueva la pertinencia social de los programas académicos, la formación integral de personas en situación de discapacidad, la especialización docente en nuevas metodologías y modalidades de enseñanza-aprendizaje; y propicie el aumento en la atención cualificada de poblaciones académicas específicas.
C147: Lograr el 90% de satisfacción entre los miembros de la comunidad universitaria frente a las expectativas del bienestar estudiantil y los programas que desde allí se ofrezcan. | D147: 2.11 Construcción de una política cultural universitaria que propenda la diversidad de las expresiones artísticas, culturales, deportivas y el desarrollo de la pertenencia institucional.
D148: 2.12 Construcción de una cultura organizacional universitaria basada en la solidaridad y el respeto por lo público que permita promover la transparencia, la ética y la responsabilidad colectiva en el marco de la autonomía universitaria.
C149: Clasificarse entre las 5 mejores IES colombianas según indicadores en investigación. | D149: 3.1 Transferencia de resultados de investigación, creación e innovación institucionales para la solución de problemas de la sociedad.
D150: 3.2 Definición y desarrollo de modelos de apropiación social del conocimiento, que posibiliten el intercambio y diálogo de saberes y conocimientos con los sectores sociales, productivos y culturales.
C151: Aumentar el porcentaje de revistas científicas indexadas al 100%. | D151: 3.3 Mejoramiento y cualificación de la producción y difusión científica y creativa, de tal manera que logren mayor presencia en el mundo académico
C152: Aumentar la producción científica anual publicada en revistas indexadas | D152: 3.4 Definición y desarrollo de la agenda de investigación-innovación-creación institucional con la comunidad universitaria y con el apoyo de actores interesados, estableciendo mecanismos de participación de acuerdo con los contextos, saberes y conocimientos de los participantes.
D153: 3.5 Formulación de una política de investigación que permita la creación de programas, proyectos, líneas y áreas de investigación que estimulen la producción científica, y la solución de problemas de la ciudad-región y del país.
D154: 3.6 Consolidar y cualificar los grupos y semilleros de investigación
D155: 3.7 Creación de redes de investigación, nacionales e internacionales; y promover las membresías pertinentes.
D156: 3.8 Promover la categorización de grupos de investigación en las convocatorias que para efecto se reglamenten.
C157: Crear al menos 3 empresas spin-off, 15 empresas incubadas e institutos de investigación e innovación. | D157: 3.9 Expedición de la reglamentación interna que defina el marco y las condiciones para la creación y la gestión de las empresas.
D158: 3.10 Desarrollo de las actividades que aborden las problemáticas de los sectores productivos, e integren a la comunidad universitaria en la búsqueda de soluciones efectivas que respondan a las necesidades diagnosticadas
C159: Incrementar los proyectos de cofinanciación externa en 45%, cuyos recursos provengan de organismos internacionales, los sistemas de ciencia tecnología e innovación; sistema nacional de regalías y, de aquellos en los que tengan interés las entidades estatales con capacidad de financiación. | D159: 3.11 Fortalecer los diálogos e intercambios con organismos internacionales, entidades estatales y sectores productivos.
D160: 3.12 Actualización y ajuste, a los intereses de la Universidad, del Estatuto de Propiedad Intelectual.
D161: 3.13 Incrementar el número de doctores que participan en el desarrollo de acciones encaminadas a la apropiación social del conocimiento.
C162: Lograr el pleno apoyo a la investigación, la creación, la formación, la innovación y el incremento de la productividad y competitividad de las empresas de la ciudad región, por medio de convenios de cooperación con los diferentes sectores | D162: 3.14 Creación y funcionamiento de un Centro de Innovación y Emprendimiento que contribuya a dar respuesta a las necesidades de los empresarios de la ciudad región, y promueva la articulación interdisciplinaria de servicios a los sectores económicos y la apropiación social del conocimiento como bien público.
D163: 3.15 Establecer alianzas estratégicas y apoyar los parques tecnológicos en las áreas de influencia de la Universidad.
D164: 3.16 Concertar acciones de investigación, formación y asesoría con las empresas de los sectores productivos de la ciudad-región
C165: Aumentar al 50 % el número de docentes con Doctorado. | D165: 3.17 Consolidación de los planes de formación doctoral para docentes de planta.
C166: Ampliar, mejorar y modernizar física, tecnológica y ambientalmente la infraestructura, esto de acuerdo con la proyección de la cobertura y las políticas de inclusión | D166: 4.1 Elaborar y ejecutar el Plan Maestro de Espacios Educativos
D167: 4.2 Desarrollo y actualización sostenible de la infraestructura universitaria de manera articulada entre las sedes de la Universidad; además con una relación amable y respetuosa con el ambiente.
D168: 4.3 Promoción de la cultura de respeto por el ambiente y la sostenibilidad ambiental
D169: 4.4 Desarrollo y consolidación de un campus digital que conecte a las distintas dependencias académicas y administrativas y que supere las distancias territoriales entre las distintas sedes de la Universidad.
D170: 4.6 Favorecer los indicadores de área por estudiante para el desarrollo de la actividad curricular.
C171: Consolidar cuatro centros de recursos para el aprendizaje y la investigación -CRAI- | D171: 4.7 Creación e implementación del sistema CRAI (Centro de Recursos para el Aprendizaje y la Investigación) que articule los medios educativos de la Universidad.
C172: Fortalecer las competencias de los servidores públicos al servicio de la institución, en beneficio del cumplimiento de las funciones institucionales. | D172: 4.8 Identificar los avances en materia de conocimiento científico, tecnológico y de innovación que inciden en la organización, gestión y productividad de los procesos institucionales.
D173: 4.9 Conocer las necesidades que expresan los resultados de la evaluación del desempeño; determinar las observaciones de las auditorías, internas y externas sobre la gestión y sus resultados; y diagnosticar las necesidades de los servidores públicos en materia de conocimientos.
D174: 4.10 Construcción de una cultura organizacional universitaria basada en la solidaridad y el respeto por lo público que permita promover la transparencia, la ética y la responsabilidad colectiva en el marco de la autonomía universitaria
D175: 4.5 Fortalecimiento de un sistema integral de información institucional que garantice su disponibilidad y la memoria institucional
C176: Aumentar al 100 % la vinculación de empleados administrativos conforme al sistema de carrera administrativa. | D176: 4.11 Aumentar y cualificar la planta de empleos docentes y administrativos, en correspondencia con la organización interna, la proyección de cobertura y las condiciones institucionales.
D177: 4.12 Implementar estrategias orientadas a incentivar los ascensos en el escalafón de los docentes de carrera y docentes especiales
C178: Aumentar el número de docentes de planta en un 45 % y disminuir la vinculación especial en un 10 % | D178: 4.11 Aumentar y cualificar la planta de empleos docentes y administrativos, en correspondencia con la organización interna, la proyección de cobertura y las condiciones institucionales.
D179: 4.12 Implementar estrategias orientadas a incentivar los ascensos en el escalafón de los docentes de carrera y docentes especiales
C180: Generar una cultura institucional que respete las diferencias y garantice el bienestar de las personas en situación de discapacidad. | D180: 4.13 Adecuar las instalaciones para garantizar el bienestar de las personas en situación de discapacidad.
D181: 4.14 Motivar el conocimiento de lenguajes y actividades interactivas entre los servidores de la entidad y las personas en situación de discapacidad
C182: Disminuir el uso de recursos en las sedes de la institución | D182: 4.3 Promoción de la cultura de respeto por el ambiente y la sostenibilidad ambiental
C183: Implementar los dominios identificados en el marco de referencia IT 4+ establecidos por MinTIC. | D183: 5.1 Garantizar tecnologías y canales digitales que permitan generar, procesar y acceder a información oportuna sobre las funciones universitarias, los procesos y procedimientos institucionales, el trámite de servicios, la recepción de solicitudes y la generación de respuestas pertinentes y satisfactorias.
C184: Alcanzar la implementación del cuarto componente de Gobierno en Línea (Seguridad y privacidad de la información) | D184: 5.2 Garantizar la divulgación de toda información pública generada por la Universidad; así como el control de la información pública clasificada y reservada que maneja la institución.
C185: Lograr la calidad y disponibilidad del 100% de la información institucional, que no tenga restricción constitucional ni legal. | D185: 5.2 Garantizar la divulgación de toda información pública generada por la Universidad; así como el control de la información pública clasificada y reservada que maneja la institución.
C186: Implantar mecanismos de participación, de los diferentes estamentos, de la comunidad universitaria, en las instancias de planeación, gestión, seguimiento y evaluación de la Universidad. | D186: 5.3 Consolidación de mecanismos de democracia participativa, donde la comunidad universitaria se involucre en la toma decisiones y en las dinámicas propias de la institución
D187: 5.4 Promover formas de organización, interacción y asociación de los estudiantes para su participación activa en los asuntos de la vida universitaria y de la sociedad
D188: 5.5 Adelantar diálogos con las diferentes representaciones de la sociedad civil, las agencias de cooperación, el sector privado y la academia para cualificar el proceso de rendición pública de cuentas.
C189: Lograr un nivel de satisfacción mínimo del 80% por parte de las personas que utilizan los servicios de la Universidad. | D189: 5.6 Garantizar la recepción y respuesta al 100% de las peticiones, quejas y reclamos, a través de canales y medios que se ajusten a las necesidades y capacidades de las personas que los interponen.
D190: 5.7 Construir, ejecutar y evaluar periódicamente la estrategia de participación y rendición de cuentas.
D191: 5.8 Implementar un sistema integrado de comunicaciones que permita gestionar, articular y medir su impacto en la publicidad, difusión, acceso y apropiación de la información para favorecer la visibilidad institucional nacional e internacionalmente.
D192: 5.9 Estudiar las causas por las cuales se producen las peticiones, quejas y reclamos y adoptar mecanismos que permitan el mejoramiento continuo en la prestación de los servicios.
C193: Actualizar, compilar, depurar y difundir el 100% de las normas expedidas por las autoridades institucionales. | D193: 5.10 Fortalecimiento y ampliación de mecanismos que garanticen la eficiencia, eficacia y efectividad de las funciones universitarias; la transparencia y la ética en la toma de decisiones y en la operación institucional; y la seguridad jurídica institucional.
C194: Actualizar, simplificar y flexibilizar anualmente la operación de los procesos institucionales en el cumplimiento de las funciones universitarias. | D194: 5.10 Fortalecimiento y ampliación de mecanismos que garanticen la eficiencia, eficacia y efectividad de las funciones universitarias; la transparencia y la ética en la toma de decisiones y en la operación institucional; y la seguridad jurídica institucional.
C195: Establecer la adecuada asignación de funciones, competencias, seguridad jurídica y equilibrio institucional en la organización, gobierno y gestión de la Universidad. | D195: 5.11 Revisión, actualización y modernización del Estatuto General y de las demás normas estatutarias requeridas para el cumplimiento de las funciones institucionales, con las debidas consultas a la comunidad universitaria.
C196: Conseguir la publicación oportuna y completa de toda la información relacionada con el principio de transparencia y derecho de acceso a información pública, de acuerdo con la Ley 1712 de 2014. | D196: 5.12 Consolidación de sistemas de gestión, control, seguimiento, digitalización y acceso a la información, gestión documental, servicio en línea, trámites institucionales y atención a las personas.
C197: Lograr indicadores de cero corrupción en la gestión institucional | D197: 5.13 Estudiar, detectar, tratar y eliminar los riesgos de corrupción, motivando la participación de la comunidad universitaria y de la sociedad en la vigilancia de la gestión y la protección del patrimonio de la Universidad.

Sheet Estrategías (hidden)
B3: 1.1:Difusión y apropiación del Proyecto Universitario Institucional. | D3: 2.1: Definición de lineamientos curriculares institucionales con enfoque crítico-transformador que fomenten el dialogo de saberes y conocimientos, la integración curricular, la pertinencia social, la flexibilidad, la interdisciplinariedad, la investigación curricular, la innovación y el uso de metodologías pertinentes a los diversos contextos | F3: 3.1: Transferencia de resultados de investigación, creación e innovación institucionales para la solución de problemas de la sociedad. | H3: 4.1:Elaborar y ejecutar el Plan Maestro de Espacios Educativos | J3: 5.1:Garantizar tecnologías y canales digitales que permitan generar, procesar y acceder a información oportuna sobre las funciones universitarias, los procesos y procedimientos institucionales, el trámite de servicios, la recepción de solicitudes y la generación de respuestas pertinentes y satisfactorias.
B4: 1.2: Desarrollar de manera permanente procesos de autoevaluación que se traduzcan en planes de mejoramiento continuo para programas de posgrado y pregrado. | D4: 2.2:Estructuración de metodologías y estrategias de enseñanza - aprendizaje que favorezcan la construcción y resolución de situaciones problémicas | F4: 3.2:Definición y desarrollo de modelos de apropiación social del conocimiento, que posibiliten el intercambio y diálogo de saberes y conocimientos con los sectores sociales, productivos y culturales. | H4: 4.2: Desarrollo y actualización sostenible de la infraestructura universitaria de manera articulada entre las sedes de la Universidad; además con una relación amable y respetuosa con el ambiente. | J4: 5.2:Garantizar la divulgación de toda información pública generada por la Universidad; así como el control de la información pública clasificada y reservada que maneja la institución.
B5: 1.3:.Elevar el nivel de desempeño de los estudiantes en las pruebas Saber Pro. | D5: 2.3:Construcción e implementación de una reforma curricular participativa, integral y flexible que fomente la integración de las funciones universitarias y los campos, articule los niveles de formación y promueva la internacionalización de los planes de estudios | F5: 3.3:Mejoramiento y cualificación de la producción y difusión científica y creativa, de tal manera que logren mayor presencia en el mundo académico | H5: 4.3: Promoción de la cultura de respeto por el ambiente y la sostenibilidad ambiental | J5: 5.3:Consolidación de mecanismos de democracia participativa, donde la comunidad universitaria se involucre en la toma decisiones y en las dinámicas propias de la institución
B6: 1.4: Adopción de mecanismos que permitan mayor equidad y disminución de las diferencias en las condiciones laborales de los docentes. | D6: 2.4:Desarrollo de programas e incentivos que favorezcan mejorar los índices de permanencia y repitencia. | F6: 3.4:Definición y desarrollo de la agenda de investigación-innovación-creación institucional con la comunidad universitaria y con el apoyo de actores interesados, estableciendo mecanismos de participación de acuerdo con los contextos, saberes y conocimientos de los participantes. | H6: 4.4: Desarrollo y consolidación de un campus digital que conecte a las distintas dependencias académicas y administrativas y que supere las distancias territoriales entre las distintas sedes de la Universidad. | J6: 5.4:Promover formas de organización, interacción y asociación de los estudiantes para su participación activa en los asuntos de la vida universitaria y de la sociedad
B7: 1.5:Consolidación y aumento de una oferta académica flexible que articule los diferentes niveles de formación desde el nivel básico hasta el superior. | D7: 2.5: Promoción de alternativas académicas que diversifiquen las modalidades de trabajos de grado. | F7: 3.5:Formulación de una política de investigación que permita la creación de programas, proyectos, líneas y áreas de investigación que estimulen la producción científica, y la solución de problemas de la ciudad-región y del país. | H7: 4.5: Fortalecimiento de un sistema integral de información institucional que garantice su disponibilidad y la memoria institucional | J7: 5.5: Adelantar diálogos con las diferentes representaciones de la sociedad civil, las agencias de cooperación, el sector privado y la academia para cualificar el proceso de rendición pública de cuentas.
B8: 1.6:Articulación de la acción institucional con las políticas nacionales y distritales en materia de equidad, cobertura y calidad | D8: 2.6:Adoptar y desarrollar un programa de admisión y permanencia que permita un tránsito flexible en la malla curricular y las posibilidades de titulación, cotitulación y doble titulación. | F8: 3.6: Consolidar y cualificar los grupos y semilleros de investigación | H8: 4.6: Favorecer los indicadores de área por estudiante para el desarrollo de la actividad curricular. | J8: 5.6: Garantizar la recepción y respuesta al 100% de las peticiones, quejas y reclamos, a través de canales y medios que se ajusten a las necesidades y capacidades de las personas que los interponen.
B9: 1.7: Coherencia entre la proyección de la oferta académica institucional, los programas, los recursos humanos y físicos para mantener la calidad de la formación, la investigación, la creación y la innovación | D9: 2.7: Fortalecimiento de un modelo de formación docente continuo, que permita fomentar las dimensiones pedagógicas, didácticas, profesionales y humanas y los procesos de innovación pedagógica. | F9: 3.7:Creación de redes de investigación, nacionales e internacionales; y promover las membresías pertinentes. | H9: 4.7: Creación e implementación del sistema CRAI (Centro de Recursos para el Aprendizaje y la Investigación) que articule los medios educativos de la Universidad. | J9: 5.7: Construir, ejecutar y evaluar periódicamente la estrategia de participación y rendición de cuentas.
B10: 1.8: Consolidación y aumento de una oferta académica flexible que articule los diferentes niveles de formación desde el nivel básico hasta el superior | D10: 2.8: Consolidación de una evaluación integral del currículo que permita el diseño, implementación, seguimiento y retroalimentación del mismo; promueva la pertinencia social de los programas académicos, la formación integral de personas en situación de discapacidad, la especialización docente en nuevas metodologías y modalidades de enseñanza-aprendizaje; y propicie el aumento en la atención cualificada de poblaciones académicas específicas. | F10: 3.8: Promover la categorización de grupos de investigación en las convocatorias que para efecto se reglamenten. | H10: 4.8: Identificar los avances en materia de conocimiento científico, tecnológico y de innovación que inciden en la organización, gestión y productividad de los procesos institucionales. | J10: 5.8: Implementar un sistema integrado de comunicaciones que permita gestionar, articular y medir su impacto en la publicidad, difusión, acceso y apropiación de la información para favorecer la visibilidad institucional nacional e internacionalmente.
B11: 1.9:Promoción del intercambio, la circulación y el diálogo de conocimientos y saberes, a través de encuentros multidisciplinarios de conocimiento | D11: 2.9: Construcción de la política de integridad como parte del quehacer diario, que favorezca reflexiones, actitudes y comportamientos positivos de todos los servidores públicos, y que contribuya al cambio cultural. | F11: 3.9: Expedición de la reglamentación interna que defina el marco y las condiciones para la creación y la gestión de las empresas. | H11: 4.9: Conocer las necesidades que expresan los resultados de la evaluación del desempeño; determinar las observaciones de las auditorías, internas y externas sobre la gestión y sus resultados; y diagnosticar las necesidades de los servidores públicos en materia de conocimientos. | J11: 5.9: Estudiar las causas por las cuales se producen las peticiones, quejas y reclamos y adoptar mecanismos que permitan el mejoramiento continuo en la prestación de los servicios.
B12: 1.10: Gestión de proyectos que promuevan la investigación y la proyección social como instrumentos de articulación de la Universidad con la sociedad. | D12: 2.10: Motivar la participación de la comunidad universitaria, especialmente de los estudiantes en el diagnóstico y consolidación de programas de bienestar | F12: 3.10: Desarrollo de las actividades que aborden las problemáticas de los sectores productivos, e integren a la comunidad universitaria en la búsqueda de soluciones efectivas que respondan a las necesidades diagnosticadas | H12: 4.10: Construcción de una cultura organizacional universitaria basada en la solidaridad y el respeto por lo público que permita promover la transparencia, la ética y la responsabilidad colectiva en el marco de la autonomía universitaria | J12: 5.10:Fortalecimiento y ampliación de mecanismos que garanticen la eficiencia, eficacia y efectividad de las funciones universitarias; la transparencia y la ética en la toma de decisiones y en la operación institucional; y la seguridad jurídica institucional.
B13: 1.11: Promoción de encuentros y articulación con el sector productivo a fin de responder a sus demandas y generar sinergia en la difusión y apropiación del conocimiento. | D13: 2.11:Construcción de una política cultural universitaria que propenda la diversidad de las expresiones artísticas, culturales, deportivas y el desarrollo de la pertenencia institucional. | F13: 3.11: Fortalecer los diálogos e intercambios con organismos internacionales, entidades estatales y sectores productivos. | H13: 4.11:Aumentar y cualificar la planta de empleos docentes y administrativos, en correspondencia con la organización interna, la proyección de cobertura y las condiciones institucionales. | J13: 5.11: Revisión, actualización y modernización del Estatuto General y de las demás normas estatutarias requeridas para el cumplimiento de las funciones institucionales, con las debidas consultas a la comunidad universitaria.
B14: 1.12: Gestión y consolidación de relaciones nacionales e internacionales para fortalecer el intercambio académico, investigativo, de creación e innovación. | D14: 2.12: Construcción de una cultura organizacional universitaria basada en la solidaridad y el respeto por lo público que permita promover la transparencia, la ética y la responsabilidad colectiva en el marco de la autonomía universitaria. | F14: 3.12: Actualización y ajuste, a los intereses de la Universidad, del Estatuto de Propiedad Intelectual. | H14: 4.12: Implementar estrategias orientadas a incentivar los ascensos en el escalafón de los docentes de carrera y docentes especiales | J14: 5.12: Consolidación de sistemas de gestión, control, seguimiento, digitalización y acceso a la información, gestión documental, servicio en línea, trámites institucionales y atención a las personas.
B15: 1.13: Establecer y desarrollar un modelo de homologación y equivalencias entre los diferentes programas y las normas que lo reglamenten. | D15: 2.13: Crear un sistema de evaluación de los servicios de bienestar universitario. | F15: 3.13: Incrementar el número de doctores que participan en el desarrollo de acciones encaminadas a la apropiación social del conocimiento. | H15: 4.13: Adecuar las instalaciones para garantizar el bienestar de las personas en situación de discapacidad. | J15: 5.13: Estudiar, detectar, tratar y eliminar los riesgos de corrupción, motivando la participación de la comunidad universitaria y de la sociedad en la vigilancia de la gestión y la protección del patrimonio de la Universidad.
B16: 1.14: Establecer y desarrollar una política institucional de apropiación de la segunda lengua como parte activa de la gestión curricular, y como condición para la titulación y la evaluación. | F16: 3.14: Creación y funcionamiento de un Centro de Innovación y Emprendimiento que contribuya a dar respuesta a las necesidades de los empresarios de la ciudad región, y promueva la articulación interdisciplinaria de servicios a los sectores económicos y la apropiación social del conocimiento como bien público. | H16: 4.14:Motivar el conocimiento de lenguajes y actividades interactivas entre los servidores de la entidad y las personas en situación de discapacidad | J16: 5.1:Garantizar tecnologías y canales digitales que permitan generar, procesar y acceder a información oportuna sobre las funciones universitarias, los procesos y procedimientos institucionales, el trámite de servicios, la recepción de solicitudes y la generación de respuestas pertinentes y satisfactorias.
B17: 1.15:Promover y consolidar convenios con universidades internacionales e incrementar los intercambios de estudiantes y docentes. | F17: 3.15: Establecer alianzas estratégicas y apoyar los parques tecnológicos en las áreas de influencia de la Universidad. | J17: 5.2:Garantizar la divulgación de toda información pública generada por la Universidad; así como el control de la información pública clasificada y reservada que maneja la institución.
B18: 1.16: Desarrollar y fortalecer la participación de la Universidad en el desarrollo del sistema educativo distrital. | F18: 3.16: Concertar acciones de investigación, formación y asesoría con las empresas de los sectores productivos de la ciudad-región | J18: 5.3:Consolidación de mecanismos de democracia participativa, donde la comunidad universitaria se involucre en la toma decisiones y en las dinámicas propias de la institución
B19: 1.17: Articulación con autoridades del Sector Educativo, los colegios y sus estamentos, la comunidad y los sectores económicos, con el fin de evaluar, articular y consolidar los objetivos educacionales y los procesos de formación en investigación, creación, innovación y emprendimiento, para fomentar la comprensión y solución de problemas y la potenciación de capacidades hacia la transformación de la sociedad. | J19: 5.4:Promover formas de organización, interacción y asociación de los estudiantes para su participación activa en los asuntos de la vida universitaria y de la sociedad
B20: 1.18: Estudio sobre el impacto de la articulación con el Sector Educativo Distrital en el acceso, la permanencia y la titulación. | J20: 5.5: Adelantar diálogos con las diferentes representaciones de la sociedad civil, las agencias de cooperación, el sector privado y la academia para cualificar el proceso de rendición pública de cuentas.
B21: 1.19: Fortalecimiento y creación de programas que fomenten la inclusión, la permanencia, la retención y la graduación | J21: 5.6: Garantizar la recepción y respuesta al 100% de las peticiones, quejas y reclamos, a través de canales y medios que se ajusten a las necesidades y capacidades de las personas que los interponen.
B22: 1.20: Desarrollo del Sistema de Bienestar universitario integral, que mejore las condiciones de los miembros de la comunidad universitaria, con altos estándares de calidad | J22: 5.7: Construir, ejecutar y evaluar periódicamente la estrategia de participación y rendición de cuentas.
B23: 1.21: Promoción de la comprensión y el análisis sobre las condiciones, creencias y alternativas de proyección de los intereses de los estudiantes sobre su futuro, su situación socioeconómica y la visión que les ofrece la Universidad. | J23: 5.8: Implementar un sistema integrado de comunicaciones que permita gestionar, articular y medir su impacto en la publicidad, difusión, acceso y apropiación de la información para favorecer la visibilidad institucional nacional e internacionalmente.
B24: 1.22: Disponer de manera funcional y jerarquizada un orden adecuado de relaciones entre las facultades, las escuelas y los programas académicos, de acuerdo con el Estatuto General. | J24: 5.9: Estudiar las causas por las cuales se producen las peticiones, quejas y reclamos y adoptar mecanismos que permitan el mejoramiento continuo en la prestación de los servicios.
J25: 5.10:Fortalecimiento y ampliación de mecanismos que garanticen la eficiencia, eficacia y efectividad de las funciones universitarias; la transparencia y la ética en la toma de decisiones y en la operación institucional; y la seguridad jurídica institucional.
J26: 5.11: Revisión, actualización y modernización del Estatuto General y de las demás normas estatutarias requeridas para el cumplimiento de las funciones institucionales, con las debidas consultas a la comunidad universitaria.
J27: 5.12: Consolidación de sistemas de gestión, control, seguimiento, digitalización y acceso a la información, gestión documental, servicio en línea, trámites institucionales y atención a las personas.
J28: 5.13: Estudiar, detectar, tratar y eliminar los riesgos de corrupción, motivando la participación de la comunidad universitaria y de la sociedad en la vigilancia de la gestión y la protección del patrimonio de la Universidad.

Sheet Recursos (hidden)
D1: Concepto | E1: Valor
A2: 1 | B2: RECURSOS | D2: =CONCATENATE(A2," ",B2,) -> 1 RECURSOS
A3: 1.1 | B3: HUMANOS | D3: =CONCATENATE(A3," ",B3,) -> 1.1 HUMANOS
A4: 1.2 | B4: DOCENTES | D4: 1.2 DOCENTES
A5: 1.2.2 | B5: Vinculación especial | D5: 1.2.2 Vinculación especial | G5: CATEGORIA | H5: VALOR HORA CATEDRA | I5: VALOR MENSUAL MEDIO TIEMPO OCASIONAL | J5: VALOR MENSUAL TIEMPO COMPLETO OCASIONAL | K5: VALOR HORA POSGRADO EXTERNOS | L5: VALOR HORA POSGRADO INTERNOS
A6: 1.2.2.1 | B6: Tiempo Completo Ocasional | D6: 1.2.2.1 Tiempo Completo Ocasional | G6: AUXILIAR | H6: 33625.08 | I6: 1980143.6 | J6: 3960287.2 | K6: 0 | L6: 0
A7: 1.2.2.1.1 | B7: Auxiliar TCO | D7: 1.2.2.1.1 Auxiliar TCO | E7: =+I6*9 -> 17821292.4 | G7: ASISTENTE | H7: 42965.38 | I7: 3157021.4 | J7: 6314042.8 | K7: 140096.9248 | L7: 172426.9843 | O7: LISTAF | P7: LISTAD | S7: Rubro
A8: 1.2.2.1.2 | B8: Asistente TCO | D8: 1.2.2.1.2 Asistente TCO | E8: =+I7*9 -> 28413192.6 | G8: ASOCIADO | H8: 50437.62 | I8: 3549314 | J8: 7098628 | K8: 172426.9843 | L8: 204757.0439 | O8: 1.2.1 Docentes Medio Tiempo Ocasional | P8: 1.2.5.1.1 CPS Profesional Especializado | S8: Profesores Cátedra y Ocasionales
A9: 1.2.2.1.3 | B9: Titular TCO | D9: 1.2.2.1.3 Titular TCO | E9: =+I9*9 -> 35474459.4 | G9: TITULAR | H9: 56041.8 | I9: 3941606.6 | J9: 7883213.2 | K9: 215533.7304 | L9: 237087.1035 | O9: 1.2.2 Docentes Tiempo Completo Ocasional | P9: 1.2.5.1. CPS
A10: 1.2.2.1.4 | B10: Asociado TCO | D10: 1.2.2.1.4 Asociado TCO | E10: =+I8*9 -> 31943826 | O10: 1.2.3 Horas Catedras | P10: 4 Capacitación Administrativos
A11: 1.2.2.2 | B11: Medio Tiempo Ocasional | D11: 1.2.2.2 Medio Tiempo Ocasional | O11: 1.2.5.1. CPS | P11: 6 Eventos
A12: 1.2.2.2.1 | B12: Auxiliar MTO | D12: 1.2.2.2.1 Auxiliar MTO | E12: =+J6*10 -> 39602872 | O12: 1.2.6 Asistentes Académicos e Investigativos | P12: 8 Mantenimientos y Reparaciones
A13: 1.2.2.2.2 | B13: Asistente MTO | D13: 1.2.2.2.2 Asistente MTO | E13: =+J7*10 -> 63140428 | O13: 2 Afiliación, Asociaciones Afines | P13: 9 Otros
A14: 1.2.2.2.3 | B14: Titular MTO | D14: 1.2.2.2.3 Titular MTO | E14: =+J9*10 -> 78832132 | O14: 3 Capacitación Docente
A15: 1.2.2.2.4 | B15: Asociado MTO | D15: 1.2.2.2.4 Asociado MTO | E15: =+J8*10 -> 70986280 | O15: 4 Capacitación Administrativos
A16: 1.2.2.3 | B16: Hora Catedra | D16: 1.2.2.3 Hora Catedra | O16: 5 Eventos Académicos | S16: Asistentes Académicos
A17: 1.2.2.3.1 | B17: Auxiliar HC | D17: 1.2.2.3.1 Auxiliar HC | E17: 33625.08 | O17: 6 Eventos | S17: Afiliación Asociaciones Afines
A18: 1.2.2.3.2 | B18: Asistente HC | D18: 1.2.2.3.2 Asistente HC | E18: 42965.38 | O18: 7 Prácticas Académicas | S18: Capacitación Docentes
A19: 1.2.2.3.3 | B19: Titular HC | D19: 1.2.2.3.3 Titular HC | E19: 56041.8 | O19: 8 Mantenimientos y Reparaciones | S19: Capacitación
A20: 1.2.2.3.4 | B20: Asociado HC | D20: 1.2.2.3.4 Asociado HC | E20: 42965.38 | O20: 9 Otros | S20: Eventos Académicos
A21: 1.2.2.4 | B21: Docentes Hora Catedra Externos (posgrados) | D21: 1.2.2.4 Docentes Hora Catedra Externos (posgrados) | S21: Eventos
A22: 1.2.2.4.1 | B22: Auxiliar HCH | D22: 1.2.2.4.1 Auxiliar HCH | E22: 0 | S22: Prácticas Académicas
A23: 1.2.2.4.2 | B23: Asistente HCE | D23: 1.2.2.4.2 Asistente HCE | E23: 140096.9248 | S23: Mantenimientos y Reparaciones
A24: 1.2.2.4.3 | B24: Titular HCE | D24: 1.2.2.4.3 Titular HCE | E24: 215533.7304 | S24: Impresos y Publicaciónes Administrativos | T24: Materiales y Suministros
A25: 1.2.2.4.4 | B25: Asociado HCE | D25: 1.2.2.4.4 Asociado HCE | E25: 172426.9843
A26: 1.2.2.5 | B26: Profesores Hora Catedra Internos (posgrados) | D26: 1.2.2.5 Profesores Hora Catedra Internos (posgrados)
A27: 1.2.2.5.1 | B27: Auxiliar HCI | D27: 1.2.2.5.1 Auxiliar HCI | E27: 0
A28: 1.2.2.5.2 | B28: Asistente HCI | D28: 1.2.2.5.2 Asistente HCI | E28: 172426.9843
A29: 1.2.2.5.3 | B29: Titular HCI | D29: 1.2.2.5.3 Titular HCI | E29: 237087.1035
A30: 1.2.2.5.4 | B30: Asociado HCI | D30: 1.2.2.5.4 Asociado HCI | E30: 204757.0439
A31: 1.2.3 | B31: Administrativos | D31: 1.2.3 Administrativos
A32: 1.2.5.1 | B32: CPS | D32: 1.2.5.1 CPS
A33: 1.2.5.1.1 | B33: Profesional Especializado | D33: 1.2.5.1.1 Profesional Especializado | E33: 4935900
A34: 1.2.5.1.2 | B34: Profesional | D34: 1.2.5.1.2 Profesional | E34: 3784190
A35: 1.2.5.1.3 | B35: Tecnicos | D35: 1.2.5.1.3 Tecnicos | E35: 2467950
A36: 1.2.5.1.4 | B36: Asistenciales | D36: 1.2.5.1.4 Asistenciales | E36: 1892095
A37: 1.2.5.1.7 | B37: Talleristas | D37: 1.2.5.1.7 Talleristas
A38: 1.2.5.1.8 | B38: Asesor I | D38: 1.2.5.1.8 Asesor I | E38: 6581200
A39: 1.2.5.1.9 | B39: Asesor II | D39: 1.2.5.1.9 Asesor II | E39: 8061970
A40: 1.2.6 | B40: ASISTENTES ACADEMICOS E INVESTIGATIVOS | D40: 1.2.6 ASISTENTES ACADEMICOS E INVESTIGATIVOS
A41: 2 | B41: AFILIACIÓN, ASOCIACIONES AFINES | D41: 2 AFILIACIÓN, ASOCIACIONES AFINES
A42: 3 | B42: CAPACITACION DOCENTE | D42: 3 CAPACITACION DOCENTE
A43: 3.1 | B43: Seminario | D43: 3.1 Seminario
A44: 3.2 | B44: Taller | D44: =CONCATENATE(A44," ",B44,) -> 3.2 Taller
A45: 3.3 | B45: Simposio | D45: =CONCATENATE(A45," ",B45,) -> 3.3 Simposio
A46: 3.4 | B46: Otras actividades | D46: =CONCATENATE(A46," ",B46,) -> 3.4 Otras actividades
A47: 3.5 | B47: Congresos | D47: =CONCATENATE(A47," ",B47,) -> 3.5 Congresos
A48: 4 | B48: EVENTOS ACADEMICOS | D48: =CONCATENATE(A48," ",B48,) -> 4 EVENTOS ACADEMICOS
A57: 1 | B57: RECURSOS | D57: 1 RECURSOS
A58: 1.1 | B58: HUMANOS | D58: 1.1 HUMANOS
A59: 1.2 | B59: DOCENTES | D59: 1.2 DOCENTES
A60: 1.2.1 | B60: Planta | D60: 1.2.2 Vinculación especial
A61: 1.2.1.1 | B61: Tiempo Completo | D61: 1.2.2.1 Tiempo Completo Ocasional
A62: 1.2.1.2 | B62: Medio Tiempo | D62: 1.2.2.1.1 Auxiliar TCO
A63: 1.2.2 | B63: Vinculación especial | D63: 1.2.2.1.2 Asistente TCO
A64: 1.2.2.1 | B64: Tiempo Completo Ocasional | D64: 1.2.2.1.3 Titular TCO
A65: 1.2.2.1.1 | B65: Auxiliar TCO | D65: 1.2.2.1.4 Asociado TCO
A66: 1.2.2.1.2 | B66: Asistente TCO | D66: 1.2.2.2 Medio Tiempo Ocasional
A67: 1.2.2.1.3 | B67: Titular TCO | D67: 1.2.2.2.1 Auxiliar MTO
A68: 1.2.2.1.4 | B68: Asociado TCO | D68: 1.2.2.2.2 Asistente MTO
A69: 1.2.2.2 | B69: Medio Tiempo Ocasional | D69: 1.2.2.2.3 Titular MTO
A70: 1.2.2.2.1 | B70: Auxiliar MTO | D70: 1.2.2.2.4 Asociado MTO
A71: 1.2.2.2.2 | B71: Asistente MTO | D71: 1.2.2.3 Hora Catedra
A72: 1.2.2.2.3 | B72: Titular MTO | D72: 1.2.2.3.1 Auxiliar HC
A73: 1.2.2.2.4 | B73: Asociado MTO | D73: 1.2.2.3.2 Asistente HC
A74: 1.2.2.3 | B74: Hora Catedra | D74: 1.2.2.3.3 Titular HC
A75: 1.2.2.3.1 | B75: Auxiliar HC | D75: 1.2.2.3.4 Asociado HC
A76: 1.2.2.3.2 | B76: Asistente HC | D76: 1.2.2.4 Docentes Hora Catedra Honorarios (posgrados)
A77: 1.2.2.3.3 | B77: Titular HC | D77: 1.2.2.4.1 Auxiliar HCH
A78: 1.2.2.3.4 | B78: Asociado HC | D78: 1.2.2.4.2 Asistente HCH
A79: 1.2.2.4 | B79: Docentes Hora Catedra Honorarios (posgrados) | D79: 1.2.2.4.3 Titular HCH
A80: 1.2.2.4.1 | B80: Auxiliar HCH | D80: 1.2.2.4.4 Asociado HCH
A81: 1.2.2.4.2 | B81: Asistente HCH | D81: 1.2.2.5 Profesores Hora Catedra Prestaciones (posgrados)
A82: 1.2.2.4.3 | B82: Titular HCH | D82: 1.2.2.5.1 Auxiliar HCP
A83: 1.2.2.4.4 | B83: Asociado HCH | D83: 1.2.2.5.2 Asistente HCP
A84: 1.2.2.5 | B84: Profesores Hora Catedra Prestaciones (posgrados) | D84: 1.2.2.5.3 Titular HCP
A85: 1.2.2.5.1 | B85: Auxiliar HCP | D85: 1.2.2.5.4 Asociado HCP
A86: 1.2.2.5.2 | B86: Asistente HCP | D86: 1.2.3 Administrativos
A87: 1.2.2.5.3 | B87: Titular HCP | D87: 1.2.5.1 CPS
A88: 1.2.2.5.4 | B88: Asociado HCP | D88: 1.2.5.1.1 Profesional Especializado
A89: 1.2.3 | B89: Administrativos | D89: 1.2.5.1.2 Profesional
A90: 1.2.4. | B90: Planta | D90: 1.2.5.1.3 Tecnicos
A91: 1.2.4.1 | B91: Libre Nombramiento y Remoción | D91: 1.2.5.1.4 Asistenciales
A92: 1.2.4.2 | B92: Carrera Administrativa y Provisionalidad | D92: 1.2.5.1.7 Talleristas
A93: 1.2.4.2.1 | B93: Nivel Directivo | D93: 1.2.5.1.8 Asesor I
A94: 1.2.4.2.2 | B94: Nivel Asesor | D94: 1.2.5.1.9 Asesor II
A95: 1.2.4.2.3 | B95: Nivel Ejecutivo | D95: 1.2.6 ASISTENTES ACADEMICOS E INVESTIGATIVOS
A96: 1.2.4.2.4 | B96: Nivel Profesional Especializado | D96: 2 AFILIACIÓN, ASOCIACIONES AFINES
A97: 1.2.4.2.5 | B97: Nivel Profesional | D97: 3 CAPACITACION DOCENTE
A98: 1.2.4.2.6 | B98: Nivel Técnico | D98: 3.1 Seminario
A99: 1.2.3.2.7 | B99: Asistencial | D99: 3.2 Taller
A100: 1.2.3.2.8 | B100: Operativo | D100: 3.3 Simposio
A101: 1.2.4.3 | B101: Trabajadores Oficiales | D101: 3.4 Otras actividades
A102: 1.2.5 | B102: Contratista | D102: 3.5 Congresos
A103: 1.2.5.1 | B103: CPS | D103: 4 EVENTOS ACADEMICOS
A104: 1.2.5.1.1 | B104: Profesional Especializado
A105: 1.2.5.1.2 | B105: Profesional
A106: 1.2.5.1.3 | B106: Tecnicos
A107: 1.2.5.1.4 | B107: Asistenciales | D107: PROFESION CONTRATISTA | M107: RANGO DE EXPERIENCIA LABORAL
A108: 1.2.5.1.7 | B108: Talleristas | D108: PROFESION CONTRATISTA | M108: RANGO DE EXPERIENCIA LABORAL
A109: 1.2.5.1.8 | B109: Asesor I | D109: Ingeniería, arquitectura, urbanismo y afines | E109: SI | M109: Sin Experiencia
A110: 1.2.5.1.9 | B110: Asesor II | D110: Agronomía, veterinaria y afines | E110: NO | M110: 0 - 12 Meses
A111: 1.2.5.1.10 | B111: Profesional Especializado Posgrado | D111: Bellas artes | M111: 12 - 48 Meses
A112: 1.2.5.1.11 | B112: Tecnico posgrado | D112: Ciencias de la salud | M112: 48 - 72 Meses
A113: 1.2.5.1.12 | B113: Asistencial Posgrado | D113: Ciencias sociales y humanas | M113: Mas de 72 Meses
A114: 1.2.6 | B114: ASISTENTES ACADEMICOS E INVESTIGATIVOS | D114: Economía, administración, contaduría y afines
A115: 1.2.6.1 | B115: Asistente academico | D115: Matemáticas y ciencias naturales
A116: 1.2.6.2 | B116: Instructor | D116: Ciencias de la educación
A117: 1.2.6.3 | B117: Monitor Academico
A118: 1.2.6.4 | B118: Monitor Administrativo
A119: 2 | B119: AFILIACIÓN, ASOCIACIONES AFINES
A120: 3 | B120: CAPACITACION DOCENTE
A121: 3.1 | B121: Seminario
A122: 3.2 | B122: Taller
A123: 3.3 | B123: Simposio
A124: 3.4 | B124: Otras actividades
A125: 3.5 | B125: Congresos
A126: 4 | B126: EVENTOS ACADEMICOS

Sheet Perfiles (hidden)
D2: IDENTIFICACIÓN DE RECURSOS PARA LA FORMULACIÓN DEL PLAN DE ACCIÓN
E5: Unidad Académico y/o Administrativa | L5: =IF(F5="Ciencias y Educación","CE",IF(F5="Ingeniería","I",IF(F5="Medio Ambiente y Recursos Naturales","MA",IF(F5="Artes ASAB","A",IF(F5="Tecnológica","T",""))))) -> 
D7: Identifique a continuación de manera explícita las Afiliaciones, Asocianes y demas asociadas para cada Unidad Academico y/o Administrativa: NOTA: Por favor diligenciar en Observaciones el objeto de dicho recurso.
C9: Meta | D9: Nivel | F9: Profesion | G9: Posgrado | H9: Experiencia | I9: Cantidad | J9: Tiempo Contrato | K9: Total Contrato | L9: Objeto (Detalle especificamente el objeto del contrato a suscribir)
C11: =+#REF! ->  | D11: 1.2.5.1.4 Asistenciales | F11: Ingeniería, arquitectura, urbanismo y afines | G11: NO | H11: 12 - 48 Meses | I11: 1 | J11: 11 | K11: =IF(D11="1.2.5.1.3 Tecnicos",(I11*J11*[1]Recursos!$E$35),IF(D11="1.2.5.1.2 Profesional ",(I11*J11*[1]Recursos!$E$34),IF(D11="1.2.5.1.4 Asistenciales",(I11*J11*[1]Recursos!$E$36),IF(D11="1.2.5.1.8 Asesor I",(I11*J11*[1]Recursos!$E$38),IF(D11="1.2.5.1.9 Asesor II",(I11*J11*[1]Recursos!$E$39),IF(D11="1.2.5.1.1 Profesional Especializado",(I11*J11*[1]Recursos!$E$33),0)))))) -> 20813045 | L11: Bachiller con experiencia y conocimientos en temas de telecomunicaciones como instalación, soporte de redes, cableado estructurado, telefonía, potencia, o áreas afines, Disponibilidad de tiempo que permitan garantizar la prestación de los servicios 7X24 en todas las sedes de la universidad
D12: 1.2.5.1.3 Tecnicos | F12: Ingeniería, arquitectura, urbanismo y afines | G12: NO | H12: 12 - 48 Meses | I12: 1 | J12: 11 | K12: =IF(D12="1.2.5.1.3 Tecnicos",(I12*J12*[1]Recursos!$E$35),IF(D12="1.2.5.1.2 Profesional ",(I12*J12*[1]Recursos!$E$34),IF(D12="1.2.5.1.4 Asistenciales",(I12*J12*[1]Recursos!$E$36),IF(D12="1.2.5.1.8 Asesor I",(I12*J12*[1]Recursos!$E$38),IF(D12="1.2.5.1.9 Asesor II",(I12*J12*[1]Recursos!$E$39),IF(D12="1.2.5.1.1 Profesional Especializado",(I12*J12*[1]Recursos!$E$33),0)))))) -> 27147450 | L12: Estudiante de ingeniería o tecnología electrónica, redes de telecomunicaciones, sistemas o eléctrica con mínimo sexto semestre aprobado. experiencia y conocimientos en mantenimiento preventivo y correctivo de quipos de computo (Hardware y Software) y potencia regulada, experiencia en manejo y configuración de sistemas operativos, herramientas de ofimatica y conocimientos en redes, experiencia en seguimiento técnico de contratos de tecnología, Disponibilidad de tiempo que permitan atender la prestación de los servicios.
D13: 1.2.5.1.3 Tecnicos | F13: Ingeniería, arquitectura, urbanismo y afines | G13: NO | H13: 12 - 48 Meses | I13: 1 | J13: 11 | K13: =IF(D13="1.2.5.1.3 Tecnicos",(I13*J13*[1]Recursos!$E$35),IF(D13="1.2.5.1.2 Profesional ",(I13*J13*[1]Recursos!$E$34),IF(D13="1.2.5.1.4 Asistenciales",(I13*J13*[1]Recursos!$E$36),IF(D13="1.2.5.1.8 Asesor I",(I13*J13*[1]Recursos!$E$38),IF(D13="1.2.5.1.9 Asesor II",(I13*J13*[1]Recursos!$E$39),IF(D13="1.2.5.1.1 Profesional Especializado",(I13*J13*[1]Recursos!$E$33),0)))))) -> 27147450 | L13: Estudiante de ingeniería o tecnología electrónica, redes de telecomunicaciones, sistemas, o eléctrica mínimo sexto semestre aprobado. Conocimiento en mantenimiento preventivo y correctivo de equipos de cómputo (hardware y software) y potencia regulada, conocimiento en manejo y configuración de sistemas operativos, herramientas de ofimática y en redes de telecomunicaciones. Disponibilidad de tiempo que permitan atender la prestación de los servicios.
D14: 1.2.5.1.3 Tecnicos | F14: Ingeniería, arquitectura, urbanismo y afines | G14: NO | H14: 12 - 48 Meses | I14: 1 | J14: 11 | K14: =IF(D14="1.2.5.1.3 Tecnicos",(I14*J14*[1]Recursos!$E$35),IF(D14="1.2.5.1.2 Profesional ",(I14*J14*[1]Recursos!$E$34),IF(D14="1.2.5.1.4 Asistenciales",(I14*J14*[1]Recursos!$E$36),IF(D14="1.2.5.1.8 Asesor I",(I14*J14*[1]Recursos!$E$38),IF(D14="1.2.5.1.9 Asesor II",(I14*J14*[1]Recursos!$E$39),IF(D14="1.2.5.1.1 Profesional Especializado",(I14*J14*[1]Recursos!$E$33),0)))))) -> 27147450 | L14: Estudiante de ingeniería mínimo con sexto semestre aprobado, o tecnólogo acreditar estudios en alguna de las siguientes áreas: electrónica, redes de telecomunicaciones, sistemas, o eléctrica, telemática, Sistematizacion de datos, administración de redes de computadores, Conocimiento o experiencia en mantenimiento preventivo y correctivo (hardware y software) de equipos de escritorio, equipos de telecomunicaciones y redes LAN , conocimiento en manejo y configuración de sistemas operativos, herramientas de ofimática. Disponibilidad de tiempo que permitan atender la prestación de los servicios.
D15: 1.2.5.1.3 Tecnicos | F15: Ingeniería, arquitectura, urbanismo y afines | G15: NO | H15: 12 - 48 Meses | I15: 1 | J15: 11 | K15: =IF(D15="1.2.5.1.3 Tecnicos",(I15*J15*[1]Recursos!$E$35),IF(D15="1.2.5.1.2 Profesional ",(I15*J15*[1]Recursos!$E$34),IF(D15="1.2.5.1.4 Asistenciales",(I15*J15*[1]Recursos!$E$36),IF(D15="1.2.5.1.8 Asesor I",(I15*J15*[1]Recursos!$E$38),IF(D15="1.2.5.1.9 Asesor II",(I15*J15*[1]Recursos!$E$39),IF(D15="1.2.5.1.1 Profesional Especializado",(I15*J15*[1]Recursos!$E$33),0)))))) -> 27147450 | L15: Estudiante de ingeniería o tecnología mínimo con sexto semestre aprobado, acreditar estudios en alguna de las siguientes áreas: Electrónica, sistemas, telemática, redes de telecomunicaciones, sistematización de datos ò tecnólogo en administración de redes de computadores, estudios para certificación cisco. Conocimientos en hardware y software de equipos de escritorio o portátiles, equipos de telecomunicaciones y redes LAN. Disponibilidad de tiempo que permitan garantizar la prestación de los servicios 7X24 en todas las sedes de la universidad
D16: 1.2.5.1.3 Tecnicos | F16: Ingeniería, arquitectura, urbanismo y afines | G16: NO | H16: 12 - 48 Meses | I16: 1 | J16: 11 | K16: =IF(D16="1.2.5.1.3 Tecnicos",(I16*J16*[1]Recursos!$E$35),IF(D16="1.2.5.1.2 Profesional ",(I16*J16*[1]Recursos!$E$34),IF(D16="1.2.5.1.4 Asistenciales",(I16*J16*[1]Recursos!$E$36),IF(D16="1.2.5.1.8 Asesor I",(I16*J16*[1]Recursos!$E$38),IF(D16="1.2.5.1.9 Asesor II",(I16*J16*[1]Recursos!$E$39),IF(D16="1.2.5.1.1 Profesional Especializado",(I16*J16*[1]Recursos!$E$33),0)))))) -> 27147450 | L16: Estudiante de ingeniería o tecnología mínimo con sexto semestre aprobado, acreditar estudios en alguna de las siguientes áreas: Electrónica, sistemas, telemática, redes de telecomunicaciones, sistematización de datos ò tecnólogo en administración de redes de computadores. Experiencia relacionada en gestión, instalación y configuración de redes y equipos de telecomunicaciones. Experiencia en implementación y administración de telefonía digital e IP, VPN y SIP. Conocimientos en tecnología marca Cisco y Avaya, Disponibilidad de tiempo que permitan garantizar la prestación de los servicios 7X24 en todas las sedes de la universidad.
D17: 1.2.5.1.3 Tecnicos | F17: Ingeniería, arquitectura, urbanismo y afines | G17: NO | H17: 12 - 48 Meses | I17: 1 | J17: 11 | K17: =IF(D17="1.2.5.1.3 Tecnicos",(I17*J17*[1]Recursos!$E$35),IF(D17="1.2.5.1.2 Profesional ",(I17*J17*[1]Recursos!$E$34),IF(D17="1.2.5.1.4 Asistenciales",(I17*J17*[1]Recursos!$E$36),IF(D17="1.2.5.1.8 Asesor I",(I17*J17*[1]Recursos!$E$38),IF(D17="1.2.5.1.9 Asesor II",(I17*J17*[1]Recursos!$E$39),IF(D17="1.2.5.1.1 Profesional Especializado",(I17*J17*[1]Recursos!$E$33),0)))))) -> 27147450 | L17: Tecnólogo electrónico, eléctrico, sistemas sistematización de datos, telemática o áreas afines y/o estudiante de ingeniería en telecomunicaciones, electrónica, sistemas. Experiencia en instalación en redes y equipos de telecomunicación mínimo de sexto semestre aprobado. Conocimientos básicos en telefonía digital, IP, redes eléctricas, administración de equipos de telecomunicaciones. Disponibilidad de tiempo que permitan garantizar la prestación de los servicios 7X24 en todas las sedes de la universidad.
D18: 1.2.5.1.3 Tecnicos | F18: Ingeniería, arquitectura, urbanismo y afines | G18: NO | H18: 12 - 48 Meses | I18: 1 | J18: 11 | K18: =IF(D18="1.2.5.1.3 Tecnicos",(I18*J18*[1]Recursos!$E$35),IF(D18="1.2.5.1.2 Profesional ",(I18*J18*[1]Recursos!$E$34),IF(D18="1.2.5.1.4 Asistenciales",(I18*J18*[1]Recursos!$E$36),IF(D18="1.2.5.1.8 Asesor I",(I18*J18*[1]Recursos!$E$38),IF(D18="1.2.5.1.9 Asesor II",(I18*J18*[1]Recursos!$E$39),IF(D18="1.2.5.1.1 Profesional Especializado",(I18*J18*[1]Recursos!$E$33),0)))))) -> 27147450 | L18: Tecnólogo electrónico, eléctrico, sistemas, sistematización de datos o áreas afines y/o estudiante de ingeniería en telecomunicaciones, electrónica, sistemas, telematica mínimo de sexto semestre aprobado. Experiencia en instalación en redes, equipos de networking y administracion de equipos de datacenter. Conocimientos básicos en telefonía VoIP, redes eléctricas, administración de equipos de telecomunicaciones. Disponibilidad de tiempo que permitan garantizar la prestación de los servicios 7X24 en todas las sedes de la universidad.
D19: 1.2.5.1.3 Tecnicos | F19: Ingeniería, arquitectura, urbanismo y afines | G19: NO | H19: 12 - 48 Meses | I19: 1 | J19: 11 | K19: =IF(D19="1.2.5.1.3 Tecnicos",(I19*J19*[1]Recursos!$E$35),IF(D19="1.2.5.1.2 Profesional ",(I19*J19*[1]Recursos!$E$34),IF(D19="1.2.5.1.4 Asistenciales",(I19*J19*[1]Recursos!$E$36),IF(D19="1.2.5.1.8 Asesor I",(I19*J19*[1]Recursos!$E$38),IF(D19="1.2.5.1.9 Asesor II",(I19*J19*[1]Recursos!$E$39),IF(D19="1.2.5.1.1 Profesional Especializado",(I19*J19*[1]Recursos!$E$33),0)))))) -> 27147450 | L19: Tecnólogo electrónico, eléctrico, sistemas, sistematización de datos o áreas afines y/o estudiante de ingeniería en telecomunicaciones, electrónica, sistemas, telematica mínimo de sexto semestre aprobado. Experiencia en instalación en redes, equipos de telecomunicaciones y administracion de equipos de datacenter, sistemas de potencia y aires acondicionados. Conocimientos básicos en telefonía VoIP, redes eléctricas, administración de equipos de telecomunicaciones. Disponibilidad de tiempo que permitan garantizar la prestación de los servicios 7X24 en todas las sedes de la universidad.
D20: 1.2.5.1.2 Profesional | F20: Ingeniería, arquitectura, urbanismo y afines | G20: NO | H20: 12 - 48 Meses | I20: 1 | J20: 11 | K20: =IF(D20="1.2.5.1.3 Tecnicos",(I20*J20*[1]Recursos!$E$35),IF(D20="1.2.5.1.2 Profesional ",(I20*J20*[1]Recursos!$E$34),IF(D20="1.2.5.1.4 Asistenciales",(I20*J20*[1]Recursos!$E$36),IF(D20="1.2.5.1.8 Asesor I",(I20*J20*[1]Recursos!$E$38),IF(D20="1.2.5.1.9 Asesor II",(I20*J20*[1]Recursos!$E$39),IF(D20="1.2.5.1.1 Profesional Especializado",(I20*J20*[1]Recursos!$E$33),0)))))) -> 41626090 | L20: Ingeniero en Telecomunicaciones, Electrónica, distribución en redes eléctricas, Eléctrica, sistemas o áreas afines, Experiencia en administración de procesos de mantenimiento preventivo y correctivo al parque computacional. Conocimientos en el diseño e implementación de políticas y normatividad que garanticen el aseguramiento de la información al usuario final (sistemas de backups). Experiencia en atención al usuario final referente al uso de herramientas computacionales, manejo de herramientas de ofimática, experiencia en seguimiento de contratos técnicos. Disponibilidad de tiempo que permitan garantizar la prestación de los servicios 7X24 en todas las sedes de la universidad.
D21: 1.2.5.1.2 Profesional | F21: Ingeniería, arquitectura, urbanismo y afines | G21: NO | H21: 12 - 48 Meses | I21: 1 | J21: 11 | K21: =IF(D21="1.2.5.1.3 Tecnicos",(I21*J21*[1]Recursos!$E$35),IF(D21="1.2.5.1.2 Profesional ",(I21*J21*[1]Recursos!$E$34),IF(D21="1.2.5.1.4 Asistenciales",(I21*J21*[1]Recursos!$E$36),IF(D21="1.2.5.1.8 Asesor I",(I21*J21*[1]Recursos!$E$38),IF(D21="1.2.5.1.9 Asesor II",(I21*J21*[1]Recursos!$E$39),IF(D21="1.2.5.1.1 Profesional Especializado",(I21*J21*[1]Recursos!$E$33),0)))))) -> 41626090 | L21: Ingeniero de Sistemas, telecomunicaciones, telemática, electrónica o áreas afines. Experiencia, conocimientos y/o habilidades en el manejo de las plataformas utilizadas en la universidad (Windows y Linux), manejo de Windows server mínimo 2008 R2, configuración y soporte de programas para gestión de actualizaciones (wsus, sms, software de seguridad) Conocimientos en manejo de Directorio Activo y sus políticas. Experiencia y/o habilidades en servicios propios de Internet (correo electrónico, acceso remoto, FTP, VPN etc.). Experiencia y/o conocimientos en la administración de software de seguridad, DHCP, DNS, Disponibilidad de tiempo que permitan garantizar la prestación de los servicios 7X24 en todas las sedes de la universidad.
D22: 1.2.5.1.2 Profesional | F22: Ingeniería, arquitectura, urbanismo y afines | G22: NO | H22: 12 - 48 Meses | I22: 1 | J22: 11 | K22: =IF(D22="1.2.5.1.3 Tecnicos",(I22*J22*[1]Recursos!$E$35),IF(D22="1.2.5.1.2 Profesional ",(I22*J22*[1]Recursos!$E$34),IF(D22="1.2.5.1.4 Asistenciales",(I22*J22*[1]Recursos!$E$36),IF(D22="1.2.5.1.8 Asesor I",(I22*J22*[1]Recursos!$E$38),IF(D22="1.2.5.1.9 Asesor II",(I22*J22*[1]Recursos!$E$39),IF(D22="1.2.5.1.1 Profesional Especializado",(I22*J22*[1]Recursos!$E$33),0)))))) -> 41626090 | L22: Ingeniero de Sistemas o telecomunicaciones, telemática o áreas afines. Experiencia, conocimientos y/o habilidades en el manejo de las plataformas utilizadas en la universidad (Windows y Linux), configuración y soporte de programas para gestión de actualizaciones (wus, sus, sms, synaptic, rpm y dkpg) Conocimientos en manejo de Directorio Activo y sus políticas. Experiencia y/o habilidades en servicios propios de Internet (correo electrónico, acceso remoto, FTP, etc.). Experiencia en la administración de Sistemas de almacenamiento masivo, y en administración de software de seguridad, Disponibilidad de tiempo que permitan garantizar la prestación de los servicios 7X24 en todas las sedes de la universidad
D23: 1.2.5.1.2 Profesional | F23: Ingeniería, arquitectura, urbanismo y afines | G23: NO | H23: 12 - 48 Meses | I23: 1 | J23: 11 | K23: =IF(D23="1.2.5.1.3 Tecnicos",(I23*J23*[1]Recursos!$E$35),IF(D23="1.2.5.1.2 Profesional ",(I23*J23*[1]Recursos!$E$34),IF(D23="1.2.5.1.4 Asistenciales",(I23*J23*[1]Recursos!$E$36),IF(D23="1.2.5.1.8 Asesor I",(I23*J23*[1]Recursos!$E$38),IF(D23="1.2.5.1.9 Asesor II",(I23*J23*[1]Recursos!$E$39),IF(D23="1.2.5.1.1 Profesional Especializado",(I23*J23*[1]Recursos!$E$33),0)))))) -> 41626090 | L23: Ingeniero de Sistemas o carreras afines, Con conocimientos y experiencia relacionada en Plataformas computacionales, administración de ambientes de seguridad en redes y computación confiable. Experiencia y/o habilidades en el manejo de las plataformas utilizadas en la universidad (Windows y/o Linux). Conocimientos y habilidades en instalación, configuración y soporte de las plataformas Linux, programas para gestión de actualizaciones como (rpm, dkpg, up2date y yum). Conocimientos en manejo de servicios propios de sistema operativos Windows server como Directorio Activo y políticas, DNS, DHCP, bases de datos y/o experiencia en servicios propios de Internet como (correo electrónico, listas correo electrónico, firewall, proxy, sistemas detección de intrusos, acceso remoto, FTP, etc.). Habilidades y conocimientos para soporte a usuarios en los diferentes niveles. Disponibilidad de tiempo que permitan garantizar la prestación de los servicios 7X24 en todas las sedes de la universidad.
D24: 1.2.5.1.2 Profesional | F24: Ingeniería, arquitectura, urbanismo y afines | G24: NO | H24: 12 - 48 Meses | I24: 1 | J24: 11 | K24: =IF(D24="1.2.5.1.3 Tecnicos",(I24*J24*[1]Recursos!$E$35),IF(D24="1.2.5.1.2 Profesional ",(I24*J24*[1]Recursos!$E$34),IF(D24="1.2.5.1.4 Asistenciales",(I24*J24*[1]Recursos!$E$36),IF(D24="1.2.5.1.8 Asesor I",(I24*J24*[1]Recursos!$E$38),IF(D24="1.2.5.1.9 Asesor II",(I24*J24*[1]Recursos!$E$39),IF(D24="1.2.5.1.1 Profesional Especializado",(I24*J24*[1]Recursos!$E$33),0)))))) -> 41626090 | L24: Ingeniero de sistemas, telematica, electronica o carreras afines, con conocimientos y experiencia relacionada en plataformas computacionales, habilidades en el manejo de las plataformas Windows y Linux, configuración y soporte de programas para gestión de actualizaciones (Rpm, software de seguridad) Conocimientos en manejo de servicios propios de sistema operativos Windows server como Directorio Activo y políticas, DNS, DHCP, bases de datos y/o experiencia en servicios propios de internet como (correo electrónico, listas de correo electrónico, firewall, proxy, sistemas de detección de intrusos, acceso remoto, FTP, etc.) y habilidades de soporte a usuarios, Disponibilidad de tiempo que permitan garantizar la prestación de los servicios 7X24 en todas las sedes de la universidad.
D25: 1.2.5.1.2 Profesional | F25: Ingeniería, arquitectura, urbanismo y afines | G25: NO | H25: 12 - 48 Meses | I25: 1 | J25: 11 | K25: =IF(D25="1.2.5.1.3 Tecnicos",(I25*J25*[1]Recursos!$E$35),IF(D25="1.2.5.1.2 Profesional ",(I25*J25*[1]Recursos!$E$34),IF(D25="1.2.5.1.4 Asistenciales",(I25*J25*[1]Recursos!$E$36),IF(D25="1.2.5.1.8 Asesor I",(I25*J25*[1]Recursos!$E$38),IF(D25="1.2.5.1.9 Asesor II",(I25*J25*[1]Recursos!$E$39),IF(D25="1.2.5.1.1 Profesional Especializado",(I25*J25*[1]Recursos!$E$33),0)))))) -> 41626090 | L25: Ingeniero en electrónica, sistemas, redes de telecomunicaciones, sistematización de datos o carreras afines, estudios para certificación de cisco. Conocimiento en Hardware y Software de equipos de escritorio y portátiles, equipos de telecomunicaciones y redes LAN, Disponibilidad de tiempo que permitan garantizar la prestación de los servicios 7X24 en todas las sedes de la universidad.
D26: 1.2.5.1.2 Profesional | F26: Ingeniería, arquitectura, urbanismo y afines | G26: NO | H26: 12 - 48 Meses | I26: 1 | J26: 11 | K26: =IF(D26="1.2.5.1.3 Tecnicos",(I26*J26*[1]Recursos!$E$35),IF(D26="1.2.5.1.2 Profesional ",(I26*J26*[1]Recursos!$E$34),IF(D26="1.2.5.1.4 Asistenciales",(I26*J26*[1]Recursos!$E$36),IF(D26="1.2.5.1.8 Asesor I",(I26*J26*[1]Recursos!$E$38),IF(D26="1.2.5.1.9 Asesor II",(I26*J26*[1]Recursos!$E$39),IF(D26="1.2.5.1.1 Profesional Especializado",(I26*J26*[1]Recursos!$E$33),0)))))) -> 41626090 | L26: Ingeniero Electrónico y/o ingeniero de redes de computadores. Experiencia en administración de equipos de telefonía digital e IP, diseño e instalación de redes. Conocimientos actualizados en el diseño e implementación de soluciones en redes convergentes incluidos sistemas inalámbricos. Experiencia en seguimiento técnico de contratos de servicios de telecomunicaciones y de adquisición de equipos especializados de telecomunicaciones. Experiencia en implementación y administración de telefonía digital e IP, VPN y SIP Experiencia de al menos 4 años en redes y equipos de comunicación de voz y datos. Conocimientos en seguridad, diseño e implementación en redes, conocimiento y experiencia en implementación de soluciones de telefonía y networking CISCO y AVAYA y soluciones Data Center. Disponibilidad de tiempo que permitan garantizar la prestación de los servicios 7X24 en todas las sedes de la universidad.
D27: 1.2.5.1.2 Profesional | F27: Ingeniería, arquitectura, urbanismo y afines | G27: NO | H27: 12 - 48 Meses | I27: 1 | J27: 11 | K27: =IF(D27="1.2.5.1.3 Tecnicos",(I27*J27*[1]Recursos!$E$35),IF(D27="1.2.5.1.2 Profesional ",(I27*J27*[1]Recursos!$E$34),IF(D27="1.2.5.1.4 Asistenciales",(I27*J27*[1]Recursos!$E$36),IF(D27="1.2.5.1.8 Asesor I",(I27*J27*[1]Recursos!$E$38),IF(D27="1.2.5.1.9 Asesor II",(I27*J27*[1]Recursos!$E$39),IF(D27="1.2.5.1.1 Profesional Especializado",(I27*J27*[1]Recursos!$E$33),0)))))) -> 41626090 | L27: Ingeniero en telecomunicaciones, electrónica o eléctrica con experiencia y conocimientos en gestión y configuración de redes y equipos de telecomunicación de voz y datos, cableado estructurado. Conocimientos en telefonía digital e IP o conocimientos en redes eléctricas y UPS, conocimiento y experiencia en administración de equipos y software de administración de servicios de telecomunicaciones, Disponibilidad de tiempo que permitan garantizar la prestación de los servicios 7X24 en todas las sedes de la universidad
D28: 1.2.5.1.2 Profesional | F28: Ingeniería, arquitectura, urbanismo y afines | G28: NO | H28: 12 - 48 Meses | I28: 1 | J28: 11 | K28: =IF(D28="1.2.5.1.3 Tecnicos",(I28*J28*[1]Recursos!$E$35),IF(D28="1.2.5.1.2 Profesional ",(I28*J28*[1]Recursos!$E$34),IF(D28="1.2.5.1.4 Asistenciales",(I28*J28*[1]Recursos!$E$36),IF(D28="1.2.5.1.8 Asesor I",(I28*J28*[1]Recursos!$E$38),IF(D28="1.2.5.1.9 Asesor II",(I28*J28*[1]Recursos!$E$39),IF(D28="1.2.5.1.1 Profesional Especializado",(I28*J28*[1]Recursos!$E$33),0)))))) -> 41626090 | L28: Ingeniero en telecomunicaciones, electrónica o eléctrica, sistemas, telemática, red de telecomunicaciones, Sistematizacion de datos, administración de redes de computadores, o afines con experiencia y conocimientos en gestión y configuración de redes y equipos de telecomunicaciones, cableado estructurado. Conocimientos en telefonía digital e IP o conocimientos en redes eléctricas y UPS, conocimiento y experiencia en administración de equipos y software de administración de servicios de telecomunicaciones, experiencia en seguimiento de contratos de tecnología, disponibilidad de tiempo que permitan atender la prestación de los servicios principalmente de la Sede Bosa Porvenir.
C29: Total Contratistas Meta No 1 | I29: =SUM(I11:I28) -> 18 | J29: =SUM(K11:K28) -> 612627455
C30: =+#REF! ->  | D30: 1.2.5.1.3 Tecnicos | F30: Ingeniería, arquitectura, urbanismo y afines | G30: NO | H30: 12 - 48 Meses | I30: 1 | J30: 11 | K30: =IF(D30="1.2.5.1.3 Tecnicos",(I30*J30*[1]Recursos!$E$35),IF(D30="1.2.5.1.2 Profesional ",(I30*J30*[1]Recursos!$E$34),IF(D30="1.2.5.1.4 Asistenciales",(I30*J30*[1]Recursos!$E$36),IF(D30="1.2.5.1.8 Asesor I",(I30*J30*[1]Recursos!$E$38),IF(D30="1.2.5.1.9 Asesor II",(I30*J30*[1]Recursos!$E$39),IF(D30="1.2.5.1.1 Profesional Especializado",(I30*J30*[1]Recursos!$E$33),0)))))) -> 27147450 | L30: Tecnólogo o estudiante de carrera profesional mínimo de sexto semestre aprobado en sistemas, telemática, sistematización de datos, o áreas afines con conocimiento en desarrollo de software , conocimientos en el uso de herramientas de diseño gráfico y edición fotográfica, conocimientos de gobierno en linea y procesos de gobiero de TI. Disponibilidad de tiempo que permitan garantizar la prestación de los servicios 7X24 en todas las sedes de la universidad.
D31: 1.2.5.1.3 Tecnicos | F31: Ingeniería, arquitectura, urbanismo y afines | G31: NO | H31: 12 - 48 Meses | I31: 1 | J31: 11 | K31: =IF(D31="1.2.5.1.3 Tecnicos",(I31*J31*[1]Recursos!$E$35),IF(D31="1.2.5.1.2 Profesional ",(I31*J31*[1]Recursos!$E$34),IF(D31="1.2.5.1.4 Asistenciales",(I31*J31*[1]Recursos!$E$36),IF(D31="1.2.5.1.8 Asesor I",(I31*J31*[1]Recursos!$E$38),IF(D31="1.2.5.1.9 Asesor II",(I31*J31*[1]Recursos!$E$39),IF(D31="1.2.5.1.1 Profesional Especializado",(I31*J31*[1]Recursos!$E$33),0)))))) -> 27147450 | L31: Tecnologo en industrial o carreras afines o estudiante de Ingenieria en industrial o de producción con minimo sexto semestre, con experiencia en gestion y control de los procesos de pago de contratos, apoyo en procesos administrativos, control de documentos y asignacion de actividades. disponibilidad de tiempo que permitan garantizar la prestación de los servicios
D32: 1.2.5.1.2 Profesional | F32: Ingeniería, arquitectura, urbanismo y afines | G32: NO | H32: 12 - 48 Meses | I32: 1 | J32: 11 | K32: =IF(D32="1.2.5.1.3 Tecnicos",(I32*J32*[1]Recursos!$E$35),IF(D32="1.2.5.1.2 Profesional ",(I32*J32*[1]Recursos!$E$34),IF(D32="1.2.5.1.4 Asistenciales",(I32*J32*[1]Recursos!$E$36),IF(D32="1.2.5.1.8 Asesor I",(I32*J32*[1]Recursos!$E$38),IF(D32="1.2.5.1.9 Asesor II",(I32*J32*[1]Recursos!$E$39),IF(D32="1.2.5.1.1 Profesional Especializado",(I32*J32*[1]Recursos!$E$33),0)))))) -> 41626090 | L32: Ingeniero industrial o de producción o carreras afines, con experiencia en la implementación del sistema de Gestión de Calidad, seguridad informática, auditorias y seguimiento, basado en normas internacionales, manejo de herramientas de ofimática, seguimiento de procesos de contratacion y apoyo en la gestion administrativa de proyectos , conocimientos básicos en temas de electrónica y sistemas Disponibilidad de tiempo que permitan garantizar la prestación de los servicios 7X24 en todas las sedes de la universidad.
K33: =IF(D33="1.2.5.1.3 Tecnicos",(I33*J33*[1]Recursos!$E$35),IF(D33="1.2.5.1.2 Profesional ",(I33*J33*[1]Recursos!$E$34),IF(D33="1.2.5.1.4 Asistenciales",(I33*J33*[1]Recursos!$E$36),IF(D33="1.2.5.1.8 Asesor I",(I33*J33*[1]Recursos!$E$38),IF(D33="1.2.5.1.9 Asesor II",(I33*J33*[1]Recursos!$E$39),IF(D33="1.2.5.1.1 Profesional Especializado",(I33*J33*[1]Recursos!$E$33),0)))))) -> 0
C34: Total Contratistas Meta No 2 | I34: =SUM(I30:I33) -> 3 | J34: =SUM(K30:K33) -> 95920990
C35: =+#REF! ->  | D35: 1.2.5.1.2 Profesional | F35: Ingeniería, arquitectura, urbanismo y afines | G35: NO | H35: 12 - 48 Meses | I35: 1 | J35: 11 | K35: =IF(D35="1.2.5.1.3 Tecnicos",(I35*J35*[1]Recursos!$E$35),IF(D35="1.2.5.1.2 Profesional ",(I35*J35*[1]Recursos!$E$34),IF(D35="1.2.5.1.4 Asistenciales",(I35*J35*[1]Recursos!$E$36),IF(D35="1.2.5.1.8 Asesor I",(I35*J35*[1]Recursos!$E$38),IF(D35="1.2.5.1.9 Asesor II",(I35*J35*[1]Recursos!$E$39),IF(D35="1.2.5.1.1 Profesional Especializado",(I35*J35*[1]Recursos!$E$33),0)))))) -> 41626090 | L35: Ingeniero de Sistemas, telecomunicaciones, telemática o carreras afines. Experiencia y/o conocimientos en evaluación de tecnologías, desarrollo de Aplicaciones Web, aplicación de metodologías de desarrollo en programación y en implementación de soluciones de software, conocimientos básicos en administración de sistemas Windows y Linux conocimientos en POO y herramientas de desarrollo como AJAX, CSS, PHP, UML, XHTML, JAVA, javascript, jquery, XML, MySQL, PostgreSQL, Liferay, wordpress, PHP2Go, y demás utilizadas y propuestas por la Universidad. Conocimiento en implementación de TIC y GELXML. Disponibilidad de tiempo que permitan garantizar la prestación de los servicios 7X24 en todas las sedes de la universidad.
D36: 1.2.5.1.2 Profesional | F36: Ingeniería, arquitectura, urbanismo y afines | G36: NO | H36: 12 - 48 Meses | I36: 1 | J36: 11 | K36: =IF(D36="1.2.5.1.3 Tecnicos",(I36*J36*[1]Recursos!$E$35),IF(D36="1.2.5.1.2 Profesional ",(I36*J36*[1]Recursos!$E$34),IF(D36="1.2.5.1.4 Asistenciales",(I36*J36*[1]Recursos!$E$36),IF(D36="1.2.5.1.8 Asesor I",(I36*J36*[1]Recursos!$E$38),IF(D36="1.2.5.1.9 Asesor II",(I36*J36*[1]Recursos!$E$39),IF(D36="1.2.5.1.1 Profesional Especializado",(I36*J36*[1]Recursos!$E$33),0)))))) -> 41626090 | L36: Ingeniero en electrónica, sistemas, telemática o afines, con experiencia en desarrollo de software con énfasis en desarrollo web, utilizando programación orientada a objetos, UML, XHTML, JAVA, javascript, jquery, CSS, PHP, XML, MySQL, PosgreSQL, Liferay, wordpress, con conocimientos y experiencia en la aplicación de estándares y metodologías de desarrollo web. experiencia en implementación de sitios y servicios web, Conocimiento y uso de herramientas de desarrollo como SVN, IDEs y herramientas de diseño de bases de datos y Disponibilidad de tiempo que permitan garantizar la prestación de los servicios 7X24 en todas las sedes de la universidad.
D37: 1.2.5.1.3 Tecnicos | F37: Ingeniería, arquitectura, urbanismo y afines | G37: NO | H37: 0 - 12 Meses | I37: 1 | J37: 11 | K37: =IF(D37="1.2.5.1.3 Tecnicos",(I37*J37*[1]Recursos!$E$35),IF(D37="1.2.5.1.2 Profesional ",(I37*J37*[1]Recursos!$E$34),IF(D37="1.2.5.1.4 Asistenciales",(I37*J37*[1]Recursos!$E$36),IF(D37="1.2.5.1.8 Asesor I",(I37*J37*[1]Recursos!$E$38),IF(D37="1.2.5.1.9 Asesor II",(I37*J37*[1]Recursos!$E$39),IF(D37="1.2.5.1.1 Profesional Especializado",(I37*J37*[1]Recursos!$E$33),0)))))) -> 27147450 | L37: Tecnólogo o estudiante de carrera profesional mínimo de sexto semestre aprobado en sistemas, telemática, sistematización de datos, o áreas afines o en artes plásticas, visuales, o diseño gráfico con conocimiento en desarrollo de software con énfasis en desarrollo web y aplicación de estándares y procesos de desarrollo, conocimientos en el uso de herramientas de diseño gráfico y edición fotográfica. Disponibilidad de tiempo que permitan garantizar la prestación de los servicios 7X24 en todas las sedes de la universidad.
K38: =IF(D38="1.2.5.1.3 Tecnicos",(I38*J38*[1]Recursos!$E$35),IF(D38="1.2.5.1.2 Profesional ",(I38*J38*[1]Recursos!$E$34),IF(D38="1.2.5.1.4 Asistenciales",(I38*J38*[1]Recursos!$E$36),IF(D38="1.2.5.1.8 Asesor I",(I38*J38*[1]Recursos!$E$38),IF(D38="1.2.5.1.9 Asesor II",(I38*J38*[1]Recursos!$E$39),IF(D38="1.2.5.1.1 Profesional Especializado",(I38*J38*[1]Recursos!$E$33),0)))))) -> 0
K39: =IF(D39="1.2.5.1.3 Tecnicos",(I39*J39*[1]Recursos!$E$35),IF(D39="1.2.5.1.2 Profesional ",(I39*J39*[1]Recursos!$E$34),IF(D39="1.2.5.1.4 Asistenciales",(I39*J39*[1]Recursos!$E$36),IF(D39="1.2.5.1.8 Asesor I",(I39*J39*[1]Recursos!$E$38),IF(D39="1.2.5.1.9 Asesor II",(I39*J39*[1]Recursos!$E$39),IF(D39="1.2.5.1.1 Profesional Especializado",(I39*J39*[1]Recursos!$E$33),0)))))) -> 0
K40: =IF(D40="1.2.5.1.3 Tecnicos",(I40*J40*[1]Recursos!$E$35),IF(D40="1.2.5.1.2 Profesional ",(I40*J40*[1]Recursos!$E$34),IF(D40="1.2.5.1.4 Asistenciales",(I40*J40*[1]Recursos!$E$36),IF(D40="1.2.5.1.8 Asesor I",(I40*J40*[1]Recursos!$E$38),IF(D40="1.2.5.1.9 Asesor II",(I40*J40*[1]Recursos!$E$39),IF(D40="1.2.5.1.1 Profesional Especializado",(I40*J40*[1]Recursos!$E$33),0)))))) -> 0
K41: =IF(D41="1.2.5.1.3 Tecnicos",(I41*J41*[1]Recursos!$E$35),IF(D41="1.2.5.1.2 Profesional ",(I41*J41*[1]Recursos!$E$34),IF(D41="1.2.5.1.4 Asistenciales",(I41*J41*[1]Recursos!$E$36),IF(D41="1.2.5.1.8 Asesor I",(I41*J41*[1]Recursos!$E$38),IF(D41="1.2.5.1.9 Asesor II",(I41*J41*[1]Recursos!$E$39),IF(D41="1.2.5.1.1 Profesional Especializado",(I41*J41*[1]Recursos!$E$33),0)))))) -> 0
C42: Total Contratistas Meta No 6 | I42: =SUM(I35:I41) -> 3 | J42: =SUM(K35:K41) -> 110399630
C43: =+#REF! ->  | K43: =IF(D43="1.2.5.1.3 Tecnicos",(I43*J43*[1]Recursos!$E$35),IF(D43="1.2.5.1.2 Profesional ",(I43*J43*[1]Recursos!$E$34),IF(D43="1.2.5.1.4 Asistenciales",(I43*J43*[1]Recursos!$E$36),IF(D43="1.2.5.1.8 Asesor I",(I43*J43*[1]Recursos!$E$38),IF(D43="1.2.5.1.9 Asesor II",(I43*J43*[1]Recursos!$E$39),IF(D43="1.2.5.1.1 Profesional Especializado",(I43*J43*[1]Recursos!$E$33),0)))))) -> 0
K44: =IF(D44="1.2.5.1.3 Tecnicos",(I44*J44*[1]Recursos!$E$35),IF(D44="1.2.5.1.2 Profesional ",(I44*J44*[1]Recursos!$E$34),IF(D44="1.2.5.1.4 Asistenciales",(I44*J44*[1]Recursos!$E$36),IF(D44="1.2.5.1.8 Asesor I",(I44*J44*[1]Recursos!$E$38),IF(D44="1.2.5.1.9 Asesor II",(I44*J44*[1]Recursos!$E$39),IF(D44="1.2.5.1.1 Profesional Especializado",(I44*J44*[1]Recursos!$E$33),0)))))) -> 0
K45: =IF(D45="1.2.5.1.3 Tecnicos",(I45*J45*[1]Recursos!$E$35),IF(D45="1.2.5.1.2 Profesional ",(I45*J45*[1]Recursos!$E$34),IF(D45="1.2.5.1.4 Asistenciales",(I45*J45*[1]Recursos!$E$36),IF(D45="1.2.5.1.8 Asesor I",(I45*J45*[1]Recursos!$E$38),IF(D45="1.2.5.1.9 Asesor II",(I45*J45*[1]Recursos!$E$39),IF(D45="1.2.5.1.1 Profesional Especializado",(I45*J45*[1]Recursos!$E$33),0)))))) -> 0
K46: =IF(D46="1.2.5.1.3 Tecnicos",(I46*J46*[1]Recursos!$E$35),IF(D46="1.2.5.1.2 Profesional ",(I46*J46*[1]Recursos!$E$34),IF(D46="1.2.5.1.4 Asistenciales",(I46*J46*[1]Recursos!$E$36),IF(D46="1.2.5.1.8 Asesor I",(I46*J46*[1]Recursos!$E$38),IF(D46="1.2.5.1.9 Asesor II",(I46*J46*[1]Recursos!$E$39),IF(D46="1.2.5.1.1 Profesional Especializado",(I46*J46*[1]Recursos!$E$33),0)))))) -> 0
K47: =IF(D47="1.2.5.1.3 Tecnicos",(I47*J47*[1]Recursos!$E$35),IF(D47="1.2.5.1.2 Profesional ",(I47*J47*[1]Recursos!$E$34),IF(D47="1.2.5.1.4 Asistenciales",(I47*J47*[1]Recursos!$E$36),IF(D47="1.2.5.1.8 Asesor I",(I47*J47*[1]Recursos!$E$38),IF(D47="1.2.5.1.9 Asesor II",(I47*J47*[1]Recursos!$E$39),IF(D47="1.2.5.1.1 Profesional Especializado",(I47*J47*[1]Recursos!$E$33),0)))))) -> 0
K48: =IF(D48="1.2.5.1.3 Tecnicos",(I48*J48*[1]Recursos!$E$35),IF(D48="1.2.5.1.2 Profesional ",(I48*J48*[1]Recursos!$E$34),IF(D48="1.2.5.1.4 Asistenciales",(I48*J48*[1]Recursos!$E$36),IF(D48="1.2.5.1.8 Asesor I",(I48*J48*[1]Recursos!$E$38),IF(D48="1.2.5.1.9 Asesor II",(I48*J48*[1]Recursos!$E$39),IF(D48="1.2.5.1.1 Profesional Especializado",(I48*J48*[1]Recursos!$E$33),0)))))) -> 0
K49: =IF(D49="1.2.5.1.3 Tecnicos",(I49*J49*[1]Recursos!$E$35),IF(D49="1.2.5.1.2 Profesional ",(I49*J49*[1]Recursos!$E$34),IF(D49="1.2.5.1.4 Asistenciales",(I49*J49*[1]Recursos!$E$36),IF(D49="1.2.5.1.8 Asesor I",(I49*J49*[1]Recursos!$E$38),IF(D49="1.2.5.1.9 Asesor II",(I49*J49*[1]Recursos!$E$39),IF(D49="1.2.5.1.1 Profesional Especializado",(I49*J49*[1]Recursos!$E$33),0)))))) -> 0
C50: Total Contratistas Meta No 7 | I50: =SUM(I43:I49) -> 0 | J50: =SUM(K43:K49) -> 0
C51: =+#REF! -> 
K52: =IF(D52="1.2.5.1.3 Tecnicos",(I52*J52*[1]Recursos!$E$35),IF(D52="1.2.5.1.2 Profesional ",(I52*J52*[1]Recursos!$E$34),IF(D52="1.2.5.1.4 Asistenciales",(I52*J52*[1]Recursos!$E$36),IF(D52="1.2.5.1.8 Asesor I",(I52*J52*[1]Recursos!$E$38),IF(D52="1.2.5.1.9 Asesor II",(I52*J52*[1]Recursos!$E$39),IF(D52="1.2.5.1.1 Profesional Especializado",(I52*J52*[1]Recursos!$E$33),0)))))) -> 0
K53: =IF(D53="1.2.5.1.3 Tecnicos",(I53*J53*[1]Recursos!$E$35),IF(D53="1.2.5.1.2 Profesional ",(I53*J53*[1]Recursos!$E$34),IF(D53="1.2.5.1.4 Asistenciales",(I53*J53*[1]Recursos!$E$36),IF(D53="1.2.5.1.8 Asesor I",(I53*J53*[1]Recursos!$E$38),IF(D53="1.2.5.1.9 Asesor II",(I53*J53*[1]Recursos!$E$39),IF(D53="1.2.5.1.1 Profesional Especializado",(I53*J53*[1]Recursos!$E$33),0)))))) -> 0
K54: =IF(D54="1.2.5.1.3 Tecnicos",(I54*J54*[1]Recursos!$E$35),IF(D54="1.2.5.1.2 Profesional ",(I54*J54*[1]Recursos!$E$34),IF(D54="1.2.5.1.4 Asistenciales",(I54*J54*[1]Recursos!$E$36),IF(D54="1.2.5.1.8 Asesor I",(I54*J54*[1]Recursos!$E$38),IF(D54="1.2.5.1.9 Asesor II",(I54*J54*[1]Recursos!$E$39),IF(D54="1.2.5.1.1 Profesional Especializado",(I54*J54*[1]Recursos!$E$33),0)))))) -> 0
K55: =IF(D55="1.2.5.1.3 Tecnicos",(I55*J55*[1]Recursos!$E$35),IF(D55="1.2.5.1.2 Profesional ",(I55*J55*[1]Recursos!$E$34),IF(D55="1.2.5.1.4 Asistenciales",(I55*J55*[1]Recursos!$E$36),IF(D55="1.2.5.1.8 Asesor I",(I55*J55*[1]Recursos!$E$38),IF(D55="1.2.5.1.9 Asesor II",(I55*J55*[1]Recursos!$E$39),IF(D55="1.2.5.1.1 Profesional Especializado",(I55*J55*[1]Recursos!$E$33),0)))))) -> 0
K56: =IF(D56="1.2.5.1.3 Tecnicos",(I56*J56*[1]Recursos!$E$35),IF(D56="1.2.5.1.2 Profesional ",(I56*J56*[1]Recursos!$E$34),IF(D56="1.2.5.1.4 Asistenciales",(I56*J56*[1]Recursos!$E$36),IF(D56="1.2.5.1.8 Asesor I",(I56*J56*[1]Recursos!$E$38),IF(D56="1.2.5.1.9 Asesor II",(I56*J56*[1]Recursos!$E$39),IF(D56="1.2.5.1.1 Profesional Especializado",(I56*J56*[1]Recursos!$E$33),0)))))) -> 0
K57: =IF(D57="1.2.5.1.3 Tecnicos",(I57*J57*[1]Recursos!$E$35),IF(D57="1.2.5.1.2 Profesional ",(I57*J57*[1]Recursos!$E$34),IF(D57="1.2.5.1.4 Asistenciales",(I57*J57*[1]Recursos!$E$36),IF(D57="1.2.5.1.8 Asesor I",(I57*J57*[1]Recursos!$E$38),IF(D57="1.2.5.1.9 Asesor II",(I57*J57*[1]Recursos!$E$39),IF(D57="1.2.5.1.1 Profesional Especializado",(I57*J57*[1]Recursos!$E$33),0)))))) -> 0
C58: Total Contratistas Meta No 8 | I58: =SUM(I51:I57) -> 0 | J58: =SUM(K51:K57) -> 0
C59: =+#REF! -> 
K60: =IF(D60="1.2.5.1.3 Tecnicos",(I60*J60*[1]Recursos!$E$35),IF(D60="1.2.5.1.2 Profesional ",(I60*J60*[1]Recursos!$E$34),IF(D60="1.2.5.1.4 Asistenciales",(I60*J60*[1]Recursos!$E$36),IF(D60="1.2.5.1.8 Asesor I",(I60*J60*[1]Recursos!$E$38),IF(D60="1.2.5.1.9 Asesor II",(I60*J60*[1]Recursos!$E$39),IF(D60="1.2.5.1.1 Profesional Especializado",(I60*J60*[1]Recursos!$E$33),0)))))) -> 0
K61: =IF(D61="1.2.5.1.3 Tecnicos",(I61*J61*[1]Recursos!$E$35),IF(D61="1.2.5.1.2 Profesional ",(I61*J61*[1]Recursos!$E$34),IF(D61="1.2.5.1.4 Asistenciales",(I61*J61*[1]Recursos!$E$36),IF(D61="1.2.5.1.8 Asesor I",(I61*J61*[1]Recursos!$E$38),IF(D61="1.2.5.1.9 Asesor II",(I61*J61*[1]Recursos!$E$39),IF(D61="1.2.5.1.1 Profesional Especializado",(I61*J61*[1]Recursos!$E$33),0)))))) -> 0
K62: =IF(D62="1.2.5.1.3 Tecnicos",(I62*J62*[1]Recursos!$E$35),IF(D62="1.2.5.1.2 Profesional ",(I62*J62*[1]Recursos!$E$34),IF(D62="1.2.5.1.4 Asistenciales",(I62*J62*[1]Recursos!$E$36),IF(D62="1.2.5.1.8 Asesor I",(I62*J62*[1]Recursos!$E$38),IF(D62="1.2.5.1.9 Asesor II",(I62*J62*[1]Recursos!$E$39),IF(D62="1.2.5.1.1 Profesional Especializado",(I62*J62*[1]Recursos!$E$33),0)))))) -> 0
K63: =IF(D63="1.2.5.1.3 Tecnicos",(I63*J63*[1]Recursos!$E$35),IF(D63="1.2.5.1.2 Profesional ",(I63*J63*[1]Recursos!$E$34),IF(D63="1.2.5.1.4 Asistenciales",(I63*J63*[1]Recursos!$E$36),IF(D63="1.2.5.1.8 Asesor I",(I63*J63*[1]Recursos!$E$38),IF(D63="1.2.5.1.9 Asesor II",(I63*J63*[1]Recursos!$E$39),IF(D63="1.2.5.1.1 Profesional Especializado",(I63*J63*[1]Recursos!$E$33),0)))))) -> 0
K64: =IF(D64="1.2.5.1.3 Tecnicos",(I64*J64*[1]Recursos!$E$35),IF(D64="1.2.5.1.2 Profesional ",(I64*J64*[1]Recursos!$E$34),IF(D64="1.2.5.1.4 Asistenciales",(I64*J64*[1]Recursos!$E$36),IF(D64="1.2.5.1.8 Asesor I",(I64*J64*[1]Recursos!$E$38),IF(D64="1.2.5.1.9 Asesor II",(I64*J64*[1]Recursos!$E$39),IF(D64="1.2.5.1.1 Profesional Especializado",(I64*J64*[1]Recursos!$E$33),0)))))) -> 0
K65: =IF(D65="1.2.5.1.3 Tecnicos",(I65*J65*[1]Recursos!$E$35),IF(D65="1.2.5.1.2 Profesional ",(I65*J65*[1]Recursos!$E$34),IF(D65="1.2.5.1.4 Asistenciales",(I65*J65*[1]Recursos!$E$36),IF(D65="1.2.5.1.8 Asesor I",(I65*J65*[1]Recursos!$E$38),IF(D65="1.2.5.1.9 Asesor II",(I65*J65*[1]Recursos!$E$39),IF(D65="1.2.5.1.1 Profesional Especializado",(I65*J65*[1]Recursos!$E$33),0)))))) -> 0
C66: Total Contratistas Meta No 9 | I66: =SUM(I59:I65) -> 0 | J66: =SUM(K59:K65) -> 0
C67: =+#REF! -> 
K68: =IF(D68="1.2.5.1.3 Tecnicos",(I68*J68*[1]Recursos!$E$35),IF(D68="1.2.5.1.2 Profesional ",(I68*J68*[1]Recursos!$E$34),IF(D68="1.2.5.1.4 Asistenciales",(I68*J68*[1]Recursos!$E$36),IF(D68="1.2.5.1.8 Asesor I",(I68*J68*[1]Recursos!$E$38),IF(D68="1.2.5.1.9 Asesor II",(I68*J68*[1]Recursos!$E$39),IF(D68="1.2.5.1.1 Profesional Especializado",(I68*J68*[1]Recursos!$E$33),0)))))) -> 0
K69: =IF(D69="1.2.5.1.3 Tecnicos",(I69*J69*[1]Recursos!$E$35),IF(D69="1.2.5.1.2 Profesional ",(I69*J69*[1]Recursos!$E$34),IF(D69="1.2.5.1.4 Asistenciales",(I69*J69*[1]Recursos!$E$36),IF(D69="1.2.5.1.8 Asesor I",(I69*J69*[1]Recursos!$E$38),IF(D69="1.2.5.1.9 Asesor II",(I69*J69*[1]Recursos!$E$39),IF(D69="1.2.5.1.1 Profesional Especializado",(I69*J69*[1]Recursos!$E$33),0)))))) -> 0
K70: =IF(D70="1.2.5.1.3 Tecnicos",(I70*J70*[1]Recursos!$E$35),IF(D70="1.2.5.1.2 Profesional ",(I70*J70*[1]Recursos!$E$34),IF(D70="1.2.5.1.4 Asistenciales",(I70*J70*[1]Recursos!$E$36),IF(D70="1.2.5.1.8 Asesor I",(I70*J70*[1]Recursos!$E$38),IF(D70="1.2.5.1.9 Asesor II",(I70*J70*[1]Recursos!$E$39),IF(D70="1.2.5.1.1 Profesional Especializado",(I70*J70*[1]Recursos!$E$33),0)))))) -> 0
K71: =IF(D71="1.2.5.1.3 Tecnicos",(I71*J71*[1]Recursos!$E$35),IF(D71="1.2.5.1.2 Profesional ",(I71*J71*[1]Recursos!$E$34),IF(D71="1.2.5.1.4 Asistenciales",(I71*J71*[1]Recursos!$E$36),IF(D71="1.2.5.1.8 Asesor I",(I71*J71*[1]Recursos!$E$38),IF(D71="1.2.5.1.9 Asesor II",(I71*J71*[1]Recursos!$E$39),IF(D71="1.2.5.1.1 Profesional Especializado",(I71*J71*[1]Recursos!$E$33),0)))))) -> 0
K72: =IF(D72="1.2.5.1.3 Tecnicos",(I72*J72*[1]Recursos!$E$35),IF(D72="1.2.5.1.2 Profesional ",(I72*J72*[1]Recursos!$E$34),IF(D72="1.2.5.1.4 Asistenciales",(I72*J72*[1]Recursos!$E$36),IF(D72="1.2.5.1.8 Asesor I",(I72*J72*[1]Recursos!$E$38),IF(D72="1.2.5.1.9 Asesor II",(I72*J72*[1]Recursos!$E$39),IF(D72="1.2.5.1.1 Profesional Especializado",(I72*J72*[1]Recursos!$E$33),0)))))) -> 0
K73: =IF(D73="1.2.5.1.3 Tecnicos",(I73*J73*[1]Recursos!$E$35),IF(D73="1.2.5.1.2 Profesional ",(I73*J73*[1]Recursos!$E$34),IF(D73="1.2.5.1.4 Asistenciales",(I73*J73*[1]Recursos!$E$36),IF(D73="1.2.5.1.8 Asesor I",(I73*J73*[1]Recursos!$E$38),IF(D73="1.2.5.1.9 Asesor II",(I73*J73*[1]Recursos!$E$39),IF(D73="1.2.5.1.1 Profesional Especializado",(I73*J73*[1]Recursos!$E$33),0)))))) -> 0
C74: Total Contratistas Meta No 10 | I74: =SUM(I67:I73) -> 0 | J74: =SUM(K67:K73) -> 0
C75: =+#REF! ->  | K75: =IF(D75="1.2.5.1.3 Tecnicos",(I75*J75*[1]Recursos!$E$35),IF(D75="1.2.5.1.2 Profesional ",(I75*J75*[1]Recursos!$E$34),IF(D75="1.2.5.1.4 Asistenciales",(I75*J75*[1]Recursos!$E$36),IF(D75="1.2.5.1.8 Asesor I",(I75*J75*[1]Recursos!$E$38),IF(D75="1.2.5.1.9 Asesor II",(I75*J75*[1]Recursos!$E$39),IF(D75="1.2.5.1.1 Profesional Especializado",(I75*J75*[1]Recursos!$E$33),0)))))) -> 0
K76: =IF(D76="1.2.5.1.3 Tecnicos",(I76*J76*[1]Recursos!$E$35),IF(D76="1.2.5.1.2 Profesional ",(I76*J76*[1]Recursos!$E$34),IF(D76="1.2.5.1.4 Asistenciales",(I76*J76*[1]Recursos!$E$36),IF(D76="1.2.5.1.8 Asesor I",(I76*J76*[1]Recursos!$E$38),IF(D76="1.2.5.1.9 Asesor II",(I76*J76*[1]Recursos!$E$39),IF(D76="1.2.5.1.1 Profesional Especializado",(I76*J76*[1]Recursos!$E$33),0)))))) -> 0
K77: =IF(D77="1.2.5.1.3 Tecnicos",(I77*J77*[1]Recursos!$E$35),IF(D77="1.2.5.1.2 Profesional ",(I77*J77*[1]Recursos!$E$34),IF(D77="1.2.5.1.4 Asistenciales",(I77*J77*[1]Recursos!$E$36),IF(D77="1.2.5.1.8 Asesor I",(I77*J77*[1]Recursos!$E$38),IF(D77="1.2.5.1.9 Asesor II",(I77*J77*[1]Recursos!$E$39),IF(D77="1.2.5.1.1 Profesional Especializado",(I77*J77*[1]Recursos!$E$33),0)))))) -> 0
K78: =IF(D78="1.2.5.1.3 Tecnicos",(I78*J78*[1]Recursos!$E$35),IF(D78="1.2.5.1.2 Profesional ",(I78*J78*[1]Recursos!$E$34),IF(D78="1.2.5.1.4 Asistenciales",(I78*J78*[1]Recursos!$E$36),IF(D78="1.2.5.1.8 Asesor I",(I78*J78*[1]Recursos!$E$38),IF(D78="1.2.5.1.9 Asesor II",(I78*J78*[1]Recursos!$E$39),IF(D78="1.2.5.1.1 Profesional Especializado",(I78*J78*[1]Recursos!$E$33),0)))))) -> 0
K79: =IF(D79="1.2.5.1.3 Tecnicos",(I79*J79*[1]Recursos!$E$35),IF(D79="1.2.5.1.2 Profesional ",(I79*J79*[1]Recursos!$E$34),IF(D79="1.2.5.1.4 Asistenciales",(I79*J79*[1]Recursos!$E$36),IF(D79="1.2.5.1.8 Asesor I",(I79*J79*[1]Recursos!$E$38),IF(D79="1.2.5.1.9 Asesor II",(I79*J79*[1]Recursos!$E$39),IF(D79="1.2.5.1.1 Profesional Especializado",(I79*J79*[1]Recursos!$E$33),0)))))) -> 0
K80: =IF(D80="1.2.5.1.3 Tecnicos",(I80*J80*[1]Recursos!$E$35),IF(D80="1.2.5.1.2 Profesional ",(I80*J80*[1]Recursos!$E$34),IF(D80="1.2.5.1.4 Asistenciales",(I80*J80*[1]Recursos!$E$36),IF(D80="1.2.5.1.8 Asesor I",(I80*J80*[1]Recursos!$E$38),IF(D80="1.2.5.1.9 Asesor II",(I80*J80*[1]Recursos!$E$39),IF(D80="1.2.5.1.1 Profesional Especializado",(I80*J80*[1]Recursos!$E$33),0)))))) -> 0
K81: =IF(D81="1.2.5.1.3 Tecnicos",(I81*J81*[1]Recursos!$E$35),IF(D81="1.2.5.1.2 Profesional ",(I81*J81*[1]Recursos!$E$34),IF(D81="1.2.5.1.4 Asistenciales",(I81*J81*[1]Recursos!$E$36),IF(D81="1.2.5.1.8 Asesor I",(I81*J81*[1]Recursos!$E$38),IF(D81="1.2.5.1.9 Asesor II",(I81*J81*[1]Recursos!$E$39),IF(D81="1.2.5.1.1 Profesional Especializado",(I81*J81*[1]Recursos!$E$33),0)))))) -> 0
C82: Total Contratistas Meta No 11 | I82: =SUM(I75:I81) -> 0 | J82: =SUM(K75:K81) -> 0
C83: =+#REF! ->  | K83: =IF(D83="1.2.5.1.3 Tecnicos",(I83*J83*[1]Recursos!$E$35),IF(D83="1.2.5.1.2 Profesional ",(I83*J83*[1]Recursos!$E$34),IF(D83="1.2.5.1.4 Asistenciales",(I83*J83*[1]Recursos!$E$36),IF(D83="1.2.5.1.8 Asesor I",(I83*J83*[1]Recursos!$E$38),IF(D83="1.2.5.1.9 Asesor II",(I83*J83*[1]Recursos!$E$39),IF(D83="1.2.5.1.1 Profesional Especializado",(I83*J83*[1]Recursos!$E$33),0)))))) -> 0
K84: =IF(D84="1.2.5.1.3 Tecnicos",(I84*J84*[1]Recursos!$E$35),IF(D84="1.2.5.1.2 Profesional ",(I84*J84*[1]Recursos!$E$34),IF(D84="1.2.5.1.4 Asistenciales",(I84*J84*[1]Recursos!$E$36),IF(D84="1.2.5.1.8 Asesor I",(I84*J84*[1]Recursos!$E$38),IF(D84="1.2.5.1.9 Asesor II",(I84*J84*[1]Recursos!$E$39),IF(D84="1.2.5.1.1 Profesional Especializado",(I84*J84*[1]Recursos!$E$33),0)))))) -> 0
K85: =IF(D85="1.2.5.1.3 Tecnicos",(I85*J85*[1]Recursos!$E$35),IF(D85="1.2.5.1.2 Profesional ",(I85*J85*[1]Recursos!$E$34),IF(D85="1.2.5.1.4 Asistenciales",(I85*J85*[1]Recursos!$E$36),IF(D85="1.2.5.1.8 Asesor I",(I85*J85*[1]Recursos!$E$38),IF(D85="1.2.5.1.9 Asesor II",(I85*J85*[1]Recursos!$E$39),IF(D85="1.2.5.1.1 Profesional Especializado",(I85*J85*[1]Recursos!$E$33),0)))))) -> 0
K86: =IF(D86="1.2.5.1.3 Tecnicos",(I86*J86*[1]Recursos!$E$35),IF(D86="1.2.5.1.2 Profesional ",(I86*J86*[1]Recursos!$E$34),IF(D86="1.2.5.1.4 Asistenciales",(I86*J86*[1]Recursos!$E$36),IF(D86="1.2.5.1.8 Asesor I",(I86*J86*[1]Recursos!$E$38),IF(D86="1.2.5.1.9 Asesor II",(I86*J86*[1]Recursos!$E$39),IF(D86="1.2.5.1.1 Profesional Especializado",(I86*J86*[1]Recursos!$E$33),0)))))) -> 0
K87: =IF(D87="1.2.5.1.3 Tecnicos",(I87*J87*[1]Recursos!$E$35),IF(D87="1.2.5.1.2 Profesional ",(I87*J87*[1]Recursos!$E$34),IF(D87="1.2.5.1.4 Asistenciales",(I87*J87*[1]Recursos!$E$36),IF(D87="1.2.5.1.8 Asesor I",(I87*J87*[1]Recursos!$E$38),IF(D87="1.2.5.1.9 Asesor II",(I87*J87*[1]Recursos!$E$39),IF(D87="1.2.5.1.1 Profesional Especializado",(I87*J87*[1]Recursos!$E$33),0)))))) -> 0
K88: =IF(D88="1.2.5.1.3 Tecnicos",(I88*J88*[1]Recursos!$E$35),IF(D88="1.2.5.1.2 Profesional ",(I88*J88*[1]Recursos!$E$34),IF(D88="1.2.5.1.4 Asistenciales",(I88*J88*[1]Recursos!$E$36),IF(D88="1.2.5.1.8 Asesor I",(I88*J88*[1]Recursos!$E$38),IF(D88="1.2.5.1.9 Asesor II",(I88*J88*[1]Recursos!$E$39),IF(D88="1.2.5.1.1 Profesional Especializado",(I88*J88*[1]Recursos!$E$33),0)))))) -> 0
K89: =IF(D89="1.2.5.1.3 Tecnicos",(I89*J89*[1]Recursos!$E$35),IF(D89="1.2.5.1.2 Profesional ",(I89*J89*[1]Recursos!$E$34),IF(D89="1.2.5.1.4 Asistenciales",(I89*J89*[1]Recursos!$E$36),IF(D89="1.2.5.1.8 Asesor I",(I89*J89*[1]Recursos!$E$38),IF(D89="1.2.5.1.9 Asesor II",(I89*J89*[1]Recursos!$E$39),IF(D89="1.2.5.1.1 Profesional Especializado",(I89*J89*[1]Recursos!$E$33),0)))))) -> 0
C90: Total Contratistas Meta No 12 | I90: =SUM(I83:I89) -> 0 | J90: =SUM(K83:K89) -> 0
G92: TOTAL DEL RECURSO | I92: =+I90+I74+I66+I50+I58+I42+I34+I29 -> 24 | J92: =J42+J34+J29 -> 818948075

Sheet Docentes V. Especial (hidden)
D2: IDENTIFICACIÓN DE RECURSOS PARA LA FORMULACIÓN DEL PLAN DE ACCIÓN
E5: Facultad | F5: - Seleccione una Facultad - | H5: =IF(F5="Ciencias y Educación","CE",IF(F5="Ingeniería","I",IF(F5="Medio Ambiente y Recursos Naturales","MA",IF(F5="Artes ASAB","A",IF(F5="Tecnológica","T",""))))) -> 
D7: Identifique a continuación de manera explícita el número de Docentes asociados a la Facultad:
D9: Docente | F9: Cantidad (anuales) | G9: TOTAL | H9: Objeto
D11: Docentes Ocasionales de Medio Tiempo (MTO)
A12: 1 | B12: 18938808 | D12: 1.2.2.2.1 Auxiliar MTO | G12: =B12*F12*$A$12 -> 0
B13: 30194892 | D13: 1.2.2.2.2 Asistente MTO | F13: 0 | G13: =B13*F13*$A$12 -> 0
B14: 33946920 | D14: 1.2.2.2.3 Asociado MTO | F14: 0 | G14: =B14*F14*$A$12 -> 0
B15: 37698948 | D15: 1.2.2.2.4 Titular MTO | F15: 0 | G15: =B15*F15*$A$12 -> 0
B16: =SUM(F12:F15) -> 0 | D16: TOTAL RECURSOS MEDIO TIEMPO OCASIONAL | F16: =SUM(F12:F15) -> 0 | G16: =SUM(G12:G15) -> 0
D18: Docentes Ocasionales de Tiempo Completo (TCO)
A19: 1 | B19: 42086240 | D19: 1.2.2.1.1 Auxiliar TCO | F19: 0 | G19: =+B19*F19*$A$19 -> 0
B20: 67099760 | D20: 1.2.2.1.2 Asistente TCO | F20: 0 | G20: =+B20*F20*$A$19 -> 0
B21: 75437600 | D21: 1.2.2.1.3 Asociado TCO | F21: 0 | G21: =+B21*F21*$A$19 -> 0
B22: 83775440 | D22: 1.2.2.1.3 Titular TCO | F22: 0 | G22: =+B22*F22*$A$19 -> 0
B24: =SUM(F19:F22) -> 0 | D24: TOTAL RECURSOS TIEMPO COMPLETO OCASIONAL | F24: =SUM(F19:F23) -> 0 | G24: =SUM(G19:G23) -> 0
D26: Docente | F26: Cantidad de horas (anuales) | G26: TOTAL | H26: Observaciones
D28: Docentes Hora Cátedra
B29: 33625 | D29: 1.2.2.3.1 Hora Catedra Auxiliar | F29: 0 | G29: =+B29*F29 -> 0
B30: 42965 | D30: 1.2.2.3.2 Hora Catedra Asistente | F30: 0 | G30: =+B30*F30 -> 0
B31: 56042 | D31: 1.2.2.3.3 Hora Catedra Titular | G31: =+B31*F31 -> 0
B32: 42965 | D32: 1.2.2.3.4 Hora Catedra Asocidado | G32: =+B32*F32 -> 0
D33: TOTAL RECURSOS HORA CATEDRA | F33: =SUM(F29:F32) -> 0 | G33: =SUM(G29:G32) -> 0
D35: Docente Hora Cátedra Externo (Posgrado) | G35: =F35*#REF! -> 
B36: 0 | D36: 1.2.2.4.1 Hora Catedra Auxiliar | G36: =+B36*F36 -> 0
B37: 146742 | D37: 1.2.2.4.2 Hora Catedra Asistente | F37: 0
B38: 180606 | D38: 1.2.2.4.3 Hora Catedra Titular | F38: 0 | G38: =+B38*F38 -> 0
B39: 225757 | D39: 1.2.2.4.4 Hora Catedra Asocidado | G39: =+B39*F39 -> 0
D40: TOTAL RECURSOS HORA CATEDRA EXTERNO (POSGRADOS) | F40: =SUM(F36:F39) -> 0 | G40: =SUM(G36:G39) -> 0
D42: Docente Hora Cátedra Interno (Posgrado) | G42: =F42*#REF! -> 
B43: 0 | D43: 1.2.2.5.1 Hora Catedra Auxiliar | G43: =+B43*F43 -> 0
B44: 180606 | D44: 1.2.2.5.2 Hora Catedra Asistente | G44: =+B44*F44 -> 0
B45: 214469 | D45: 1.2.2.5.3 Hora Catedra Titular | G45: =+B45*F45 -> 0
B46: 248333 | D46: 1.2.2.5.4 Hora Catedra Asocidado | G46: =+B46*F46 -> 0
D47: TOTAL RECURSOS HORA CATEDRA INTERNO (POSGRADOS) | F47: =SUM(F43:F46) -> 0 | G47: =SUM(G43:G46) -> 0
D48: TOTAL RECURSOS HORA CATEDRA | F48: =SUM(F44:F47) -> 0 | G48: =+G40+G33+G47 -> 0
D50: TOTAL RECURSOS DOCENTES VINCULACION ESPECIAL | G50: =+G16+G24+G33+G40+G47 -> 0

Sheet Asistentes Académicos (hidden)
C2: IDENTIFICACIÓN DE RECURSOS PARA LA FORMULACIÓN DEL PLAN DE ACCIÓN
C5: Facultad | D5: Medio Ambiente y Recursos Naturales | F5: =IF(D5="Ciencias y Educación","CE",IF(D5="Ingeniería","I",IF(D5="Medio Ambiente y Recursos Naturales","MA",IF(D5="Artes ASAB","A",IF(D5="Tecnológica","T",""))))) -> MA
C7: Identifique a continuación el número de Asistentes Académicos e Investigativos asociadas a cada Proyecto Curricular.
D9: Cantidad (Anual) | E9: TOTAL | F9: Objeto (Detalle especificamente la destinación del valor solicitado)
E11: =(816397*2)*D11 -> 0
E12: =(816397*2)*D12 -> 0
E13: 0
E14: 0
E15: 0
E16: 0
E17: 0
D18: SUBTOTAL META # 1 | E18: =SUM(E11:E17) -> 0
E20: =(816397*2)*D20 -> 0
E21: 0
E22: 0
E23: 0
E24: 0
E25: 0
C26: SUBTOTAL META # 2 | E26: =SUM(E19:E25) -> 0
E27: =(816397*2)*D27 -> 0
E28: 0
E29: 0
E30: 0
E31: 0
E32: 0
E33: 0
C34: SUBTOTAL META # 3 | E34: =SUM(E27:E33) -> 0
E35: =(816397*2)*D35 -> 0
E36: 0
E37: 0
E38: 0
E39: 0
E40: 0
E41: 0
C42: SUBTOTAL META # 4 | E42: =SUM(E35:E41) -> 0
E43: =(816397*2)*D43 -> 0
E44: 0
E45: 0
E46: 0
E47: 0
E48: 0
E49: 0
E50: 0
C51: SUBTOTAL META # 5 | E51: =SUM(E44:E50) -> 0
E52: =(816397*2)*D52 -> 0
E53: 0
E54: 0
E55: 0
E56: 0
E57: 0
E58: 0
C59: SUBTOTAL META # 6 | E59: =SUM(E52:E58) -> 0
E60: =(816397*2)*D60 -> 0
E61: 0
E62: 0
E63: 0
E64: 0
E65: 0
E66: 0
E67: 0
C68: SUBTOTAL META # 7 | E68: =SUM(E61:E67) -> 0
E69: =(816397*2)*D69 -> 0
E70: 0
E71: 0
E72: 0
E73: 0
E74: 0
E75: 0
E76: 0
C77: SUBTOTAL META # 8 | E77: =SUM(E70:E76) -> 0
E78: =(816397*2)*D78 -> 0
E79: 0
E80: 0
E81: 0
E82: 0
E83: 0
E84: 0
C85: SUBTOTAL META # 9 | E85: =SUM(E78:E84) -> 0
E86: =(781242*2)*D86 -> 0
E87: 0
E88: 0
E89: 0
E90: 0
E91: 0
E92: 0
E93: 0
C94: SUBTOTAL META # 10 | E94: =SUM(E43:E93) -> 0
E96: TOTAL DEL RECURSO | F96: =SUM(E94+E42+E34+E26+E18) -> 0

Sheet Afiliaciones, Asociaciones afin (hidden)
C2: IDENTIFICACIÓN DE RECURSOS PARA LA FORMULACIÓN DEL PLAN DE ACCIÓN
D5: Unidad Académico y/o Administrativa | G5: =IF(#REF!="Ciencias y Educación","CE",IF(#REF!="Ingeniería","I",IF(#REF!="Medio Ambiente y Recursos Naturales","MA",IF(#REF!="Artes ASAB","A",IF(#REF!="Tecnológica","T",""))))) -> 
C7: Identifique a continuación de manera explícita las Afiliaciones, Asocianes y demas asociadas para cada Unidad Academica: NOTA: Por favor diligenciar en Observaciones el objeto de dicho recurso.
C9: Nombre afiliación /asociación | E9: Presupuesto Asocidado | F9: TOTAL | G9: Objeto (Detalle especificamente la destinación del valor solicitado)
F11: =+E11 -> 0
F12: =+E12 -> 0
F13: 0
F14: 0
F15: 0
F16: 0
F17: 0
C18: SUBTOTAL META # 1 | F18: =SUM(F11:F17) -> 0
F19: 0
F20: 0
F21: 0
F22: 0
F23: 0
F24: 0
F25: 0
C26: SUBTOTAL META # 2 | F26: =SUM(F19:F25) -> 0
F27: 0
F28: 0
F29: 0
F30: 0
F31: 0
F32: 0
F33: 0
C34: SUBTOTAL META # 3 | F34: =SUM(F27:F33) -> 0
F35: 0
F36: 0
F37: 0
F38: 0
F39: 0
F40: 0
F41: 0
C42: SUBTOTAL META # 4 | F42: =SUM(F35:F41) -> 0
F43: 0
F44: 0
F45: 0
F46: 0
F47: 0
F48: 0
F49: 0
C50: SUBTOTAL META # 5 | F50: =SUM(F43:F49) -> 0
F51: 0
F52: 0
F53: 0
F54: 0
F55: 0
F56: 0
F57: 0
C58: SUBTOTAL META # 6 | F58: =SUM(F51:F57) -> 0
F59: 0
F60: 0
F61: 0
F62: 0
F63: 0
F64: 0
F65: 0
C66: SUBTOTAL META # 7 | F66: =SUM(F59:F65) -> 0
F67: 0
F68: 0
F69: 0
F70: 0
F71: 0
F72: 0
F73: 0
C74: SUBTOTAL META # 8 | F74: =SUM(F67:F73) -> 0
F75: 0
F76: =+E76 -> 0
F77: 0
F78: 0
F79: 0
F80: 0
F81: 0
C82: SUBTOTAL META # 9 | F82: =SUM(F75:F81) -> 0
F83: 0
F84: 0
F85: 0
F86: 0
F87: 0
F88: 0
F89: 0
C90: SUBTOTAL META # 10 | F90: =SUM(F83:F89) -> 0
E92: TOTAL DEL RECURSO | G92: =+F90+F82+F74+F66+F58+F50+F42+F26+F18 -> 0

Sheet Capacitación Docente (hidden)
C2: IDENTIFICACIÓN DE RECURSOS PARA LA FORMULACIÓN DEL PLAN DE ACCIÓN
D5: Unidad Académico y/o Administrativa | E5: Artes ASAB | H5: =IF(E5="Ciencias y Educación","CE",IF(E5="Ingeniería","I",IF(E5="Medio Ambiente y Recursos Naturales","MA",IF(E5="Artes ASAB","A",IF(E5="Tecnológica","T",""))))) -> A
C7: Identifique a continuación de manera explícita las actividades asociadas a Capacitación Docente de su Unidad: NOTA: En el caso de seleccionar 'Otro' en el tipo de capacitación, deberá especificarse en el espacio de Observaciones.
D9: Tipo de capacitación | E9: Presupuesto asociado | F9: Cantidad | G9: TOTAL | H9: Objeto (Detalle especificamente la destinación del valor solicitado)
C11: Artes Plásticas y Visuales | D11: Seminario | G11: =E11*F11 -> 0
G12: 0
G13: 0
G14: 0
G15: 0
G16: 0
G17: 0
G18: 0
C19: SUBTOTAL META # 1 | G19: =SUM(G11:G18) -> 0
G20: 0
G21: 0
G22: 0
G23: 0
G24: 0
G25: 0
G26: 0
C27: SUBTOTAL META # 2 | G27: =SUM(G20:G26) -> 0
G28: =E28*F28 -> 0
G29: 0
G30: 0
G31: 0
G32: 0
G33: 0
G34: 0
C35: SUBTOTAL META # 3 | G35: 0 | H35: =SUM(G28:G34) -> 0
G36: =E36*F36 -> 0
G37: 0
G38: 0
G39: 0
G40: 0
G41: 0
G42: 0
C43: SUBTOTAL META # 4 | G43: 0 | H43: =SUM(G36:G42) -> 0
G44: =E44*F44 -> 0
G45: 0
G46: 0
G47: 0
G48: 0
G49: 0
G50: 0
C51: SUBTOTAL META # 5 | G51: 0 | H51: =SUM(G44:G50) -> 0
G52: =E52*F52 -> 0
G53: 0
G54: 0
G55: 0
G56: 0
G57: 0
G58: 0
C59: SUBTOTAL META # 6 | G59: 0 | H59: =SUM(G52:G58) -> 0
G60: =E60*F60 -> 0
G61: 0
G62: 0
G63: 0
G64: 0
G65: 0
G66: 0
C67: SUBTOTAL META # 7 | G67: 0 | H67: =SUM(G60:G66) -> 0
G68: 0
G69: 0
G70: 0
G71: 0
G72: 0
G73: 0
G74: 0
C75: SUBTOTAL META # 8 | G75: 0 | H75: =SUM(G68:G74) -> 0
G76: =E76*F76 -> 0
G77: 0
G78: 0
G79: 0
G80: 0
G81: 0
G82: 0
C83: SUBTOTAL META # 9 | G83: 0 | H83: =SUM(G76:G82) -> 0
G84: =E84*F84 -> 0
G85: 0
G86: 0
G87: 0
G88: 0
G89: 0
G90: 0
C91: SUBTOTAL META # 10 | G91: 0 | H91: =SUM(G84:G90) -> 0
F93: TOTAL DEL RECURSO | H93: =+G19+G27+G35+G43+G51+G59+G67+G75+G83+G91 -> 0

Sheet Capacitacion Adminsitrativos (hidden)
C2: IDENTIFICACIÓN DE RECURSOS PARA LA FORMULACIÓN DEL PLAN DE ACCIÓN
D5: Unidad Académico y/o Administrativa | E5: - Seleccione la Unidad -
C7: Identifique a continuación de manera explícita las actividades asociadas a Capacitación Docente de su Unidad: NOTA: En el caso de seleccionar 'Otro' en el tipo de capacitación, deberá especificarse en el espacio de Observaciones.
C9: Tipo de capacitación | E9: Presupuesto asociado | F9: Cantidad de eventos | G9: TOTAL | H9: Objeto (Detalle especificamentela destinación del valor solicitado)
F11: 0 | G11: =E11*F11 -> 0 | H11: Estos cursos seran realizados con el fin de capacitar a los funcionarios de la Universi
G12: 0
G13: 0
G14: 0
G15: 0
G16: 0
G17: 0
C18: SUBTOTAL META # 1 | G18: =SUM(G11:G17) -> 0
G19: =E19*F19 -> 0
G20: 0
G21: 0
G22: 0
G23: 0
G24: 0
G25: 0
C26: SUBTOTAL META # 2 | G26: =SUM(G19:G25) -> 0
G27: =E27*F27 -> 0
C34: SUBTOTAL META # 3 | G34: =SUM(G27:G33) -> 0
C42: SUBTOTAL META # 4 | G42: =SUM(G35:G41) -> 0
C50: SUBTOTAL META # 5 | G50: =SUM(G43:G49) -> 0
C58: SUBTOTAL META # 6 | G58: =SUM(G51:G57) -> 0
C66: SUBTOTAL META # 7 | G66: =SUM(G59:G65) -> 0
C74: SUBTOTAL META # 8 | G74: =SUM(G67:G73) -> 0
C82: SUBTOTAL META # 9 | G82: =SUM(G75:G81) -> 0
G87: =E87*F87 -> 0
G89: =E89*F89 -> 0
C90: SUBTOTAL META # 10 | G90: =SUM(G35:G89) -> 0
F92: TOTAL DEL RECURSO | H92: =SUM(G11:G90) -> 0

Sheet Eventos Académicos (hidden)
C2: IDENTIFICACIÓN DE RECURSOS PARA LA FORMULACIÓN DEL PLAN DE ACCIÓN
D5: Facultad | E5: Ingeniería | H5: =IF(E5="Ciencias y Educación","CE",IF(E5="Ingeniería","I",IF(E5="Medio Ambiente y Recursos Naturales","MA",IF(E5="Artes ASAB","A",IF(E5="Tecnológica","T",""))))) -> I
C7: Identifique a continuación de manera explícita los eventos académicos asociados a cada Proyecto Curricular: NOTA: En el caso de seleccionar 'Otro' en el tipo de evento, deberá especificarse en el espacio de Observaciones.
C9: Proyecto Curricular | D9: Tipo de evento | E9: Cantidad | F9: Presupuesto Asocidado | G9: TOTAL | H9: Objeto (Detalle especificamente la destinación del valor solicitado)
G11: =E11*F11 -> 0
G12: 0
G13: 0
G14: 0
G15: 0
G16: 0
G17: 0
G18: 0
C19: SUBTOTAL META # 1 | G19: =SUM(G11:G18) -> 0
G20: =E20*F20 -> 0
G21: =E21*F21 -> 0
G22: 0
G23: 0
G24: 0
G25: 0
G26: 0
G27: 0
C28: SUBTOTAL META # 2 | G28: =SUM(G20:G27) -> 0
G29: =E29*F29 -> 0
G30: 0
G31: 0
G32: 0
G33: 0
G34: 0
G35: =E35*F35 -> 0
G36: =E36*F36 -> 0
C37: SUBTOTAL META # 3 | G37: =SUM(G29:G36) -> 0
G38: =E38*F38 -> 0
G39: 0
G40: 0
G41: 0
G42: 0
G43: 0
G44: 0
G45: 0
C46: SUBTOTAL META # 4 | G46: =SUM(G38:G45) -> 0
G47: =E47*F47 -> 0
G48: 0
G49: 0
G50: 0
G51: 0
G52: 0
G53: 0
G54: 0
C55: SUBTOTAL META # 5 | G55: =SUM(G47:G54) -> 0
G56: =E56*F56 -> 0
G57: 0
G58: 0
G59: 0
G60: 0
G61: 0
G62: 0
G63: 0
C64: SUBTOTAL META # 6 | G64: =SUM(G56:G63) -> 0
G65: =E65*F65 -> 0
G66: 0
G67: 0
G68: 0
G69: 0
G70: 0
G71: 0
G72: 0
C73: SUBTOTAL META # 7 | G73: =SUM(G65:G72) -> 0
G74: =E74*F74 -> 0
G75: 0
G76: 0
G77: 0
G78: 0
G79: 0
G80: 0
G81: 0
C82: SUBTOTAL META # 8 | G82: =SUM(G74:G81) -> 0
G83: =E83*F83 -> 0
C91: SUBTOTAL META # 9 | G91: =SUM(G83:G90) -> 0
G99: =E99*F99 -> 0
C100: SUBTOTAL META # 10 | G100: =SUM(G46:G99) -> 0
F102: TOTAL DEL RECURSO | H102: =+G100+G46+G37+G28+G19 -> 0

Sheet Eventos (hidden)
C2: IDENTIFICACIÓN DE RECURSOS PARA LA FORMULACIÓN DEL PLAN DE ACCIÓN
D5: Unidad Académico y/o Administrativa | E5: División de Recursos Humanos | H5: =IF(E5="Ciencias y Educación","CE",IF(E5="Ingeniería","I",IF(E5="Medio Ambiente y Recursos Naturales","MA",IF(E5="Artes ASAB","A",IF(E5="Tecnológica","T",""))))) -> 
C7: Identifique a continuación de manera explícita los eventos asociados a la unidad academico Y/o Administrativa: NOTA: En el caso de seleccionar 'Otro' en el tipo de evento deberá especificarse en el espacio de Observaciones.
C9: Tipo de evento | E9: Cantidad | F9: Presupuesto Asocidado | G9: TOTAL | H9: Objeto (Detalle especificamente la destinación del valor solicitado)
G11: =E11*F11 -> 0
G12: 0
G13: 0
G14: 0
G15: 0
G16: 0
G17: 0
C18: SUBTOTAL META # 1 | G18: =SUM(G11:G17) -> 0
G19: =E19*F19 -> 0
G20: 0
G21: 0
G22: 0
G23: 0
G24: 0
G25: 0
C26: SUBTOTAL META # 2 | G26: =SUM(G19:G25) -> 0
G27: =E27*F27 -> 0
C34: SUBTOTAL META # 3 | G34: =SUM(G27:G33) -> 0
G35: =E35*F35 -> 0
G36: 0
G37: 0
G38: 0
G39: 0
G40: 0
G41: 0
C42: SUBTOTAL META # 4 | G42: =SUM(G35:G41) -> 0
G43: =E43*F43 -> 0
G44: 0
G45: 0
G46: 0
G47: 0
G48: 0
G49: 0
C50: SUBTOTAL META # 5 | G50: =SUM(G43:G49) -> 0
G51: =E51*F51 -> 0
G52: 0
G53: 0
G54: 0
G55: 0
G56: 0
G57: 0
C58: SUBTOTAL META # 6 | G58: =SUM(G51:G57) -> 0
G59: =E59*F59 -> 0
G60: 0
G61: 0
G62: 0
G63: 0
G64: 0
G65: 0
C66: SUBTOTAL META # 7 | G66: =SUM(G59:G65) -> 0
G67: =E67*F67 -> 0
G68: 0
G69: 0
G70: 0
G71: 0
G72: 0
G73: 0
C74: SUBTOTAL META # 8 | G74: =SUM(G67:G73) -> 0
G75: =E75*F75 -> 0
G76: 0
G77: 0
G78: 0
G79: 0
G80: 0
G81: 0
C82: SUBTOTAL META # 9 | G82: =SUM(G75:G81) -> 0
G85: =E85*F85 -> 0
G86: =E86*F86 -> 0
G87: =E87*F87 -> 0
G88: =E88*F88 -> 0
G90: =E90*F90 -> 0
C91: SUBTOTAL META # 10 | G91: =SUM(G43:G90) -> 0
F93: TOTAL DEL RECURSO | H93: =SUM(G11:G91) -> 0

Sheet Prácticas (hidden)
C2: IDENTIFICACIÓN DE RECURSOS PARA LA FORMULACIÓN DEL PLAN DE ACCIÓN
D5: Facultad | H5: =IF(E5="Ciencias y Educación","CE",IF(E5="Ingeniería","I",IF(E5="Medio Ambiente y Recursos Naturales","MA",IF(E5="Artes ASAB","A",IF(E5="Tecnológica","T",""))))) -> 
C7: Identifique a continuación de manera explícita las prácticas asociadas a cada Proyecto Curricular de la Facultad: NOTA: En el caso de seleccionar 'Otro' en el tipo de práctica, deberá especificarse en el espacio de Observaciones.
D9: Tipo de práctica | E9: Presupuesto asociado | F9: Cantidad | G9: TOTAL | H9: Objeto (Detalle especificamente la destinación del valor solicitado)
D11: Evento estudiantil | E11: 13456000 | F11: 1 | G11: =E11*F11 -> 13456000
G12: =E12*F12 -> 0
G13: 0
G14: 0
G15: 0
G16: 0
G17: 0
C18: SUBTOTAL META # 1 | G18: =SUM(G11:G17) -> 13456000
G19: =E19*F19 -> 0
G20: 0
G21: 0
G22: 0
G23: 0
G24: 0
G25: 0
C26: SUBTOTAL META # 2 | G26: =SUM(G19:G25) -> 0
G27: =E27*F27 -> 0
G28: 0
G29: 0
G30: 0
G31: 0
G32: 0
G33: 0
C34: SUBTOTAL META # 3 | G34: =SUM(G27:G33) -> 0
G35: =E35*F35 -> 0
G36: 0
G37: 0
G38: 0
G39: 0
G40: 0
G41: 0
C42: SUBTOTAL META # 4 | G42: =SUM(G35:G41) -> 0
G43: =E43*F43 -> 0
G44: 0
G45: 0
G46: 0
G47: 0
G48: 0
G49: 0
C50: SUBTOTAL META # 5 | G50: =SUM(G43:G49) -> 0
G51: =E51*F51 -> 0
G52: 0
G53: 0
G54: 0
G55: 0
G56: 0
G57: 0
C58: SUBTOTAL META # 6 | G58: =SUM(G51:G57) -> 0
G59: =E59*F59 -> 0
G60: 0
G61: 0
G62: 0
G63: 0
G64: 0
G65: 0
C66: SUBTOTAL META # 7 | G66: =SUM(G59:G65) -> 0
G67: =E67*F67 -> 0
G68: 0
G69: 0
G70: 0
G71: 0
G72: 0
G73: 0
C74: SUBTOTAL META # 8 | G74: =SUM(G67:G73) -> 0
G75: =E75*F75 -> 0
G76: 0
G77: 0
G78: 0
G79: 0
G80: 0
C81: SUBTOTAL META # 9 | G81: =SUM(G27:G80) -> 0
G82: =E82*F82 -> 0
G83: 0
G84: 0
G85: 0
G86: 0
G87: 0
G88: 0
C89: SUBTOTAL META # 10 | G89: =SUM(G82:G88) -> 0
F91: TOTAL DEL RECURSO | H91: =SUM(G11:G89) -> 26912000

Sheet Hoja2 (hidden)
C3: Lineamientos | D3: Estrategias | E3: Actividades | F3: Recursos
C4: 2 | D4: 3 | E4: 6 | F4: 5 | G4: =+C4*D4*E4*F4 -> 180

Sheet Instructivo (hidden)
B2: Lineamiento No | C2: Lineamiento Estrategico | D2: Estrategia | E2: Actividades | F2: Proceso | G2: Tipo de Indicaciones | H2: Indicador | I2: Meta | J2: Recursos | K2: Cantidad | L2: $
B3: Conforme al Plan Estrategico de Desarrollo para el año 2018-2030, seleccione el lineamiento dentro del cual se enmarca el desarrollo del plan de Acción correspondiente a su area. | C3: Aca aparecera la descripcion del lineamiento escogido en el recuadro anterior. | D3: Seleccione de la lista desplegable la estrategia la cual encaja dentro de lo que el | E3: Esta debe iniciar con un verbo infinitivo y debe responder a un ¿Que?¿Como?¿ Para que? | F3: Identifique el procesos en el cual

Sheet MAtriz (hidden)
B2: Lineamientos | C2: Lineamiento1 | D2: Lineamiento2 | E2: Lineamiento3 | F2: Lineamiento4 | G2: Lineamiento5 | N2: Lineamientos
B3: Lineamiento1 | C3: 1.1:Difusión y apropiación del Proyecto Universitario Institucional. | D3: 2.1: Definición de lineamientos curriculares institucionales con enfoque crítico-transformador que fomenten el dialogo de saberes y conocimientos, la integración curricular, la pertinencia social, la flexibilidad, la interdisciplinariedad, la investigación curricular, la innovación y el uso de metodologías pertinentes a los diversos contextos | E3: 3.1: Transferencia de resultados de investigación, creación e innovación institucionales para la solución de problemas de la sociedad. | F3: 4.1:Elaborar y ejecutar el Plan Maestro de Espacios Educativos | G3: 5.1:Garantizar tecnologías y canales digitales que permitan generar, procesar y acceder a información oportuna sobre las funciones universitarias, los procesos y procedimientos institucionales, el trámite de servicios, la recepción de solicitudes y la generación de respuestas pertinentes y satisfactorias. | N3: Lineamiento1 | O3: 1. Formar ciudadanos, profesionales, investigadores, creadores e innovadores, íntegros con pensamiento crítico y cultura democrática, en contextos diferenciados inter y multiculturales para la transformación de la sociedad.
B4: Lineamiento2 | C4: 1.2: Desarrollar de manera permanente procesos de autoevaluación que se traduzcan en planes de mejoramiento continuo para programas de posgrado y pregrado. | D4: 2.2:Estructuración de metodologías y estrategias de enseñanza - aprendizaje que favorezcan la construcción y resolución de situaciones problémicas | E4: 3.2:Definición y desarrollo de modelos de apropiación social del conocimiento, que posibiliten el intercambio y diálogo de saberes y conocimientos con los sectores sociales, productivos y culturales. | F4: 4.2: Desarrollo y actualización sostenible de la infraestructura universitaria de manera articulada entre las sedes de la Universidad; además con una relación amable y respetuosa con el ambiente. | G4: 5.2:Garantizar la divulgación de toda información pública generada por la Universidad; así como el control de la información pública clasificada y reservada que maneja la institución. | I4: =IF(J6="Formar ciudadanos, profesionales, investigadores, creadores e innovadores, íntegros con pensamiento crítico y cultura democrática, en contextos diferenciados inter y multiculturales para la transformación de la sociedad. ",Lineamiento1,IF(J6="2. Establecer un diseño curricular dinámico y flexible que promueva el pluralismo y consolide una comunidad universitaria crítica-transformadora y en armonía ambiental. ",Lineamiento2,IF(J6="3. Integrar las funciones universitarias por medio de la investigación, creación, innovación para la ampliación del conocimiento como bien público y para la solución de problemas de la ciudad -región y de la sociedad en general. ",Lineamiento3,IF(J6="4. Garantizar, gestionar y proveer las condiciones institucionales para el cumplimiento de las funciones universitarias y el bienestar de su comunidad.",Lineamiento4,IF(J6="5. Consolidar y fortalecer la democracia participativa, la gobernanza y la gobernabilidad para la cohesión de la comunidad universitaria.",Lineamiento5,))))) -> 0 | N4: Lineamiento2 | O4: 2. Establecer un diseño curricular dinámico y flexible que promueva el pluralismo y consolide una comunidad universitaria crítica-transformadora y en armonía ambiental.
B5: Lineamiento3 | C5: 1.3:.Elevar el nivel de desempeño de los estudiantes en las pruebas Saber Pro. | D5: 2.3:Construcción e implementación de una reforma curricular participativa, integral y flexible que fomente la integración de las funciones universitarias y los campos, articule los niveles de formación y promueva la internacionalización de los planes de estudios | E5: 3.3:Mejoramiento y cualificación de la producción y difusión científica y creativa, de tal manera que logren mayor presencia en el mundo académico | F5: 4.3: Promoción de la cultura de respeto por el ambiente y la sostenibilidad ambiental | G5: 5.3:Consolidación de mecanismos de democracia participativa, donde la comunidad universitaria se involucre en la toma decisiones y en las dinámicas propias de la institución | N5: Lineamiento3 | O5: 3. Integrar las funciones universitarias por medio de la investigación, creación, innovación para la ampliación del conocimiento como bien público y para la solución de problemas de la ciudad -región y de la sociedad en general.
B6: Lineamiento4 | C6: 1.4: Adopción de mecanismos que permitan mayor equidad y disminución de las diferencias en las condiciones laborales de los docentes. | D6: 2.4:Desarrollo de programas e incentivos que favorezcan mejorar los índices de permanencia y repitencia. | E6: 3.4:Definición y desarrollo de la agenda de investigación-innovación-creación institucional con la comunidad universitaria y con el apoyo de actores interesados, estableciendo mecanismos de participación de acuerdo con los contextos, saberes y conocimientos de los participantes. | F6: 4.4: Desarrollo y consolidación de un campus digital que conecte a las distintas dependencias académicas y administrativas y que supere las distancias territoriales entre las distintas sedes de la Universidad. | G6: 5.4:Promover formas de organización, interacción y asociación de los estudiantes para su participación activa en los asuntos de la vida universitaria y de la sociedad | N6: Lineamiento4 | O6: 4. Garantizar, gestionar y proveer las condiciones institucionales para el cumplimiento de las funciones universitarias y el bienestar de su comunidad.
B7: Lineamiento5 | C7: 1.5:Consolidación y aumento de una oferta académica flexible que articule los diferentes niveles de formación desde el nivel básico hasta el superior. | D7: 2.5: Promoción de alternativas académicas que diversifiquen las modalidades de trabajos de grado. | E7: 3.5:Formulación de una política de investigación que permita la creación de programas, proyectos, líneas y áreas de investigación que estimulen la producción científica, y la solución de problemas de la ciudad-región y del país. | F7: 4.5: Fortalecimiento de un sistema integral de información institucional que garantice su disponibilidad y la memoria institucional | G7: 5.5: Adelantar diálogos con las diferentes representaciones de la sociedad civil, las agencias de cooperación, el sector privado y la academia para cualificar el proceso de rendición pública de cuentas. | N7: Lineamiento5 | O7: 5. Consolidar y fortalecer la democracia participativa, la gobernanza y la gobernabilidad para la cohesión de la comunidad universitaria.
C8: 1.6:Articulación de la acción institucional con las políticas nacionales y distritales en materia de equidad, cobertura y calidad | D8: 2.6:Adoptar y desarrollar un programa de admisión y permanencia que permita un tránsito flexible en la malla curricular y las posibilidades de titulación, cotitulación y doble titulación. | E8: 3.6: Consolidar y cualificar los grupos y semilleros de investigación | F8: 4.6: Favorecer los indicadores de área por estudiante para el desarrollo de la actividad curricular. | G8: 5.6: Garantizar la recepción y respuesta al 100% de las peticiones, quejas y reclamos, a través de canales y medios que se ajusten a las necesidades y capacidades de las personas que los interponen.
C9: 1.7: Coherencia entre la proyección de la oferta académica institucional, los programas, los recursos humanos y físicos para mantener la calidad de la formación, la investigación, la creación y la innovación | D9: 2.7: Fortalecimiento de un modelo de formación docente continuo, que permita fomentar las dimensiones pedagógicas, didácticas, profesionales y humanas y los procesos de innovación pedagógica. | E9: 3.7:Creación de redes de investigación, nacionales e internacionales; y promover las membresías pertinentes. | F9: 4.7: Creación e implementación del sistema CRAI (Centro de Recursos para el Aprendizaje y la Investigación) que articule los medios educativos de la Universidad. | G9: 5.7: Construir, ejecutar y evaluar periódicamente la estrategia de participación y rendición de cuentas.
C10: 1.8: Consolidación y aumento de una oferta académica flexible que articule los diferentes niveles de formación desde el nivel básico hasta el superior | D10: 2.8: Consolidación de una evaluación integral del currículo que permita el diseño, implementación, seguimiento y retroalimentación del mismo; promueva la pertinencia social de los programas académicos, la formación integral de personas en situación de discapacidad, la especialización docente en nuevas metodologías y modalidades de enseñanza-aprendizaje; y propicie el aumento en la atención cualificada de poblaciones académicas específicas. | E10: 3.8: Promover la categorización de grupos de investigación en las convocatorias que para efecto se reglamenten. | F10: 4.8: Identificar los avances en materia de conocimiento científico, tecnológico y de innovación que inciden en la organización, gestión y productividad de los procesos institucionales. | G10: 5.8: Implementar un sistema integrado de comunicaciones que permita gestionar, articular y medir su impacto en la publicidad, difusión, acceso y apropiación de la información para favorecer la visibilidad institucional nacional e internacionalmente.
C11: 1.9:Promoción del intercambio, la circulación y el diálogo de conocimientos y saberes, a través de encuentros multidisciplinarios de conocimiento | D11: 2.9: Construcción de la política de integridad como parte del quehacer diario, que favorezca reflexiones, actitudes y comportamientos positivos de todos los servidores públicos, y que contribuya al cambio cultural. | E11: 3.9: Expedición de la reglamentación interna que defina el marco y las condiciones para la creación y la gestión de las empresas. | F11: 4.9: Conocer las necesidades que expresan los resultados de la evaluación del desempeño; determinar las observaciones de las auditorías, internas y externas sobre la gestión y sus resultados; y diagnosticar las necesidades de los servidores públicos en materia de conocimientos. | G11: 5.9: Estudiar las causas por las cuales se producen las peticiones, quejas y reclamos y adoptar mecanismos que permitan el mejoramiento continuo en la prestación de los servicios.
C12: 1.10: Gestión de proyectos que promuevan la investigación y la proyección social como instrumentos de articulación de la Universidad con la sociedad. | D12: 2.10: Motivar la participación de la comunidad universitaria, especialmente de los estudiantes en el diagnóstico y consolidación de programas de bienestar | E12: 3.10: Desarrollo de las actividades que aborden las problemáticas de los sectores productivos, e integren a la comunidad universitaria en la búsqueda de soluciones efectivas que respondan a las necesidades diagnosticadas | F12: 4.10: Construcción de una cultura organizacional universitaria basada en la solidaridad y el respeto por lo público que permita promover la transparencia, la ética y la responsabilidad colectiva en el marco de la autonomía universitaria | G12: 5.10:Fortalecimiento y ampliación de mecanismos que garanticen la eficiencia, eficacia y efectividad de las funciones universitarias; la transparencia y la ética en la toma de decisiones y en la operación institucional; y la seguridad jurídica institucional.
C13: 1.11: Promoción de encuentros y articulación con el sector productivo a fin de responder a sus demandas y generar sinergia en la difusión y apropiación del conocimiento. | D13: 2.11:Construcción de una política cultural universitaria que propenda la diversidad de las expresiones artísticas, culturales, deportivas y el desarrollo de la pertenencia institucional. | E13: 3.11: Fortalecer los diálogos e intercambios con organismos internacionales, entidades estatales y sectores productivos. | F13: 4.11:Aumentar y cualificar la planta de empleos docentes y administrativos, en correspondencia con la organización interna, la proyección de cobertura y las condiciones institucionales. | G13: 5.11: Revisión, actualización y modernización del Estatuto General y de las demás normas estatutarias requeridas para el cumplimiento de las funciones institucionales, con las debidas consultas a la comunidad universitaria.
C14: 1.12: Gestión y consolidación de relaciones nacionales e internacionales para fortalecer el intercambio académico, investigativo, de creación e innovación. | D14: 2.12: Construcción de una cultura organizacional universitaria basada en la solidaridad y el respeto por lo público que permita promover la transparencia, la ética y la responsabilidad colectiva en el marco de la autonomía universitaria. | E14: 3.12: Actualización y ajuste, a los intereses de la Universidad, del Estatuto de Propiedad Intelectual. | F14: 4.12: Implementar estrategias orientadas a incentivar los ascensos en el escalafón de los docentes de carrera y docentes especiales | G14: 5.12: Consolidación de sistemas de gestión, control, seguimiento, digitalización y acceso a la información, gestión documental, servicio en línea, trámites institucionales y atención a las personas.
C15: 1.13: Establecer y desarrollar un modelo de homologación y equivalencias entre los diferentes programas y las normas que lo reglamenten. | D15: 2.13: Crear un sistema de evaluación de los servicios de bienestar universitario. | E15: 3.13: Incrementar el número de doctores que participan en el desarrollo de acciones encaminadas a la apropiación social del conocimiento. | F15: 4.13: Adecuar las instalaciones para garantizar el bienestar de las personas en situación de discapacidad. | G15: 5.13: Estudiar, detectar, tratar y eliminar los riesgos de corrupción, motivando la participación de la comunidad universitaria y de la sociedad en la vigilancia de la gestión y la protección del patrimonio de la Universidad.
C16: 1.14: Establecer y desarrollar una política institucional de apropiación de la segunda lengua como parte activa de la gestión curricular, y como condición para la titulación y la evaluación. | E16: 3.14: Creación y funcionamiento de un Centro de Innovación y Emprendimiento que contribuya a dar respuesta a las necesidades de los empresarios de la ciudad región, y promueva la articulación interdisciplinaria de servicios a los sectores económicos y la apropiación social del conocimiento como bien público. | F16: 4.14:Motivar el conocimiento de lenguajes y actividades interactivas entre los servidores de la entidad y las personas en situación de discapacidad | G16: 5.1:Garantizar tecnologías y canales digitales que permitan generar, procesar y acceder a información oportuna sobre las funciones universitarias, los procesos y procedimientos institucionales, el trámite de servicios, la recepción de solicitudes y la generación de respuestas pertinentes y satisfactorias.
C17: 1.15:Promover y consolidar convenios con universidades internacionales e incrementar los intercambios de estudiantes y docentes. | E17: 3.15: Establecer alianzas estratégicas y apoyar los parques tecnológicos en las áreas de influencia de la Universidad. | G17: 5.2:Garantizar la divulgación de toda información pública generada por la Universidad; así como el control de la información pública clasificada y reservada que maneja la institución.
C18: 1.16: Desarrollar y fortalecer la participación de la Universidad en el desarrollo del sistema educativo distrital. | E18: 3.16: Concertar acciones de investigación, formación y asesoría con las empresas de los sectores productivos de la ciudad-región | G18: 5.3:Consolidación de mecanismos de democracia participativa, donde la comunidad universitaria se involucre en la toma decisiones y en las dinámicas propias de la institución
C19: 1.17: Articulación con autoridades del Sector Educativo, los colegios y sus estamentos, la comunidad y los sectores económicos, con el fin de evaluar, articular y consolidar los objetivos educacionales y los procesos de formación en investigación, creación, innovación y emprendimiento, para fomentar la comprensión y solución de problemas y la potenciación de capacidades hacia la transformación de la sociedad. | G19: 5.4:Promover formas de organización, interacción y asociación de los estudiantes para su participación activa en los asuntos de la vida universitaria y de la sociedad
C20: 1.18: Estudio sobre el impacto de la articulación con el Sector Educativo Distrital en el acceso, la permanencia y la titulación. | G20: 5.5: Adelantar diálogos con las diferentes representaciones de la sociedad civil, las agencias de cooperación, el sector privado y la academia para cualificar el proceso de rendición pública de cuentas.
C21: 1.19: Fortalecimiento y creación de programas que fomenten la inclusión, la permanencia, la retención y la graduación | G21: 5.6: Garantizar la recepción y respuesta al 100% de las peticiones, quejas y reclamos, a través de canales y medios que se ajusten a las necesidades y capacidades de las personas que los interponen.
C22: 1.20: Desarrollo del Sistema de Bienestar universitario integral, que mejore las condiciones de los miembros de la comunidad universitaria, con altos estándares de calidad | G22: 5.7: Construir, ejecutar y evaluar periódicamente la estrategia de participación y rendición de cuentas.
C23: 1.21: Promoción de la comprensión y el análisis sobre las condiciones, creencias y alternativas de proyección de los intereses de los estudiantes sobre su futuro, su situación socioeconómica y la visión que les ofrece la Universidad. | G23: 5.8: Implementar un sistema integrado de comunicaciones que permita gestionar, articular y medir su impacto en la publicidad, difusión, acceso y apropiación de la información para favorecer la visibilidad institucional nacional e internacionalmente.
C24: 1.22: Disponer de manera funcional y jerarquizada un orden adecuado de relaciones entre las facultades, las escuelas y los programas académicos, de acuerdo con el Estatuto General. | G24: 5.9: Estudiar las causas por las cuales se producen las peticiones, quejas y reclamos y adoptar mecanismos que permitan el mejoramiento continuo en la prestación de los servicios.
G25: 5.10:Fortalecimiento y ampliación de mecanismos que garanticen la eficiencia, eficacia y efectividad de las funciones universitarias; la transparencia y la ética en la toma de decisiones y en la operación institucional; y la seguridad jurídica institucional.
G26: 5.11: Revisión, actualización y modernización del Estatuto General y de las demás normas estatutarias requeridas para el cumplimiento de las funciones institucionales, con las debidas consultas a la comunidad universitaria.
G27: 5.12: Consolidación de sistemas de gestión, control, seguimiento, digitalización y acceso a la información, gestión documental, servicio en línea, trámites institucionales y atención a las personas.
G28: 5.13: Estudiar, detectar, tratar y eliminar los riesgos de corrupción, motivando la participación de la comunidad universitaria y de la sociedad en la vigilancia de la gestión y la protección del patrimonio de la Universidad.

Sheet Mantenimientos y Rep (hidden)
C1: =IF(D11="Muebles","Muebles",IF(D11="Inmuebles","Inmuebles",)) -> Muebles
C2: IDENTIFICACIÓN DE RECURSOS PARA LA FORMULACIÓN DEL PLAN DE ACCIÓN
D5: Unidad Académico y/o Administrativa | F5: Red de Datos UDNET | H5: =IF(#REF!="Ciencias y Educación","CE",IF(#REF!="Ingeniería","I",IF(#REF!="Medio Ambiente y Recursos Naturales","MA",IF(#REF!="Artes ASAB","A",IF(#REF!="Tecnológica","T",""))))) -> 
C7: Identifique a continuación de manera explícita los Tipos de mejora, de bien y Concepto asociados a las Unidades Academico y/o Administrativas: NOTA: Es de carácter obligatorio diligenciar el objeto del mantenimiento.
C9: Tipo de Mejora | D9: Tipo de Bien | E9: Definición del Concepto | F9: Presupuesto Asocidado | G9: TOTAL | H9: (Objeto) Detalle especificamente la destinación del valor solicitado
C11: Preventiva | D11: Muebles
G12: =+F12 -> 0
G14: =+F14 -> 0
G15: =+F15 -> 0
G16: =+F16 -> 0
G17: =+F17 -> 0
C18: SUBTOTAL META # 1 | G18: =SUM(G11:G17) -> 0
G19: =+F19 -> 0
G20: 0
G21: 0
G22: 0
G23: 0
G24: 0
G25: 0
C26: SUBTOTAL META # 2 | G26: =SUM(G19:G25) -> 0
G27: =+F27 -> 0
C34: SUBTOTAL META # 3 | G34: =SUM(G26:G33) -> 0
C42: SUBTOTAL META # 4 | G42: =SUM(G34:G41) -> 0
G47: =+F47 -> 0
G48: =+F48 -> 0
G49: =+F49 -> 0
C50: SUBTOTAL META # 5 | G50: =SUM(G42:G49) -> 0
F52: TOTAL DEL RECURSO | H52: =SUM(G11:G50) -> 0

Sheet Datos (hidden)
D3: Prácticas académicas - asistentes académico e investigativos
B4: - Seleccione una Facultad - | D4: Medio Ambiente y Recursos Naturales | E4: Ciencias y Educación | F4: Artes ASAB | G4: Ingeniería | H4: Tecnológica
D5: Ingeniería Forestal | E5: Archivistica y Gestión de la Información Digital | F5: Artes Plásticas y Visuales | G5: Ingeniería Catastral y Geodesia | H5: Tecnología en Gestión de la Producción Indsutrial por Ciclos Propedéuticos
D6: Ingeniería Topográfica | E6: Comunicación Social y Periodismo | F6: Arte Danzario | G6: Ingeniería Industrial | H6: Tecnología Electrónica por Ciclos Propedéuticos
D7: Ingeniería Ambiental | E7: Licenciatura en Biología | F7: Artes Musicales | G7: Ingeniería Electrónica | H7: Tecnología en Construcciones Civiles por Ciclos Propedéuticos
D8: Administración Ambiental | E8: Licenciatura en Química | F8: Artes Escenicas | G8: Ingeniería Eléctrica | H8: Tecnologia en Sistemas Electronicos de Media y Baja Tensíon por Ciclos Propedéuticos
D9: Administración Deportiva | E9: Licenciatura en Física | G9: Ingeniería de Sistemas | H9: Tecnología en Sistematización de Datos por Ciclos Propedéuticos
D10: Tecnología en Gestión Ambiental y Servicios Públicos | E10: Licenciatura en Humanidades y Lengua Castellana | F10: Maestría en Estudios Artísticos | H10: Tecnología Mecánica por Ciclos Propedéuticos
B11: Seminario | D11: Tecnología en Saneamiento Ambiental | E11: Matemáticas | G11: Especialización en avaluos | H11: Ingenieria Eléctrica por Ciclos Propedéuticos
B12: Taller | D12: Tecnología en Levantamiento Topográficos | E12: Licenciatura en Matemáticas | G12: Especialización en Bioingeniería | H12: Ingeniería Electrica por Ciclos Propedéuticos
B13: Curso | E13: Licenciatura en Ciencias Sociales | G13: Especialización en Gestión de Proyectos de Ingeniería | H13: Ingeniería en Telecomunicaciones por Ciclos Propedéuticos
B14: Simposio | E14: Licenciatura en Lengua Extranjeras con Énfasis en Inglés | G14: Especialización en Higiene, Seguridad y Salud en el Trabajo | H14: Ingenieria Civil por Ciclos Propedéuticos
B15: Congreso | E15: Licenciatura en Educación Artística | G15: Especialización en Informática y Automática Industrial | H15: Ingeniería de Producción por Ciclos Propedéuticos
B16: Asistencia a eventos académicos | E16: Licenciatura en Pedagogía Infantil | G16: Especialización en Ingeniería de Software | H16: Ingeniería en Telematica por Ciclos Propedéuticos
B17: Otro | E17: Proyecto Académico de Investigación y Extensión de pedagogía - PAIEP | G17: Especialización en Proyectos Informáticos | H17: Ingeniería Mecánica por Ciclos Propedéuticos
E18: Proyecto Académico Transversal de Formación de Profesores para Poblaciones con Necesidades Educativas Especiales - NEES | G18: Especialización en Sistemas de Información Geográfica | H18: Maestria en Ingenieria Civil.
G19: Especialización en Telecomunicaciones Móviles
G20: Especialización en Teleinformática
E21: Especialización en Desarrollo Humano con Énfasis en Procesos Afectivos y Creatividad
E22: Especialización en Educación en Tecnología | G22: Maestría en Ciencias de la Información y la Comunicaciones
E23: Especialización en Educación y Gestión Ambiental | G23: Maestría en Ingeniería Industrial
E24: Especialización en Gerencia de Proyectos Educativos Institucionales | G24: Maestría en Ingeniería énfasis en Ingeniería Eléctrica
E25: Especialización en Infancia, Cultura y Desarrollo | G25: Maestríe en Telecomunicaciones Móviles
E27: Maestría en Comunicación-Educación | G27: Doctorado en Ingeniería
E28: Maestría en Educación
E29: Maestría en Educación en Tecnología | P29: Muebles | Q29: Inmuebles
E30: Maestría en Educación para la Paz | P30: Laborarorios | Q30: Locativos
E31: Maestría en Infancia y Cultura | P31: Diferentes a Laboratorios | Q31: Ferretaria | V31: *
E32: Maestría en Investigación Social Interdisciplinaria | Q32: Aseo
E33: Maestría en Lingüística Aplicada a la Enseñanza del Inglés | Q33: Vigilancia
E34: Maestría en Pedagogía de la lengua Materna
E36: Doctorado Interinstitucional en Educación
E37: Doctorado en Estudios Sociales
V42: Eventos en General | Y42: Otros
D43: Capacitación Docente | E43: Eventos | F43: Prácticas Académicas | G43: Docentes VE | H43: Capacitación Administrativos | I43: Recurso | M43: Partes | N43: Listas | Q43: Capacitacion Funcionarios | S43: Mantenimiento | V43: Evento de divulgación | Y43: Materiales y Suministros
D44: Seminario | M44: - Seleccione la Unidad - | N44: LISTAF | Q44: Curso | S44: Preventiva | T44: Muebles | U44: Laborarorios | V44: Taller | Y44: Impresiones Publicaciones | Z44: Vicerrectoria Administrativa
D45: Taller | E45: Evento de divulgación | F45: Visita Técnica | G45: Ocasionales | H45: Evento de divulgación | I45: Asistentes Académicos e Investigativos | M45: Decanatura Facultad de Artes - ASAB | N45: LISTAF | Q45: Taller | S45: Correctiva | T45: Inmuebles | U45: Diferentes a laboratorios | V45: Curso | Y45: Gastos de Computador | Z45: Red de Datos
D46: Curso | E46: Taller | F46: Salida de campo | G46: MT Y TC | H46: Taller | I46: Capacitación Administrativos | M46: Decanatura Facultad de Ciencias y Educación | N46: LISTAF | Q46: Otros | U46: Locativos | V46: Ferias | Y46: Dotación | Z46: RecursosHumanos
D47: Simposio | E47: Curso | F47: Evento estudiantil | G47: Hora Cátedra | H47: Curso | I47: Capacitación Docente | M47: Decanatura Facultad de Ingeniería | N47: LISTAF | U47: Ferretaria | V47: Seminarios | Y47: Combustibles, Lubricantes, Llantas | Z47: Vicerrectoria Financiera
D48: Conferencia | E48: Simposio | F48: Otro | G48: Auxiliar TCO | H48: Conferencia | I48: Docentes V. Especial | M48: Decanatura Facultad de Medio Ambiente | N48: LISTAF | U48: Aseo | V48: Otro | Y48: Arrendamientos | Z48: Rectoria
D49: Congreso | E49: Otro | G49: Asistente TCO | H49: Seminario | I49: Eventos | M49: Decanatura Facultad Tecnológica | N49: LISTAD | U49: Vigilancia | Y49: Viaticos y Gastos de Viaje | Z49: Vicerrectoria Academica
D50: Asistencia a eventos académicos | G50: Titular TCO | H50: Otro | I50: Eventos Académicos | M50: División de Recursos Financieros | N50: LISTAD | Y50: Equipos de computador | Z50: Red de Datos
D51: Otro | G51: Asociado TCO | I51: Otros | M51: División de Recursos Humanos | N51: LISTAD | Y51: Comunicaciones - gastos de internet
G52: Auxiliar MTO | I52: Prácticas Académicos | M52: Docencia | N52: LISTAD
G53: Asistente MTO | M53: Oficina Asesora de Asuntos Disciplinarios | N53: LISTAD | V53: - Seleccióne la vigencia -
G54: Titular MTO | M54: Oficina Asesora de Control Interno | N54: LISTAD | V54: 2018
G55: Asociado MTO | M55: Oficina Asesora de Sistemas | N55: LISTAD | V55: 2019
G56: Auxiliar HC | M56: Rectoría | N56: LISTAD | V56: 2020
G57: Asistente HC | M57: Secretaría General | N57: LISTAD | V57: 2021
G58: Titular HC | M58: Autoevaluación y Acreditación de Alta Calidad | N58: LISTAD
G59: Asociado HC | M59: Bienestar Institucional | N59: LISTAD
M60: Cátedra UNESCO | N60: LISTAD
M61: Centro de Investigaciones y Desarrollo Científico | N61: LISTAD
M62: Centro de Relaciones Interinstitucionales - CERI | N62: LISTAD
B63: - Seleccione una Facultad - | D63: Medio Ambiente y Recursos Naturales | E63: Ciencias y Educación | F63: Artes ASAB | G63: Ingeniería | H63: Tecnológica | M63: Emisora LAUD 90.4 | N63: LISTAD
D64: Ingeniería Forestal | E64: Archivistica y Gestión de la Información Digital | F64: Artes Plásticas y Visuales | G64: Ingeniería Catastral y Geodesia | H64: Tecnología en Gestión de la Producción Indsutrial por Ciclos Propedéuticos | M64: Foro Abierto Consejo Superior Universitario | N64: LISTAD
D65: Ingeniería Topográfica | E65: Comunicación Social y Periodismo | F65: Arte Danzario | G65: Ingeniería Industrial | H65: Tecnología Electrónica por Ciclos Propedéuticos | M65: Herbario Forestal Facultad del Medio Ambiente | N65: LISTAD
D66: Ingeniería Ambiental | E66: Licenciatura en Biología | F66: Artes Musicales | G66: Ingeniería Electrónica | H66: Tecnología en Construcciones Civiles por Ciclos Propedéuticos | M66: Instituto de Estudios E Investigación Educativas | N66: LISTAD
D67: Administración Ambiental | E67: Licenciatura en Química | F67: Artes Escenicas | G67: Ingeniería Eléctrica | H67: Tecnologia en Sistemas Electronicos de Media y Baja Tensíon por Ciclos Propedéuticos | M67: Instituto de Extensión y Educación No Formal (IDEXUD) | N67: LISTAD
D68: Administración Deportiva | E68: Licenciatura en Física | F68: Maestría en Estudios Artísticos | G68: Ingeniería de Sistemas | H68: Tecnología en Sistematización de Datos por Ciclos Propedéuticos | M68: Instituto de Lenguas de la Universidad Distrital ILUD | N68: LISTAD
D69: Tecnología en Gestión Ambiental y Servicios Públicos | E69: Licenciatura en Humanidades y Lengua Castellana | G69: Especialización en avaluos | H69: Tecnología Mecánica por Ciclos Propedéuticos | M69: IPAZUD | N69: LISTAD
B70: Seminario | D70: Tecnología en Saneamiento Ambiental | E70: Matemáticas | G70: Especialización en Bioingeniería | H70: Ingenieria Eléctrica por Ciclos Propedéuticos | M70: Sección Biblioteca | N70: LISTAD
B71: Taller | D71: Tecnología en Levantamiento Topográficos | E71: Licenciatura en Matemáticas | G71: Especialización en Gestión de Proyectos de Ingeniería | H71: Ingeniería Electrica por Ciclos Propedéuticos | M71: Sección de Publicaciones | N71: LISTAD
B72: Curso | D72: Especialización de Medio Ambiente y Desarrollo Local | E72: Licenciatura en Ciencias Sociales | G72: Especialización en Higiene, Seguridad y Salud en el Trabajo | H72: Ingeniería en Telecomunicaciones por Ciclos Propedéuticos | M72: Vicerrectoría Académica | N72: LISTAF
B73: Simposio | D73: Especialización en Diseño de Vías Urbana, Tránsito y Transporte | E73: Licenciatura en Lengua Extranjeras con Énfasis en Inglés | G73: Especialización en Informática y Automática Industrial | H73: Ingenieria Civil por Ciclos Propedéuticos | M73: División de Recursos Físicos | N73: LISTAD
B74: Congreso | D74: Especialización en Gerencia de Recursos Naturales | E74: Licenciatura en Educación Artística | G74: Especialización en Ingeniería de Software | H74: Ingeniería de Producción por Ciclos Propedéuticos | M74: Oficina Asesora de Planeación y Control | N74: LISTAD
B75: Asistencia a eventos académicos | D75: Maestría en Desarrollo Sustentable y Gestión Ambiental | E75: Licenciatura en Pedagogía Infantil | G75: Especialización en Proyectos Informáticos | H75: Ingeniería en Telematica por Ciclos Propedéuticos | M75: PIGA | N75: LISTAD
B76: Otro | D76: Maestría en Manejo, Uso y Conservación del Bosque | E76: Proyecto Académico de Investigación y Extensión de pedagogía - PAIEP | G76: Especialización en Sistemas de Información Geográfica | H76: Ingeniería Mecánica por Ciclos Propedéuticos | M76: Red de Datos UDNET | N76: LISTAD
E77: Proyecto Académico Transversal de Formación de Profesores para Poblaciones con Necesidades Educativas Especiales - NEES | G77: Especialización en Telecomunicaciones Móviles | H77: Maestria en Ingenieria Civil. | M77: Vicerrectoría Administrativa y Financiera | N77: LISTAD
E78: Especialización en Desarrollo Humano con Énfasis en Procesos Afectivos y Creatividad | G78: Especialización en Teleinformática
E79: Especialización en Educación en Tecnología | G79: Maestría en Ciencias de la Información y la Comunicaciones
E80: Especialización en Educación y Gestión Ambiental | G80: Maestría en Ingeniería Industrial
E81: Especialización en Gerencia de Proyectos Educativos Institucionales | G81: Maestría en Ingeniería énfasis en Ingeniería Eléctrica
E82: Especialización en Infancia, Cultura y Desarrollo | G82: Maestría en Telecomunicaciones Móviles
E83: Maestría en Comunicación-Educación | G83: Doctorado en Ingeniería
E84: Maestría en Educación
E85: Maestría en Educación en Tecnología
E86: Maestría en Educación para la Paz
E87: Maestría en Infancia y Cultura
E88: Maestría en Investigación Social Interdisciplinaria
E89: Maestría en Lingüística Aplicada a la Enseñanza del Inglés
E90: Maestría en Pedagogía de la lengua Materna
E91: Doctorado Interinstitucional en Educación
E92: Doctorado en Estudios Sociales
B98: Mantener y elevar la acreditación institucional de alta calidad y alcanzar el reconocimiento internacional. | D98: Evaluar, revisar y reformular la oferta curricular de pregrado y posgrado de cada facultad, en el marco de los procesos de autoevaluación continua y los proyectos educativos de las facultades / | E98: 104 programas evaluados al 100% | F98: Clasificarse entre las 5 mejores IES colombianas según indicadores en investigación. / | G98: Estar entre los cinco (5) primeros lugares del ranking | H98: Ampliar, mejorar y modernizar física, tecnológica y ambientalmente la infraestructura, esto de acuerdo con la proyección de la cobertura y las políticas de inclusión / | I98: Atender el crecimiento de la nueva cobertura (86.000 m2) | J98: Implementar los dominios identificados en el marco de referencia IT 4+ establecidos por MinTIC. / | K98: Gobierno TI: 100% Estrategia TI: 100% Información: 100% Sistemas de información: 100% Servicios tecnológicos: 100% Uso y apropiación: 100%
B99: Aumentar el 34% en el número de estudiantes de pregrado matriculados. | C99: 32.000 estudiantes pregrado | D99: Aumentar la tasa de graduación en pregrados al 70% / | E99: 0.7 | F99: Aumentar el porcentaje de revistas científicas indexadas al 100%. / | G99: 1 | H99: Consolidar cuatro centros de recursos para el aprendizaje y la investigación -CRAI- / | I99: Cuatro (4) CRAI | J99: Alcanzar la implementación del cuarto componente de Gobierno en Línea (Seguridad y privacidad de la información) / | K99: 1
B100: Aumentar el 65% de estudiantes matriculados en posgrado | C100: 4.904 estudiantes posgrado | D100: Lograr que el 70 %, de los docentes, manejen eficazmente tecnologías de la información y la comunicación. / | E100: 0.7 | F100: Aumentar la producción científica anual publicada en revistas indexadas / | G100: 550 artículos | H100: Fortalecer las competencias de los servidores públicos al servicio de la institución, en beneficio del cumplimiento de las funciones institucionales. / | I100: Medición y seguimiento del desempeño laboral | J100: Lograr la calidad y disponibilidad del 100% de la información institucional, que no tenga restricción constitucional ni legal. / | K100: 100% de la documentación posible
B101: Aumentar en 28% el número de programas en todos los niveles y modalidades/ | C101: 104 programas | D101: Lograr que el 40 % de los docentes de planta manejen lenguajes que permitan garantizar la atención de comunidades en el marco de la política de inclusión. / | E101: 0.4 | F101: Crear al menos 3 empresas spin-off, 15 empresas incubadas e institutos de investigación e innovación. / | G101: (3) Spin off (15) Startup | H101: Aumentar al 100 % la vinculación de empleados administrativos conforme al sistema de carrera administrativa. / | I101: 1 | J101: Implantar mecanismos de participación, de los diferentes estamentos, de la comunidad universitaria, en las instancias de planeación, gestión, seguimiento y evaluación de la Universidad. / | K101: Participación: 100%
B102: Lograr homologación y transferencia del 100% de la oferta académica de la Universidad entre sus diferentes niveles de formación / | C102: 1 | D102: Lograr el 90% de satisfacción entre los miembros de la comunidad universitaria frente a las expectativas del bienestar estudiantil y los programas que desde allí se ofrezcan. / | E102: 0.9 | F102: Incrementar los proyectos de cofinanciación externa en 45%, cuyos recursos provengan de organismos internacionales, los sistemas de ciencia tecnología e innovación; sistema nacional de regalías y, de aquellos en los que tengan interés las entidades estatales con capacidad de financiación. / | G102: 25 | H102: Aumentar el número de docentes de planta en un 45 % y disminuir la vinculación especial en un 10 % / | I102: 980 | J102: Lograr un nivel de satisfacción mínimo del 80% por parte de las personas que utilizan los servicios de la Universidad. / | K102: 80%.
B103: Lograr que los proyectos de extensión respondan a la interacción entre las problemáticas del entorno y los procesos de investigación, y que sus resultados vinculen e impacten comunidades de la ciudad región | C103: 50% de proyectos enfocados a la proyección social | F103: Lograr el pleno apoyo a la investigación, la creación, la formación, la innovación y el incremento de la productividad y competitividad de las empresas de la ciudad región, por medio de convenios de cooperación con los diferentes sectores | H103: Generar una cultura institucional que respete las diferencias y garantice el bienestar de las personas en situación de discapacidad. / | I103: 30% de las personas que laboran en la institución están en capacidad de interactuar con las personas en situación de discapacidad. | J103: Actualizar, compilar, depurar y difundir el 100% de las normas expedidas por las autoridades institucionales. / | K103: Verificación de la vigencia del 100% de las normas
B104: Aumentar la oferta en 10 programas de formación para el trabajo y desarrollo del talento humano en correspondencia con las necesidades de los sectores productivos y de servicios de la ciudad región. / | C104: 10 programas de formación | F104: Aumentar al 50 % el número de docentes con Doctorado. / | G104: 0.5 | H104: Disminuir el uso de recursos en las sedes de la institución / | I104: Al menos un descenso en el consumo de agua y electricidad en las sedes institucionales equivalente en 5% anual | J104: Actualizar, simplificar y flexibilizar anualmente la operación de los procesos institucionales en el cumplimiento de las funciones universitarias. / | K104: 100% Actualizado
B105: Lograr que 20% de la oferta académica de pregrado y posgrado permita la doble titulación o cotitulación. / | C105: 0.2 | H105: Establecer la adecuada asignación de funciones, competencias, seguridad jurídica y equilibrio institucional en la organización, gobierno y gestión de la Universidad. / | I105: 1
B106: Lograr que el 60% de estudiantes tengan un dominio de una segunda lengua en un nivel equivalente a B2 y el 80% de los docentes en C1 / | C106: 60% Estudiantes 80% Docentes | H106: Conseguir la publicación oportuna y completa de toda la información relacionada con el principio de transparencia y derecho de acceso a información pública, de acuerdo con la Ley 1712 de 2014. / | I106: 1
B107: Aumentar el índice de movilidad internacional anual mínimo al 1,3% de la población estudiantil y al 5% de la planta docente. / | C107: 1,3% Estudiantes 5% Docentes | H107: Lograr indicadores de cero corrupción en la gestión institucional / | I107: •Materialización de riesgos de corrupción 0% • Racionalización de Trámites 100% • Rendición de Cuentas 100% • Mejorar la Atención al Ciudadano 100% • Mecanismos de transparencia y acceso a la información actualizados 100%
B108: Apoyar a estudiantes de los colegios distritales ubicados en el área de influencia de las sedes de la Universidad, con programas de fortalecimiento de competencias básicas en: matemáticas, ciencias naturales, lectura crítica e inglés.
B109: Disminuir la tasa de deserción anual a 9 %. / | C109: 0.09
B110: Modernizar la organización académica y administrativa de la institución / | C110: De acuerdo con la proyección institucional y la Reforma Universitaria

Sheet Items con detalle (hidden)
C2: IDENTIFICACIÓN DE RECURSOS PARA LA FORMULACIÓN DEL PLAN DE ACCIÓN
D5: Unidad Académico y/o Administrativa | E5: Red de Datos UDNET | H5: =IF(E5="Ciencias y Educación","CE",IF(E5="Ingeniería","I",IF(E5="Medio Ambiente y Recursos Naturales","MA",IF(E5="Artes ASAB","A",IF(E5="Tecnológica","T",""))))) -> 
C7: Identifique a continuación de manera explícita las clasificaciones asociadas para cada Unidad Academicoy/o Administrativa: NOTA: Por favor diligenciar en Observaciones el objeto de dicho recurso.
C9: Clasificación | E9: Cantidad | F9: Presupuesto Asocidado | G9: TOTAL | H9: Observaciones (Detalle especificamente la destinación del valor solicitado)
C11: Gastos de Computador | E11: 1 | F11: 240000000 | G11: =E11*F11 -> 240000000 | H11: Renovar el licenciamiento de servcios Campus software Microsoft
C12: Gastos de Computador | E12: 1 | F12: 160000000 | G12: =E12*F12 -> 160000000 | H12: Actualizaciones y soporte Citrix
C13: Gastos de Computador | E13: 1 | F13: 350000000 | G13: 350000000 | H13: Mantenimiento Hw y Sw SAN/NAS Netapp - Paiba
C14: Gastos de Computador | E14: 1 | F14: 460000000 | G14: 460000000 | H14: Mantenimiento de equipos servidores para la Red de Datos UDNET
C15: Gastos de Computador | E15: 1 | F15: 300000000 | G15: 300000000 | H15: Mantenimiento a la solución de telefonía con tecnología IP marca AVAYA
C16: Gastos de Computador | E16: 1 | F16: 185937500 | G16: 185937500 | H16: Actualizaciones y soporte aplicación SolarWinds
C17: Materiales y Suministros | E17: 1 | F17: 74200000 | G17: 74200000 | H17: Adquisición de Insumos y materiales para telecomunicaciones
C18: Gastos de Computador | E18: 1 | F18: 809221633 | G18: 809221633 | H18: Mantenimiento Datacenters (centro de gestión Olimpo edificio Sabio Caldas, Aduanilla de Paiba, Macarena A, Bosa porvenir): Aires acondicionados (Manejadoras, condensadoras, chiller y tanque de agua) Control de acceso (Biometricos, electroimanes, caja de control) Detección y Extinción de incendios (sensores, luces, cilindro de gas inerte, controladores) Suministro regulado (UPS, PDU, Tableros electricos) StruxureWare (Software, Hardware, componentes: camaras, sensores, cajas de control) Mantenimiento malla alta frecuencia y balanceo de cargas en las UPS
G19: 0
C20: SUBTOTAL META # 1 | G20: =SUM(G11:G19) -> 2579359133
C21: Comunicaciones - gastos de internet | E21: 1 | F21: 1475011934 | G21: 1475011934 | H21: Contratar el servicio de conectividad con enlaces entre sedes y acceso a internet.
G22: 0
G23: 0
G24: 0
G25: 0
G26: 0
G27: 0
C28: SUBTOTAL META # 2 | G28: =SUM(G21:G27) -> 1475011934
G29: 0
G30: 0
G31: 0
G32: 0
G33: 0
G34: 0
G35: 0
C36: SUBTOTAL META # 3 | G36: =SUM(G29:G35) -> 0
G37: =E37*F37 -> 0
G38: 0
G39: 0
G40: 0
G41: 0
G42: 0
G43: 0
C44: SUBTOTAL META # 4 | G44: =SUM(G37:G43) -> 0
G45: =E45*F45 -> 0
G46: 0
G47: 0
G48: 0
G49: 0
G50: 0
G51: 0
C52: SUBTOTAL META # 5 | G52: =SUM(G45:G51) -> 0
G53: =E53*F53 -> 0
G54: 0
G55: 0
G56: 0
G57: 0
G58: 0
G59: 0
C60: SUBTOTAL META # 6 | G60: =SUM(G53:G59) -> 0
G61: =E61*F61 -> 0
G62: 0
G63: 0
G64: 0
G65: 0
G66: 0
G67: 0
C68: SUBTOTAL META # 7 | G68: =SUM(G61:G67) -> 0
G69: =E69*F69 -> 0
G70: 0
G71: 0
G72: 0
G73: 0
G74: 0
G75: 0
C76: SUBTOTAL META # 8 | G76: =SUM(G69:G75) -> 0
G77: =E77*F77 -> 0
G78: 0
G79: 0
G80: 0
G81: 0
G82: 0
G83: 0
C84: SUBTOTAL META # 9 | G84: =SUM(G77:G83) -> 0
C93: SUBTOTAL META # 10 | G93: =SUM(G88:G92) -> 0
F95: TOTAL DEL RECURSO | H95: =G93+G84+G76+G68+G60+G52+G44+G36+G28+G20 -> 4054371067

Sheet Procesos (hidden)
C2: Gestión de Docencia | D2: GD | E2: Decanatura Facultad de Artes - ASAB | F2: Decanatura Facultad de Ciencias y Educacion | G2: Decanatura Facultad de Ingenieria | H2: Decanatura Facultad de Medio Ambiente | I2: Decanatura Facultad Tecnologica | J2: Docencia
C3: Gestión de Investigacion | D3: GI | E3: Centro de Investigaciones y Desarrollo Científico
C4: Extensión y Proyeccion Social | D4: EPS
C5: Planeacion Estrategica e Institucional | D5: PEI | E5: Rectoría
C6: Gestión Integrada | D6: GIT
C7: Autoevaluación y Acreditación | D7: AA | E7: Autoevaluación y Acreditación de Alta Calidad
C8: Comunicaciones | D8: COM | E8: Emisora LAUD 90.4
C9: Interinstitunacionalizacion e Internacionalización | D9: II | E9: Centro de Relaciones Interinstitucionales - CERI
C10: Admisiones, Registro y Control | D10: ARC
C11: Bienestar Institucional | D11: BI | E11: Bienestar Institucional
C12: Gestión de la Información Bibliográfica | D12: GIB
C13: Gestión de Laboratorios | D13: GL
C14: Servicio al Ciudadano | D14: SC | I14: Secretaría General
C15: Gestión de los Sistemas de Información y las Telecomunicaciones | D15: GSIT | E15: Oficina Asesora de Sistemas
C16: Gestión y Desarrollo del Talento Humano | D16: GDTH | E16: División de Recursos Humanos
C17: Gestión Documental | D17: GDC | I17: Cátedra UNESCO
C18: Gestión de Infraestructura Fisica | D18: GIF
C19: Gestión de Recursos Financieros | D19: GRF | E19: División de Recursos Financieros
C20: Gestión Contractual | D20: GC
C21: Gestión Jurídica | D21: GJ | I21: Foro Abierto Consejo Superior Universitario
C22: Gestión de Evaluación y Control | D22: EC | E22: Oficina Asesora de Control Interno | I22: Herbario Forestal Facultad del Medio Ambiente
C23: Control Disciplinario | D23: CD | E23: Oficina Asesora de Asuntos Disciplinarios | I23: Instituto de Estudios E Investigacion Educativas
I24: Instituto de Extensión y Educacion No Formal (IDEXUD)
I25: Instituto de Lenguas de la Universidad Distrital ILUD
I26: IPAZUD
C27: Indicadores | I27: Sección Biblioteca
C28: AA-012, Cumplimiento en la renovación de registros calificados | I28: Sección de Publicaciones
C29: AA-013, Cumplimiento de los informes de autoevaluación y plan de mejoramiento de proyectos curriculares | I29: Vicerrectoria Académica
C30: AA-014, Obtención de registros calificados nuevos | I30: División de Recursos Humanos
C31: AA-015, Obtención de acreditación de proyectos curriculares por primera vez | I31: Oficina Asesora de Planeación y Control
C32: AA-016, Cumplimiento en la renovación de la acreditación de proyectos curriculares | I32: PIGA
C33: AA-017, Porcentaje de estudiantes que participaron en los procesos de autoevaluación institucional | I33: Red de Datos UDNET
C34: AA-018, Porcentaje de profesores que participaron en los procesos de autoevaluación institucional | I34: Vicerrectoria Administrativa y Financiera
C35: AA-019, Porcentaje de Graduados que participaron en los procesos de autoevaluación institucional
C36: No Aplica
C37: ARC-165, Índice de absorción
C38: ARC-166, Índice de selectividad
C39: ARC-167, Porcentaje de estudiantes matriculados por mecanismos de circunscripciones especiales
C40: ARC-168, Índice de absorción educación media publica – Bogotá y cercanías
C41: ARC-169, Índice de vinculación educación media publica – Bogotá y cercanías
C42: ARC-170, Índice de absorción educación media privada – Bogotá y cercanías
C43: ARC-171, Índice de vinculación educación media privada – Bogotá y cercanías
C44: ARC-172, Índice de deserción por retiro definitivo
C45: ARC-173, Índice de deserción por retiro voluntario (cancelación o aplazamiento)
C46: ARC-174, Índice de absorción por localidad
C47: ARC-175, Índice de absorción por estrato
C48: ARC-176, Índice de demanda académica
C49: ARC-177, Índice de absorción de fuera de Bogotá
C50: ARC-178, Índice de vinculación posconflicto, paz y educación
C51: No Aplica
C52: BI-155, Porcentaje de quejas y reclamos de Bienestar Institucional
C53: BI-156, Presupuesto ejecutado por Bienestar Institucional
C54: BI-157, Porcentaje de cobertura de los servicios de Bienestar para los grupos funcionales
C55: BI-158, Porcentaje de estudiantes en prueba académica y alto riesgo atendidos por el programa de permanencia y deserción
C56: BI-159, Porcentaje de egresados que figuran en la base de datos
C57: BI-160, Porcentaje de cobertura de los servicios de bienestar para los diferentes estamentos en los últimos tres años
C58: BI-161, Relación de espacios expresados en m2 destinados a los programas de Bienestar
C59: BI-162, Nivel de cumplimiento de publicaciones indexadas
C60: BI-163, Número de estudiantes beneficiados con el programa de becas
C61: BI-164, Grado de cumplimiento estudiantes beneficiados con programas de préstamo
C62: No Aplica
C63: EPS-127, Porcentaje de crecimiento de egresados vinculados en los proyectos de extensión
C64: EPS-128, Porcentaje de crecimiento de estudiantes vinculados en los proyectos de extensión
C65: EPS-129, Porcentaje de licitaciones e invitaciones directas suscritas por el IDEXUD
C66: EPS-130, Porcentaje de eficacia de programas de educación continua y educación no formal
C67: EPS-131, Porcentaje de crecimiento de proyectos de extensión suscritos por el IDEXUD
C68: EPS-132, Porcentaje de actividades que promueven el uso de los idiomas ejecutadas por el ILUD
C69: EPS-133, Porcentaje de incremento de estudiantes matriculados en programas de extensión del ILUD
C70: EPS-134, Porcentaje de estudiantes de la Universidad Distrital Francisco José de Caldas que inscriben el espacio académico de segunda lengua en el semestre
C71: EPS-135, Porcentaje de cursos de extensión ejecutados por el ILUD en el bimestre
C72: EPS-136, Porcentaje de cumplimiento de las actividades administrativas del IPAZUD
C73: EPS-137, Porcentaje de eventos académicos realizados por el IPAZUD
C74: EPS-138, Porcentaje de proyectos y/o actividades investigativas desarrolladas por el IPAZUD
C75: EPS-139, Índice de participación en eventos académicos realizados por el IPAZUD
C76: EPS-140, Índice de seguidores en redes sociales del programa de radio ¿Qué está paz- ando?
C77: EPS-141, Número de copias publicadas a través del medio escrito de la revista "Ciudad paz-ando"
C78: EPS-142, Porcentaje de crecimiento de visualización de la revista "Ciudad paz-ando" en el portal OJS de la revista
C79: No Aplica
C80: GD-040, Número de docentes de la universidad que hicieron sus estudios de pregrado en universidad pública
C81: GD-041, Número de docentes de la universidad que hicieron sus estudios de postgrado en universidad pública
C82: GD-042, Número de docentes de la universidad que hicieron sus estudios de pregrado en universidad privada
C83: GD-043, Número de docentes de la universidad que hicieron sus estudios de postgrado en universidad privada
C84: GD-044, Número de docentes de la universidad que hicieron sus estudios de pregrado en universidades nacionales
C85: GD-045, Número de docentes de la universidad que hicieron sus estudios de pregrado en universidades extranjeras
C86: GD-046, Número de docentes de la universidad que hicieron sus estudios de postgrado en universidades nacionales
C87: GD-047, Número de docentes de la universidad que hicieron sus estudios de postgrado en universidades nacionales
C88: GD-048, Número de estudiantes matriculados en programas de pregrado
C89: GD-049, Número de estudiantes matriculados en programas de postgrado
C90: GD-050, Número de estudiantes matriculados en programas tecnológicos
C91: GD-051, Número de docentes de la universidad que hicieron sus estudios de pregrado en la Universidad Distrital
C92: GD-052, Número de docentes de la universidad que hicieron sus estudios de postgrado en la Universidad Distrital
C93: GD-053, Número de estudiantes que han participado en pasantía en los últimos cinco años
C94: GD-054, Número de estudiantes que han participado en prácticas académicas en los últimos cinco años
C95: GD-055, Número de docentes que han participado de estancías de investigación en los últimos cinco años
C96: GD-056, Número de docentes que han ejercido como pares académicos en los últimos cinco años
C97: GD-057, Número de docentes que han participado en congresos, foros, seminarios, simposios en los últimos cinco años
C98: GD-058, Porcentaje de profesores de planta (TC y MT) que han participado en programas de formación pedagógica en los últimos cinco años
C99: GD-059, Porcentaje de profesores de planta (TC y MT) que han participado en programas de didáctica en los últimos cinco años
C100: GD-060, Porcentaje de profesores de planta (TC y MT) que han participado en programas de formación continua en los últimos cinco años
C101: GD-061, Número de docentes TCE (tiempo completo equivalente) en la Universidad
C102: GD-062, Relación entre el número de profesores de TCE (tiempo completo equivalente) y el número de estudiantes
C103: GD-063, Porcentaje de docentes de carrera con respecto al total de docentes
C104: GD-064, Porcentaje de docentes de vinculación especial con respecto total de docentes
C105: GD-065, Porcentaje de docentes de Tiempo Completo con respecto total de docentes
C106: GD-066, Porcentaje de docentes de Medio Tiempo con respecto total de docentes
C107: GD-067, Relación de docentes Tiempo Completo y número de estudiantes
C108: GD-068, Relación de docentes Medio Tiempo y número de estudiantes
C109: GD-069, Porcentaje de docentes de Tiempo completo o Medio Tiempo con título de doctorado
C110: GD-070, Porcentaje de docentes de Tiempo Completo o Medio Tiempo con título de maestría
C111: GD-071, Número de docentes de carrera con titulo de Doctorado
C112: GD-072, Número de docentes de carrera con titulo de Maestría
C113: GD-073, Número de docentes de vinculación especial con titulo de doctorado
C114: GD-074, Número de docentes de vinculación especial con titulo de maestría
C115: GD-075, Número de docentes de Planta en la Universidad
C116: GD-076, Número de docentes de vinculación especial de la Universidad
C117: GD-077, Número de docentes de Tiempo Completo y Medio Tiempo que cursan programas de Doctorado (sin comisión)
C118: GD-078, Número de docentes de Tiempo Completo y Medio Tiempo que cursan programas de maestría (sin comisión)
C119: GD-079, Número de docentes de carrera que han participado en los diferentes programas de formación docente de alto nivel en los últimos tres años incluyendo los que están participando en programas actualmente
C120: GD-080, Número de profesores de tiempo completo y medio tiempo que han participado en los diferentes programas de capacitación docente en los últimos tres años incluyendo los que están participando en actualmente
C121: GD-081, Número de Estudiantes activos pertenecientes a la Universidad
C122: GD-082, Número de Estudiantes activos pertenecientes a la Facultad de Ingeniería
C123: GD-083, Número de Estudiantes activos pertenecientes a la Facultad de Artes ASAB
C124: GD-084, Número de Estudiantes activos pertenecientes a la Facultad de Ciencias y Educación
C125: GD-085, Número de Estudiantes activos pertenecientes a la Facultad de Medio Ambiente y recursos Naturales
C126: GD-086, Número de Estudiantes activos pertenecientes a la Facultad Tecnológica
C127: GD-087, Número de asignaturas que se apoyan en aulas virtuales para el desarrollo de su actividad académica
C128: GD-088, Porcentaje de estudiantes que se desempeñan como asistentes académicos e investigativos
C129: GD-089, Número de asistentes académicos por periodo
C130: GD-090, Número de estudiantes beneficiados con grado de honor Francisco José de Caldas
C131: GD-091, Número de estudiantes beneficiados con beca de postgrado
C132: GD-092, Número de estudiantes beneficiados de matricula de honor
C133: GD-054, Número de estudiantes beneficiados con exención de los derechos de matrícula
C134: GD-055, Relación de docentes TCE dedicados a la docencia entre el total de docentes TCE
C135: GD-095, Participación de docentes TCE en proyectos de investigación
C136: GD-096, Participación de docentes TCE en proyección social
C137: GD-097, Participación de docentes TCE en consejería académica
C138: GD-098, Participación de docentes TCE en la gestión académica-administrativa
C139: GD-099, Número de docentes en la categoría de docente auxiliar
C140: GD-100, Número de docentes en la categoría de docente asistente
C141: GD-101, Número de docentes en la categoría de docente asociado
C142: GD-102, Número de docentes en la categoría de docente titular
C143: GD-103, Indice de número de proyectos curriculares que como consecuencia de la autoevaluación han actualizado sus planes de estudio (y han sido aprobados) en los ultimos cinco años
C144: GD-104, Número de estudiantes graduados de maestría en los últimos cinco años
C145: GD-105, Número de estudiantes graduados de doctorados en los últimos cinco años
C146: GD-106, Deserción institucional por periodo
C147: GD-107, Deserción institucional por cohorte institucional
C148: GD-108, Porcentaje de docentes de carrera que han recibido estímulos (económicos - puntos salariales) por el desempeño de su función de docencia en los últimos cinco años
C149: GD-109, Porcentaje de docentes de carrera que han recibido estímulos (económicos - bonificaciones) por el desempeño de su función de docencia en los últimos cinco años
C150: GD-110, Porcentaje de docentes de carrera que han recibido reconocimientos (premios, diplomas, menciones, entre otros) por el desempeño de su función de docencia en los últimos cinco años
C151: GD-111, Número de publicaciones de artículos en revistas indexadas y especializadas nacionales e internacionales de docentes de planta en los últimos cinco años
C152: GD-112, Número de publicaciones de libros de docentes de planta en los últimos cinco años
C153: GD-113, Número de publicaciones de capítulos de libros de docentes de planta en los últimos cinco años
C154: No Aplica
C155: SC-179, Tiempo de gestión de las PQRS
C156: SC-180, Participación en ferias de servicio y eventos
C157: SC-181, Calidad del servicio
C158: SC-182, Actualización de la información institucional en el Portal Web Institucional (PWI)
C159: SC-183, Nivel de respuesta de PQRS
C160: SC-184, Apertura de canales de atención
C161: No Aplica
C162: GIB-143, Disponibilidad de espacio (área) asignado a los usuarios de la Biblioteca
C163: GIB-144, Índice de crecimiento de la colección bibliográfica (ejemplares)
C164: GIB-145, Disponibilidad de recursos tecnológicos
C165: GIB-146, Satisfacción del usuario
C166: GIB-147, Nivel de consulta de la colección bibliográfica al año
C167: GIB-148, Participación de profesores en la adquisición de material bibliográfico y de servicios de información
C168: GIB-149, Índice de inversión bibliográfica
C169: GIB-150, Índice de crecimiento en la prestación de servicios de información
C170: No Aplica
C171: GI-114, Porcentaje de presupuesto ejecutado para Eventos de divulgación o apoyo a la investigación del CIDC en relación al monto proyectado
C172: GI-115, Porcentaje de presupuesto ejecutado para apoyo a movilidad de docentes en relación al presupuesto proyectado para apoyo a movilidad de docentes
C173: GI-116, Porcentaje de presupuesto ejecutado al presupuesto proyectado para a apoyo a movilidad de los estudiantes en relacion al presupuesto proyectado para apoyo a movilidad de los estudiantes
C174: GI-117, Relación del presupuesto aprobado para proyectos de investigación apoyados con recursos del CIDC en relación al presupuesto proyectado para proyectos de investigación apoyados con recursos del CIDC
C175: GI-118, Porcentaje de proyectos con financiación internacional, en los últimos tres años
C176: GI-119, Porcentaje total de número de grupos de la institución reconocidos por Colciencias
C177: GI-120, Financiación de proyectos de investigación por organismos nacionales e internacionales
C178: GI-121, Número de patentes, registros y desarrollos tecnológicos de la institución en los últimos diez años
C179: GI-122, Porcentaje de profesores-investigadores de TC y MT en TCE dedicados al trabajo investigativo
C180: GI-123, Porcentaje de profesores-investigadores dedicados al trabajo investigativo de TC y MT en TCE, con títulos de maestría y doctorado
C181: GI-124, Porcentaje de proyectos de investigación activos inscritos en la institución
C182: GI-125, Grupos de investigación de la institución frente a Colciencias
C183: GI-126, Proyectos de investigación de la institución presentados a Colciencias
C184: No Aplica
C185: C-020, Porcentaje de avance en la producción de libros y revistas
C186: C-021, Porcentaje de avance en el diseño, elaboración y producción de material publicitario institucional y papeleria
C187: No Aplica
C188: CD-254, Oportuna atención de quejas y reclamos
C189: No Aplica
C190: EC-250, Porcentaje de cumplimiento de plan de mejoramiento de las dependencias
C191: EC-251, Porcentaje de cumplimiento de la entrega de la información solicitada por los entes de control
C192: EC-252, Porcentaje de cumplimiento del programa de auditorías y seguimientos
C193: EC-253, Porcentaje de procesos a los cuales se les ha realizado una auditoria o seguimiento
C194: No Aplica
C195: GDC-211, Oportunidad en la prestación de servicio de consulta y préstamo de documentos de la Universidad Distrital Francisco José de Caldas que custodia y administra el Archivo Central
C196: GDC-212, Transferencias documentales primarias
C197: GDC-213, Utilización de espacio de almacenamiento y custodia
C198: GDC-214, Inventarios documentales
C199: GDC-215, Tabla de retención documental aplicada correctamente
C200: GDC-216, Cumplimiento capacitación de gestión documental para funcionarios
C201: GDC-217, Metros lineales de documentos de archivo eliminados
... 102 more rows

Sheet Tipos de Indicador (hidden)
B2: Tipo | C2: Definicion | D2: Ejemplo | E2: Resultado
B3: Cambio | C3: Este tipo de indicador nos permite medir los cambios presentados de un tiempo predeterminado a otro ( semestre, año, bimestre, mes) | D3: (Indice de accidentabilidad periodo actual-indice de accidentabilidad periodo anterior)*100/indice de accidentabilidad periodo anterior
B4: Relacion | C4: Cociente en el que el denominador y el numerador pertenecen a categorías diferentes | D4: Numero de horas lectivas/docentes
B5: Absoluto | C5: Este indicador es un numero absoluto, para llegar a este resultado no es necesaria ningun tipo de formula. | D5: Número de estudiantes beneficiados con grado de honor Francisco José de Caldas.
B6: Proporcion | C6: Magnitud que representa una parte con referencia al todo, se calcula utilizando en el numerador y en el denominador el mismo tipo de información o naturaleza de la información | D6: (Número total de revistas indexadas en la institución / número total de revistas de la institución)*100
B8: Porcentaje
B9: Valor Absoluto
B10: PEI-001, Cumplimiento del Plan de Acción del Proceso de Planeación Estratégica e Institucional | C10: (Metas cumplidas del plan de acción / Metas totales del plan de acción) * 100
B11: PEI-001, Cumplimiento de las metas del Plan Maestro | C11: (Número de metas cumplidas del Plan Maestro / Número de metas totales del Plan Maestro) * 100
B12: PEI-002, Cumplimiento de las metas del Plan Indicativo | C12: (Número de metas cumplidas del Plan Indicativo / Número de metas totales del Plan Indicativo) * 100
B13: PEI-003, Cumplimiento de las metas del Plan General Operativo | C13: (Número de metas logradas del Plan General Operativo / Número de metas programadas en el Plan General Operativo)*100
B14: PEI-005, Ejecución del Plan Operativo Anual de Inversión | C14: (Número de metas del Plan Estratégico de Desarrollo cumplidas / Número total de metas del Plan Estratégico de Desarrollo)*100
B15: PEI-006, Cumplimiento de las Metas del Plan Operativo Anual de Inversión | C15: (Recursos ejecutados por los proyectos de inversión/Recursos asignados para los proyectos de inversión)*100
B16: GIT-007, Cumplimiento de las metas del Plan Operativo Anual de Inversion | C16: (Número de metas logradas por los Proyectos de Inversión / Número de metas propuestas por los Proyectos de Inversión)*100
B17: GIT-008, Cumplimiento con los Planes de Mejoramiento | C17: (#planes de mejoramiento ejecutados con éxito)/(# total de planes de mejoramiento) *100
B18: GIT-009, Nivel de riesgos críticos mitigados | C18: (((Número de Riesgos criticos mitigados) /( Numero total de riesgos criticos identificados en el SIGUD))*100
B19: GIT-010, Índice de eficacia de los procesos | C19: ((Numero de procesos que cumplierón con mas del 90% de las metas )/(Total de procesos del SIGUD)) *100
B20: GIT-011, Grado de cumplimiento de la planificación del SIGUD | C20: ((Número de actividades ejecutadas en el SIGUD)/(Número de actividades programadas en el Plan de Acción))*100
B21: No Aplica | C21: Por favor crear un Indicador en la casilla "Indicador de la Actividad"
B22: AA-012, Cumplimiento en la renovación de registros calificados | C22: ((# de P.C que renovarón R.C )/(# de P.C que tienen que renovar R.C ))*100
B23: AA-013, Cumplimiento de los informes de autoevaluación y plan de mejoramiento de proyectos curriculares | C23: ((# de Informes de autoevaluación subidos a plataforma (Saces) )/(# de Informes de autoevaluación segun corte))*100
B24: AA-014, Obtención de registros calificados nuevos | C24: ((# de P.C que recibieron R.C por primera vez )/(# de P.C presentados para obtención de R.C))*100
B25: AA-015, Obtención de acreditación de proyectos curriculares por primera vez | C25: ((# de P.C que recibieron A.A.C por primera vez )/(# de P.C presentados para obtención de A.A.C))*100
B26: AA-016, Cumplimiento en la renovación de la acreditación de proyectos curriculares | C26: ((#de P.C que renovarón A.A.C )/(# de P.C que tienen que renovar A.A.C ))* 100
B27: AA-017, Porcentaje de estudiantes que participaron en los procesos de autoevaluación institucional | C27: ((# de Estudiantes que participarón en la A.I )/(# de Participantes en la A.I ))*100
B28: AA-018, Porcentaje de profesores que participaron en los procesos de autoevaluación institucional | C28: (# de Profesores que participarón en la A.I )/(# de Participantes en la A.I ))*100
B29: AA-019, Porcentaje de Graduados que participaron en los procesos de autoevaluación institucional | C29: (# de Graduados que participarón en la A.I )/(# de Participantes en la A.I )*100
B30: No Aplica
B31: C-020, Porcentaje de avance en la producción de libros y revistas | C31: (Número de libros y revistas publicadas / Número de libros y revistas proyectadas y/o que sean aprobadas por el comité de comunicaciones)*100
B32: C-021, Porcentaje de avance en el diseño, elaboración y producción de material publicitario institucional y papeleria | C32: (Número de materiall publicitario elaborado / Número de material publicitario proyectado y/o aprobado por el comité de publicaciones)*100
B33: No Aplica | C33: Por favor crear un Indicador en la casilla "Indicador de la Actividad"
B34: II-22, Suscripción de convenios marco de cooperación académica vigente con IES nacionales | C34: ((No. de suscripciones de convenios marco de cooperación académica vigente con IES nacionales en el presente semestre - No. de suscripciones de convenios marco de cooperación académica vigente con IES nacionales en el semestre anterior) / No. de suscripciones de convenios marco de cooperación académica vigente con IES nacionales en el semestre anterior)*100
B35: II-23, Suscripción de convenios marco de cooperación académica vigente con IES internacionales | C35: ((No. de suscripciones de convenios marco de cooperación académica vigente con IES internacionales en el presente semestre - No. de suscripciones de convenios marco de cooperación académica vigente con IES internacionales en el semestre anterior) / No. de suscripciones de convenios marco de cooperación académica vigente con IES internacionales en el semestre anterior)*100
B36: II-24, Suscripción de convenios específicos de movilidad académica con Universidad Nacional | C36: (No. de suscripciones de convenios específicos de movilidad académica con universidad internacional en el presente semestre - No. de suscripciones de convenios específicos de movilidad académica con universidad internacional en el semestre anterior) / No. de suscripciones de convenios específicos de movilidad académica con universidad internacional en el semestre anterior)*100
B37: II-25, Suscripción de convenios específicos de movilidad académica con Universidad internacional | C37: ((No. de suscripciones de convenios específicos de movilidad académica con universidad internacional en el presente semestre - No. de suscripciones de convenios específicos de movilidad académica con universidad internacional en el semestre anterior) / No. de suscripciones de convenios específicos de movilidad académica con universidad internacional en el semestre anterior)*100
B38: II-26, Participación en redes y asociaciones académicas nacionales e internacionales total UD | C38: ((No. de redes y asociaciones académicas nacionales e internacionales en las que participa la UD en el presente año - No. de redes y asociaciones académicas nacionales e internacionales en las que participó la UD en el año anterior) / (No. de redes y asociaciones académicas nacionales e internacionales en las que participó la UD en el año anterior)*100)
B39: II-27, Alianzas con entidades público privadas total UD | C39: ((No. de alianzas con entidades público privadas en las que participa la UD en el presente año - No. de alianzas con entidades público privadas en las que participó la UD en el año anterior)/ ( No. de alianzas con entidades público privadas en las que participó la UD en el año anterior)*100
B40: II-28, Número de programas académicos con doble titulación o cotitulación en la UD | C40: (No. De programas académicos en la UD con convenios de doble titulación o cotitulación con otras Universidades / No. de programas académicos en total en la UD)*100
B41: II-29, Desarrollo de proyectos de cooperación | C41: (Número de proyectos de cooperación/ Número total de convenios interinstitucionales) *100
B42: II-30, Participación anual activa de estudiantes y/o docentes UD en proyectos nacionales e internacionales con productos académicos y/o investigación | C42: (No. de estudiantes UD con participación en proyectos nacionales e internacionales con productos académicosy/o de investigación / (No. de proyectos nacionales e internacionales en los que participa la Universidad)*100
B43: II-31, Movilidad académica estudiantil saliente nacional | C43: ((No.de estudiantes UD que realizan movilidad académica nacional en el presente semestre - No.de estudiantes UD que realizaron movilidad académica nacional en el semestre anterior) / No.de estudiantes UD que realizaron movilidad académica nacional en el semestre anterior) )* 100
B44: II-32, Movilidad académica estudiantil saliente internacional total UD | C44: ((No.de estudiantes UD que realizaron movilidad académica internacional en el presente semestre - No.de estudiantes UD que realizaron movilidad académica internacional en el semestre anterior) / No. de estudiantes UD que realizaron movilidad académica internacional en el semestre anterior) )* 100
B45: II-33, Movilidad académica estudiantil entrante nacional total UD | C45: ((No.de estudiantes externos que realizaron movilidad académica nacional en la UD en el presente semestre - No. de estudiantes externos que realizaron movilidad académica nacional en la UD en el semestre anterior) / No. de estudiantes externos que realizaron movilidad académica nacional en la UD en el semestre anterior) )* 100
B46: II-34, Movilidad académica estudiantil entrante internacional total UD | C46: ((No. de estudiantes externos que realizaron movilidad académica internacional en la UD en el presente semestre - No. de estudiantes externos que realizaron movilidad académica internacional en la UD en el semestre anterior) / No. de estudiantes externos que realizaron movilidad académica internacional en la UD en el semestre anterior) )* 100
B47: II-35, Movilidad académica nacional docente de carrera semestral total UD | C47: (No.de docentes de carrera UD que realizaron movilidad académica nacional en el presente semestre - No.de docentes de carrera UD que realizaron movilidad académica nacional en el semestre anterior) / No. de docentes de carrera UD que realizaron movilidad académica nacional en el semestre anterior) )* 100
B48: II-36, Movilidad académica internacional docente de carrera total UD | C48: ((No. de docentes de carrera UD que realizaron movilidad académica internacional en el presente semestre - No. de docentes de carrera UD que realizaron movilidad académica internacional en el semestre anterior) / No. de docentes de carrera UD que realizaron movilidad académica internacional en el semestre anterior) )* 100
B49: II-37, Movilidad académica docente o invitado entrante nacional total UD | C49: ((No.de docentes o invitados externos que realizaron movilidad académica nacional en la UD en el presente semestre - No.de docentes externos o invitados que realizaron movilidad académica nacional en la UD en el semestre anterior) / No. de docentes externos o invitados que realizaron movilidad académica nacional en la UD en el semestre anterior) )* 100
B50: II-38, Movilidad académica docente o invitado entrante internacional total UD | C50: ((No. de docentes o invitados externos que realizaron movilidad académica internacional en la UD en el presente semestre - No. de docentes externos o invitados que realizaron movilidad académica internacional en la UD en el semestre anterior) / No. de docentes externos o invitados que realizaron movilidad académica internacional en la UD en el semestre anterior) )* 100
B51: II-39, Presupuesto ejecutado anualmente movilidad académica | C51: ((Presupuesto destinado para el apoyo de movilidad académica en el presente año - Presupuesto destinado para el apoyo movilidad académica en el año anterior) / Presupuesto destinado para el apoyo de movilidad académica en el año anterior) )* 100
B52: No Aplica | C52: Por favor crear un Indicador en la casilla "Indicador de la Actividad"
B53: GD-040, Número de docentes de la universidad que hicieron sus estudios de pregrado en universidad pública | C53: Número de docentes de la universidad que hicieron sus estudios de pregrado en universidad pública
B54: GD-041, Número de docentes de la universidad que hicieron sus estudios de postgrado en universidad pública | C54: Número de docentes de la universidad que hicieron sus estudios de postgrado en universidad pública
B55: GD-042, Número de docentes de la universidad que hicieron sus estudios de pregrado en universidad privada | C55: Número de docentes de la universidad que hicieron sus estudios de pregrado en universidad privada
B56: GD-043, Número de docentes de la universidad que hicieron sus estudios de postgrado en universidad privada | C56: Número de docentes de la universidad que hicieron sus estudios de postgrado en universidad privada
B57: GD-044, Número de docentes de la universidad que hicieron sus estudios de pregrado en universidades nacionales | C57: Número de docentes de la universidad que hicieron sus estudios de pregrado en universidades nacionales
B58: GD-045, Número de docentes de la universidad que hicieron sus estudios de pregrado en universidades extranjeras | C58: Número de docentes de la universidad que hicieron sus estudios de pregrado en universidades extranjeras
B59: GD-046, Número de docentes de la universidad que hicieron sus estudios de postgrado en universidades nacionales | C59: Número de docentes de la universidad que hicieron sus estudios de postgrado en universidades nacionales
B60: GD-047, Número de docentes de la universidad que hicieron sus estudios de postgrado en universidades nacionales | C60: Número de docentes de la universidad que hicieron sus estudios de postgrado en universidades nacionales
B61: GD-048, Número de estudiantes matriculados en programas de pregrado | C61: Número de estudiantes matriculados en programas de pregrado
B62: GD-049, Número de estudiantes matriculados en programas de postgrado | C62: Número de estudiantes matriculados en programas de postgrado
B63: GD-050, Número de estudiantes matriculados en programas tecnológicos | C63: Número de estudiantes matriculados en programas tecnológicos
B64: GD-051, Número de docentes de la universidad que hicieron sus estudios de pregrado en la Universidad Distrital | C64: Número de docentes de la universidad que hicieron sus estudios de pregrado en la Universidad Distrital
B65: GD-052, Número de docentes de la universidad que hicieron sus estudios de postgrado en la Universidad Distrital | C65: Número de docentes de la universidad que hicieron sus estudios de postgrado en la Universidad Distrital
B66: GD-053, Número de estudiantes que han participado en pasantía en los últimos cinco años | C66: Número de estudiantes que han participado en pasantía en los últimos cinco años
B67: GD-054, Número de estudiantes que han participado en prácticas académicas en los últimos cinco años | C67: Número de estudiantes que han participado en prácticas académicas en los últimos cinco años
B68: GD-055, Número de docentes que han participado de estancías de investigación en los últimos cinco años | C68: Número de docentes que han participado de estancías de investigación en los últimos cinco años
B69: GD-056, Número de docentes que han ejercido como pares académicos en los últimos cinco años | C69: Número de docentes que han ejercido como pares académicos en los últimos cinco años
B70: GD-057, Número de docentes que han participado en congresos, foros, seminarios, simposios en los últimos cinco años | C70: Número de docentes que han participado en congresos, foros, seminarios, simposios en los últimos cinco años
B71: GD-058, Porcentaje de profesores de planta (TC y MT) que han participado en programas de formación pedagógica en los últimos cinco años | C71: [(Número de docentes de TC y MT que han participado en los diferentes programas de Formación pedagógica en los últimos cinco años)/(Número total de Docentes TC y MT de la universidad)]*100
B72: GD-059, Porcentaje de profesores de planta (TC y MT) que han participado en programas de didáctica en los últimos cinco años | C72: [(Número de docentes de TC y MT que han participado en los diferentes programas de didáctica en los últimos cinco años)/(Número total de Docentes TC y MT de la universidad)]*100
B73: GD-060, Porcentaje de profesores de planta (TC y MT) que han participado en programas de formación continua en los últimos cinco años | C73: [(Número de docentes de TC y MT que han participado en los diferentes programas de Formación continua en los últimos cinco años)/(Número total de Docentes TC y MT de la universidad)]*100
B74: GD-061, Número de docentes TCE (tiempo completo equivalente) en la Universidad | C74: Número de docentes TCE en la Universidad.
B75: GD-062, Relación entre el número de profesores de TCE (tiempo completo equivalente) y el número de estudiantes | C75: [(Número de docentes TCE en la Universidad)/(Número total de Estudiantes activos en la Universidad)]
B76: GD-063, Porcentaje de docentes de carrera con respecto al total de docentes | C76: [(Número de docentes de carrera Vinculados con la Universidad)/(Número de docentes totales vinculados con la Universidad)]*(100)
B77: GD-064, Porcentaje de docentes de vinculación especial con respecto total de docentes | C77: [(Número de docentes de vinculación especial en la Universidad)/(Número de docentes totales vinculados con la Universidad)]*(100)
B78: GD-065, Porcentaje de docentes de Tiempo Completo con respecto total de docentes | C78: [(Número de docentes con dedicación tiempo completo a la Universidad)/(Número de docentes totales vinculados con la Universidad)]*(100)
B79: GD-066, Porcentaje de docentes de Medio Tiempo con respecto total de docentes | C79: [(Número de docentes con dedicación medio tiempo a la Universidad)/(Número de docentes totales vinculados con la Universidad)]*(100)
B80: GD-067, Relación de docentes Tiempo Completo y número de estudiantes | C80: [(Número de docentes con dedicación tiempo completo a la Universidad)/(Número total de estudiantes activos en la Universidad)]
B81: GD-068, Relación de docentes Medio Tiempo y número de estudiantes | C81: [(Número de docentes con dedicación medio tiempo a la Universidad)/(Número total de estudiantes activos en la Universidad)]*(100)
